{"text_format":"1","workbook":"xlsx","n_sheets":38,"sheets":["Leveransplan","Definitioner","Leveranstider","Anvisningar","Kontakt-aviseringsuppgifter","Leveranshistorik","Projektuppgifter","4.1 Bro","4.2 Tunnel och bergslänt","4.3 Övriga byggnadsverk","5.1 Anl.nära system","5.2 ATK Mätstation","5.3 Belysning","5.4 Brukaravg","5.5 Elkraft","5.6 Styr och regler","5.7 Telesystem","5.8 Trafiksystem","5.9 VA","5.10 Ventilation","5.11 VViS","5.12 Samord. komplex vägtunnel","5.13.1 Dörrkomponenter","5.13.2 Husbyggdelar","6.1 Siter och kabel","7.1 Vägnät","8.1 Vatten","9.1 Beläggning","9.2 Grusväg","9.3 Vägkropp","9.4 Vägmarkering","10.1 Adm-funkt. företeelser","10.2 Miljö","11.1 NTS","Tillkomna dok.","Levererat till extern part","Versionslogg","Mallstruktur i Chaos"],"not_rendered":{"charts":0,"images":8,"macros":0,"external_links":1,"defined_names":3,"comments":30,"pivot_tables":0},"unopened":[],"bounds":{"document_bytes":16777216,"sheet_cells":100000,"rows_first":2000,"rows_last":500,"rows_between":2000,"halvings":0,"cell_chars":16384,"cell_head_chars":4096},"cells_cut":0,"cells_raw":0,"read":"whole","date_system":"1900"}

{"sheet":"Leveransplan","index":0,"n_rows":12,"n_cols":1,"rows_kept":12,"cut":false,"hidden":false,"merged":[[4,0,4,1],[6,0,6,1]]}
["TMALL 0343 Data om anläggningen - Leveransplan - Väg"]
["Version 31.0"]
["Datum: 2025-05-01"]
[]
["Leveransplanen bygger på kravdokumentet TDOK 2019:0210 Data om anläggningen - Data och dokumentation till förvaltande system - Väg \n\nLeveranstiderna i projektuppgiftsflikens kolumn E, avser när leverans senast ska ske från projekt till mottagande system\n"]
[]
["Projekt som redan börjat använda en tidigare version av TMALL 0343 behöver inte byta till denna version. \nKontrollera däremot med senare versioner om krav tillkommit eller slopats. Detta ser man lättast i versionsloggen i den senaste versionen av TMALL 0343 eller TDOK 2019:0210."]
["Leveranstidskrav till mottagande förvaltning är det senaste datum när mottagande förvaltning eller IT-system behöver data. Leveransen genomförs av projektet enligt Trafikverkets fastställda krav. Leveranstidkraven ställs på projektet, inte mot extern leverantör, enligt TDOK 2019:0210."]
[]
["Observera! "]
[" -- De krav och riktlinjer som hänvisas till i denna mall ska endast betraktas som stöd för projektet. Det är projektets ansvar att hålla sig uppdaterad med aktuella krav i TDOK 2019:0210 Data om anläggningen - Data och dokumentation till förvaltande system - Väg."]
[" -- Det finns ca 30 flikar i leveransplanen. Det gör att alla flikar inte är synliga längst ner på skärmen samtidigt. Istället är man tvungen att använda pilen längst ner till vänster på sidan för att stega sig igenom alla flikar eller högerklicka på pilen för att få fram en vallista över samtliga flikar."]

{"sheet":"Definitioner","index":1,"n_rows":7,"n_cols":2,"rows_kept":7,"cut":false,"hidden":false,"merged":[]}
["Definitioner"]
[]
["Begrepp","Definition"]
["Förvaltande system","De system/databaser där förvaltningsdata lagras"]
["ÖFT","Öppnande för trafik, ÖFT (väg) är det styrande datumet när en ny- eller ombyggd anläggning börjar trafikeras och användas som en del av infrastrukturen enligt avsedd anläggningsfunktion. ÖFT-datum är ett synonymt begrepp till Öppnande för trafik."]
["MK","Förkortning för MottagandeKoordinator vilket avser den person som är ansvarig för att koordinera mottagandet av ansvar, anläggning och förvaltningsdata vid ny eller förändrad infrastruktur, samt erbjuda stöd vid leveranser till förvaltande system gällande NÄR/VAR/HUR. För mer detaljer se TDOK 2012:1198 Mottagandekoordinator – Rollbeskrivning."]
["ÖK","Förkortning för ÖverlämnandeKoordinator vilket avser den person som koordinerar överlämnandet av ansvar, anläggning och förvaltningsdata vid ny eller förändrad infrastruktur. För mer detaljer se TDOK 2012:1170 Överlämnandekoordinator- Rollbeskrivning"]

{"sheet":"Leveranstider","index":2,"n_rows":19,"n_cols":6,"rows_kept":19,"cut":false,"hidden":false,"merged":[[14,1,15,1]]}
[]
[null,"Leveranstid väganläggning","Teknikområde","Bakgrund till tidskravet","System","Flik "]
[null,"4 mån före ÖFT","Administrativa och funktionella företeelser \nVägnät","Vägnätet behöver finnas i NVDB innan vägen öppnas för trafik för att trafikföreskrifter ska kunna utformas och lagras i databasen och finnas tillgängliga när vägen börjar trafikeras. För att korrekta transportdispenser ska kunna ges måste vägnätet finnas i NVDB innan vägen börjar trafikeras.\nFör att vägnätet ska kunna lagras i NVDB krävs ett fåtal företeelser vilka kravställs ihop med referenslinjen. Detta är en förutsättning för att ex GPS'er ska visa rätt väg. Det är speciellt viktigt för blåljusverksamheter.\n","NVDB","7.1 och 10.1"]
[null,"4 mån före ÖFT","Trafikledning","Nationellt trafikledningsystem för Vägområdet är det verktyg som Trafikledning Väg använder för att registrera alla händelser på det statliga vägnätet samt på det kommunala vägnätet i Stocholm och Göteborg. Systemet använvänds även för trafikledning, trafikstyrning och anläggningsövervakning via/av tekniska system i vägnätet. För att hantera detta måste NTS-förvaltning ha metadatainformation om förändringar i vägnät samt för alla informations och/eller styrobjekt som finns ute i vägnätet.","NTS","11.1"]
[null,"Vid färdig bygghandling","Siter och kabel","Leveranstidskraven utgår från TDOK 2019:0210, kap 11                                       \nFärdig bygghandling skall levereras så att IKT skall hinna dokumentera  anläggningen i dokumentationssystemet IVAR enl kap 11.2.","ProjectWise /IKT","6.1"]
[null,"2 månader före ÖFT","Siter och kabel","Leveranstidskraven utgår från TDOK 2019:0210, kap 11   Protokoll från optiska mätningar och koordinatförteckning kabel, dukt m.m. ska levereras senast 2 månader före ÖFT enl kap 11.3 så att anläggningen kan läsas in i vårat dokumentationssystem och vara korrekt inför driftsättning.","ProjectWise /IKT","6.1"]
[null,"2 månader före ÖFT","Administrativa och funktionella företeelser","För att korrekta transportdispenser ska kunna ges måste vägnätet rörande provisorisk väg finnas i NVDB innan vägen börjar trafikeras.","NVDB","10.1"]
[null,"1 månad före ÖFT","Bro\nTunnel och bergslänt\nÖvriga byggnadsverk\n","För att teknikspecialist/ teknikingenjör ska ha tid att genomföra aktivitet 1 enligt Rutinbeskrivning TDOK 2018:0200. Kontrollera att: \n\n• Konstruktionsredovisning är kopplad i BATMAN\n• Tekniska uppgifter är registrerade och skickade för fastställelse\n• Uppgifter om konstruktiv indelning är registrerade och skickade för fastställelse\n• Bärighet är registrerad och skickad för fastställelse\n• Passager, exkl. vägnätsanknytning, är registrerade och skickade för fastställelse.  \n\nDärmed har teknikspecialist/ teknikingenjör chans att hinna göra aktivitet 2 (fastställa tekniska uppgifter) enligt TDOK 2018:0200 senast 2 veckor före ibruktagande.\nUnderhåll ska fastställa bärighet och uppgifter om konstruktiv indelning senast dagen före ÖFT. För att hinna detta måste övriga tekniska uppgifter vara fastställda senast två veckor före ÖFT..\n\n\n","BATMAN","4.1, 4.2 och 4.3"]
[null,"Dagen för ÖFT","Bro\nTunnel och bergslänt\nÖvriga byggnadsverk\n","Innan byggnadsverk tas i trafik/drift ska första inspektion ske enligt Riktlinje TDOK 2020:0159. Huvudinspektionerna syftar till att upptäcka och bedöma brister som kan påverka byggnadsverkets funktion eller säkerhet inom en tioårsperiod. Syftet är också att upptäcka brister, som om de inte åtgärdas inom tidsperioden, kan leda till förhöjda underhållskostnader.\n","BATMAN","4.1, 4.2 och 4.3"]
[null,"2 veckor före slutbesiktning ","Anläggningsnära system (OT/ICT)\nVentilation\nVViS\nATK\nBelysning\nBrukaravgiftssystem\nElkraft\nStyr- och reglersystem\nTelesystem\nTrafiksystem\nVA\nDörrkomponenter\nHusbyggdelar\nSamordning brand och säkerhet","Kravet kommer av att Infra har installationer med tillhörande anläggningsdokumentation som besiktningsman el ska besiktiga emot. För en belysningsanläggning så ska besiktningsman el ha tillgång till dokumentationen två veckor innan så att hen kan läsa på och se så att den stämmer med de krav som finns (samtliga kravställda dokument, ritningar m.m.). Vid besiktning på plats ska handlingarna kunna användas vid genomgång på plats för att se så att de stämmer överens med verkligheten. ","PROVA/GusMaximo","5.1-5.13.2"]
[null,"2 veckor före slutbesiktning","Vattenskydd","Bakgrunden till leveranstidskravet var att det ska vara samma tid som angetts för andra likvärdiga handlingar.","vatten_vag@trafikverket.se ","8.1"]
[null,"2 månader efter slutbesiktning\n","Administrativ och funktionell företeelse","NVDB behöver så fort som möjligt ha fullständig information om vägnätet.\nFör ex vägtrumma är tidskravet 2 månader efter slutbesiktning för att kunna ha en så korrekt uppdaterad trumdatabas som möjligt. I nuläget uppdateras trumdatabasen varje natt.","NVDB","10.1"]
[null,"2 månader efter slutbesiktning","Administrativ och funktionell företeelse","Efter mottagen leverans behöver den bearbetas och skickas vidare till markförhandlare för granskning.","Vägområdesdatabasen","10.1"]
[null,"2 månader efter slutbesiktning","Beläggning","Kravet baseras på att vi ska att ha en så aktuell och uppdaterad information om vår anläggning som möjligt, inom en rimlig tid, i systemet.","PMS-beläggning","9.1 Beläggning\n9.2 Grusväg\n9.3 Avvattning"]
[null,"3 mån efter slutbesiktning\n","Bro \nTunnel\nÖvriga byggnadsverk","Detta är den sista leveransen av data och tiden är satt utifrån att det är ett acceptabelt krav på IV-projekten att de kan leverera inom tre månader efter slutbesiktning, det är samtidigt acceptabelt från förvaltande enhet att invänta med de sista leveranserna till senast 3 månader efter slutbesiktning.\n\n\n\n","BATMAN","4.1, 4.2 och 4.3"]
[null,null,"Miljö \n","Leveranstidskravet är satt utifrån att projektet ska ha rimlig tid på sig för att kunna ta fram handlingar av rätt kvalitet. Arbetet med att ta fram dokumentationen behöver påbörjas tidigare och vara väl förankrat i underhålls organisation i god tid inför leverans.","Chaos/MWL","10.2"]
[null,"3 månader efter slutbesiktning\n","Miljö (Förorenade områden och förorenade massor)","Informationen behövs för drift och underhåll av anläggningen, och för att säkerställa uppfyllelse av miljökrav utifrån myndighetsbeslut.","LEB","10.2"]
[null,"3 månader efter slutbesiktning","Siter och kabel","Leveranstidskraven utgår från TDOK 2019:0210, kap 11 Förvaltningsdata ska vara bestämt senast 3 mån efter slutbesiktning enl kap 11.10 för att projekten ska hinna göra förändringar som skett under byggtiden.","ProjectWise / IKT","6.1"]
[null,"3 månader efter slutbesiktning","Vägkropp","Geoteknik har i nuläget inget förvaltande system så här sker levereras till Chaos. Leveranstidskravet utgår ifrån vad som är rimligt för projekten att hinna med ihop med hur väl uppdaterade system som vi vill ha.","Chaos","9.3"]

{"sheet":"Anvisningar","index":3,"n_rows":13,"n_cols":3,"rows_kept":13,"cut":false,"hidden":false,"merged":[]}
[null,"Tips för hur projektet bör använda leveransplanen"]
[null,null,"För att redigera i leveransplanen - Klicka på Redigera arbetsbok, gör ändringarna och spara och stäng filen sedan. Om man väljer att checka ut filen ska ny version väljas när man checkar in dokumentet igen. Var uppmärksam på om dokumentet är utcheckat innan du öppnar det. Vänta tills filen checkats in innan du öppnar den. Detta för att undvika att en kopia skapas. "]
[]
[null,"1.","Öppna fliken \"Projektuppgifter\" och fyll i projektets uppgifter inkl relevanta datum. \nSätt därefter kryss (x) i kolumn B för de teknikområden/delområden som berörs av projektet. Alternativt gå direkt till punkt 2 och sätt kryss (x) i flikar som är aktuella för projektet. Då automatgenereras kryss (x) i kolumn B \"Påverkas av projektet\" i fliken \"Projektuppgifter\".\n"]
[null,"2.","Öppna aktuella flikar och sätt kryss (x) i kolumnen \"Aktuellt att uppdateras av projektet\" för data och dokument som projektet ska leverera."]
[null,"3.","Dölj flikar som inte berör projektet.  Ställ dig på flikens namn, högerklicka och välj \"Dölj\". Ångrar du dig, ställ dig på valfritt fliknamn och välja \"Ta fram\"."]
[null,"4.","Skicka epost till utpekad MK med en länk till var i Projektportalen leveransplanen ligger. Denna uppgift behöver MK tidigt."]
[null,"5.","Frågor om vilka leveranser som är aktuella för olika system, se flik Kontakt-aviseringsuppgifter. \n"]
[null,"6.","Projektet bestämmer hur leveransplanen lämpligast fylls i. Eftersom projekt är olika kan det variera vem som är bäst lämpad att fylla i den. Projektledare ansvarar för att det sker. \nFör mindre projekt räcker det med en leveransplan. För större projekt kan flera leveransplaner med fördel upprättas, tex en per etapp eller entreprenad. Möjlighet finns också att duplicera flikar, tex vid olika ÖFT-datum. \nVid behov tag stöd av utpekad MK.\nFör mer detaljer kring tidplan för leveransplanen hänvisas till process Genomföra åtgärder på vägar och järnvägar."]
[]
[null,null," Grå fält ska inte fyllas i."]
[]
[null,"Flikarnas numrering motsvarar kapitelnumreringen i TDOK 2019:0210."]

{"sheet":"Kontakt-aviseringsuppgifter","index":4,"n_rows":26,"n_cols":6,"rows_kept":26,"cut":false,"hidden":false,"merged":[[11,0,13,0],[11,1,13,1],[11,3,13,3],[11,2,13,2]]}
["Vid frågor om leverans hänvisas till nedanstående kontaktvägar:"]
[]
["I TDOK 2019:0299 finns utförligare uppgifter om hur en leverans ska gå till från projektet till mottagande förvaltning"]
[]
["Förvaltande system","Kontaktuppgifter vid frågor inför leveransen","Kontaktuppgifter vid frågor om leveransen","Leveransyta vid leverans från projekt till förvaltande system","Aviseringsadress från projekt till mottagande förvaltning","Kommentar"]
["BATMAN",null,"batman@trafikverket.se","Registrering sker direkt i BATMAN"," --"," --"]
["Chaos (geoteknik)",null,"geoteknik@trafikverket.se","Chaos, mappen ”Förvaltningsdata/9 Vägyta, vägkropp/9.3 Vägkropp/9.3.2.1 Geoteknik” \n","geoteknik@trafikverket.se","När de färdiga dokumenten ligger i mappen skickas aviseringsmail med länk till aktuell mapp i Chaos. Leveransen anses då klar. I dagsläget erhålles ingen kvittens/godkännande på utförd leverans (av mottagare). "]
["Chaos (vägteknik)",null,null,"Chaos, mappen \"Förvaltningsdata/9 Vägyta, vägkropp/9.3 Vägkropp/9.3.2.2 Vägteknik\"\n\n","Ansvarig projektledare (PL BAS) på VO UH "]
["Chaos (vägmarkering)",null,null,"Chaos, mappen \"Förvaltningsdata/9 Vägyta, vägkropp/9.4.1 Vägmarkering\"\n","Ansvarig projektledare på VO UH "]
["Chaos (miljödata)",null,"UHvavmiljo@trafikverket.se","Chaos, mappen ”Förvaltningsdata/10 Övrigt/10.2 Miljö” ","UHvavmiljo@trafikverket.se"," --"]
["Databasen för geotekniska borrhål",null,"erik.g.eriksson@trafikverket.se","Registrering sker direkt i Novapoint Geosuite Toolbox"," --"," --"]
["GusMaximo","Kontakta utpekad MK","maximoindata@trafikverket.se","Chaos, mappen \nFörvaltningsdata/Infrasystem/Rätt undermapp (teknikområde)","maximoindata@trafikverket.se ","Förvalidering av laddmall (ej obligatoriskt)"]
[null,null,null,null,"Kontrollerat kolumnen:\nmaximoindata@trafikverket.se","Kontroll av leverans enligt flik 5.X.\n\nAviseringsmailet ska innehålla följande:\n- Projektnamn (Agresso)\n- Länk till TMALL 0343 Leveransplan för projektet\n- Databasnamn\n- Uppdragsnummer (Agresso)\n- Objektnummer\n- Slutbesiktningsdatum"]
[null,null,null,null,"Godkänt kolumnen:\nMottagande PL UH Infra","Godkännande av leverans, mottagande PL UH Infra"]
["LEB",null,"fororenade.omraden@trafikverket.se","Registrering sker direkt i LEB","fororenade.omraden@trafikverket.se","Teknisk dokumentation ska lagras i Diariet eller ProjectWise/Förvaltning Underhåll och länkas sedan till LEB\n\nAviserinsmail ska innehålla följande:\n- Uppdragsnummer\n- Uppdragsnamn\n-  Länk till leveransplan \n- OmrådesID för registrerade eller reviderade riskobjekt\n- Ev. efterbehandlingsID"]
["Miljöwebb Landskap",null,"miljowebblandskap@trafikverket.se","Registrering sker direkt i MWL","UHvavmiljo@trafikverket.se","När uppgifterna i Miljöwebb Landskap är registrerade ska de granskas av miljökompetens inom projektet. När projektets granskning är gjord ska projektet skicka aviseringsmail om att leveransen är klar. Detta görs samtidigt som övrig miljödokumentation aviseras."]
["Nationella bullerdatabasen (NBDB)",null,"buller.vibrationer@trafikverket.se","TMALL:en bifogas i aviseringsmailet.","buller.vibrationer@trafikverket.se"," --"]
["NTS ",null,"tr-anlaggningsmottagningvag@trafikverket.se","TMALL:en bifogas i aviseringsmailet.","tr-anlaggningsmottagningvag@trafikverket.se","Som underlag för leverans kan TMALL 1566 användas."]
["NVDB","Kontakta utpekad MK","nvdb-leverans@trafikverket.se","Chaos, i mappar i projektets lagringsstruktur, enligt bild:","nvdb-leverans@trafikverket.se","Aviseringsmailet ska innehålla följande:\n- information om var i Chaos som leveransen ligger\n- datum för öppnande för trafik (ÖFT)\n- uppdragsnummer (i Agresso)\n- projektnamn\n- vägnummer\n- län där objektet byggts och där vägområdet ligger\n- referenssystem\n- använt leveransmallar: JA/NEJ\n- Filerna är kontrollerade i KOALA: JA/NEJ\n"]
["PMS Beläggning","Kontakta utpekad MK","pmsbelaggning@trafikverket.se","Registrering sker direkt i PMS Beläggning","Mail från systemet skickas automatiskt till brevlåda som bevakas av MK. \nVid klarmarkering kan PDF på kvittens tas ut och sparas ned i PP.","Som underlag för registrering kan TMALL 0050 (beläggning), TMALL 1018 (avvattning) respektive TMALL 1384 (grusväg) användas."]
["ProjectWise/IKT (PW/IKT)",null,"it.dokumentation@trafikverket.se","Chaos, mappen ”Förvaltningsdata/6 IT- och telekominfrastruktur/6.1 Siter och kabel/Rätt tidskrav” ","telekombestallning@trafikverket.se","Mottagande förvaltning hämtar leverans från Chaos"]
["Projektnav",null,"buller.vibrationer@trafikverket.se","TMALL 0188 bifogas i avviseringsmailet.","buller.vibrationer@trafikverket.se"," --"]
["PROVA",null,"prova@trafikverket.se","Detaljerad information om leveranser till PROVA t.ex. filformat och struktur finns beskrivet i PROVA handbok. Kontakta PROVA@trafikverket.se för tillgång till PROVA handbok."]
["Analysdata/Mätdata",null,"UHvavmiljo@trafikverket.se"," --","UHvavmiljo@trafikverket.se"]
["Vatten",null,"vatten_vag@trafikverket.se","Chaos, i mappar i projektets lagringsstruktur, enligt bild:","vatten_vag@trafikverket.se","När de färdiga dokumenten ligger i rätt mapp i Chaos skickas aviseringsmail innehållande: \n-länk till aktuell mapp i Chaos  \n-länk till leveransplan"]
["Vägområdesdatabasen",null,"geografisk.information@trafikverket.se","Chaos, mappen ”Förvaltningsdata/10 Övrigt/10.1 Administrativa och funktionella företeelser/2 månader efter Slutbesiktning” ","geografisk.information@trafikverket.se"," --"]

{"sheet":"Leveranshistorik","index":5,"n_rows":6,"n_cols":2,"rows_kept":6,"cut":false,"hidden":false,"merged":[]}
["Leveranshistorik - Projekt"]
["Valfri att använda."]
[]
["Tabellen nedan kan användas som ett stöd för projektet att beskriva framdriften av leveranser."]
[]
["Datum","Beskrivning"]

{"sheet":"Projektuppgifter","index":6,"n_rows":124,"n_cols":14,"rows_kept":124,"cut":false,"hidden":false,"merged":[[5,1,5,2],[4,1,4,2],[13,3,16,6],[3,1,3,2],[21,2,21,3],[2,1,2,2],[13,1,13,2],[16,1,16,2],[15,1,15,2],[14,1,14,2],[12,1,12,2],[11,1,11,2],[10,1,10,2],[9,1,9,2],[8,1,8,2],[7,1,7,2],[6,1,6,2]]}
["Projektuppgifter"]
[]
["Uppdragsnummer:"]
["Uppdragsnamn:"]
["Etapp:"]
["Vägnummer:"]
["Referenssystem (plan):"]
["Referenssystem (höjd):"]
["Projektledare:"]
["Kort beskrivning om projektet:"]
["Överlämnandekoordinator (ÖK):"]
["Mottagandekoordinator (MK):"]
["Diarieförda dispenser:"]
["Öppnande för trafik (ÖFT)",null,null,"Det datum som anges här ligger till grund för det datum som automatiskt genereras i respektive flik. \nMan kan sedan ändra datumet i respektive flik, så att det stämmer med rätt datum per teknikområde och ÖFT- / slutbesiktningsdatum.\n\nOm flera ÖFT finns, kan med fördel fler rader/flikar läggas till (en för varje bro ex.)."]
["Sluttidpunkt för bygghandling:"]
["ÖFT för Bro eller Tunnel:"]
["Slutbesiktningsdatum:"]
[]
["Länk till alla TMALL:ar som ska levereras enligt denna leveransplan återfinns här (i mapp Förvaltningsdata):","Länk till TMALLar"]
[]
["Information till ÖK: Vid avisering om leverans, oavsett flik, ska samtliga projektuppgifter finnas med i aviseringsmailet samt uppgift om vilken flik som leveransen avser."]
[null,"Projekt","Leverantör",null,"Projekt",null,null,null,null,null,null,null,null,"ÖK"]
["Leveranstid","Påverkas av projektet","Leverans från leverantör (E/K ) till leveransyta enl kolumn L eller annan överenskommen yta, för mottagningskontroll senast: ","Levererat av (namn + datum) ","Leveransen ska vara levererad till mottagande förvaltning senast: ","Teknikområdesindelning","Teknikområde","Delområde","Data/ Dokument","Avsnitt i TDOK 2019:0210","Flik","Levereras till","Förvaltande system","Status på leveransen?"]
["02.4 månader före ÖFT ",{"$f":"IF(COUNTIF('10.1 Adm-funkt. företeelser'!F15:F16,\"X\")>0,\"X\",\"\")","v":""},{"$f":"IF($E$24=\"\",\"\",DATE(YEAR(E24),MONTH(E24),DAY(E24)-60))","v":""},null,{"$f":"IF($B$14=\"\",\"\",DATE(YEAR('7.1 Vägnät'!B2),MONTH('7.1 Vägnät'!B2)-4,DAY('7.1 Vägnät'!B2)))","v":""},"Övrigt","Administrativa  och funktionella företeelser","Administrativ företeelse","Data","10.1.1.1","10.1","Chaos","NVDB"]
["02.4 månader före ÖFT ",{"$f":"IF(COUNTIF('7.1 Vägnät'!E14:E22,\"X\")>0,\"X\",\"\")","v":""},{"$f":"IF($E$25=\"\",\"\",DATE(YEAR(E25),MONTH(E25),DAY(E25)-60))","v":""},null,{"$f":"IF($B$14=\"\",\"\",DATE(YEAR('7.1 Vägnät'!B2),MONTH('7.1 Vägnät'!B2)-4,DAY('7.1 Vägnät'!B2)))","v":""},"Trafiknät","Vägnät"," --","Data","7.1.1","7.1","Chaos","NVDB"]
["02.4 månader före ÖFT ",{"$f":"IF(COUNTIF('10.1 Adm-funkt. företeelser'!F17:F31,\"X\")>0,\"X\",\"\")","v":""},{"$f":"IF($E$26=\"\",\"\",DATE(YEAR(E26),MONTH(E26),DAY(E26)-60))","v":""},null,{"$f":"IF($B$14=\"\",\"\",DATE(YEAR('7.1 Vägnät'!B2),MONTH('7.1 Vägnät'!B2)-4,DAY('7.1 Vägnät'!B2)))","v":""},"Övrigt","Administrativa  och funktionella företeelser","Funktionell företeelse","Data","10.1.1.1","10.1","Chaos","NVDB"]
["02.4 månader före ÖFT ",{"$f":"IF(COUNTIF('7.1 Vägnät'!E24,\"X\")>0,\"X\",\"\")","v":""},{"$f":"IF($E$27=\"\",\"\",DATE(YEAR(E27),MONTH(E27),DAY(E27)-60))","v":""},null,{"$f":"IF($B$14=\"\",\"\",DATE(YEAR('7.1 Vägnät'!B2),MONTH('7.1 Vägnät'!B2)-4,DAY('7.1 Vägnät'!B2)))","v":""},"Trafiknät","Vägnät"," --","Dokument","7.1.2","7.1","Chaos","NVDB"]
["02.4 månader före ÖFT ",{"$f":"IF(COUNTIF('11.1 NTS'!D12,\"X\")>0,\"X\",\"\")","v":""},{"$f":"IF($E$28=\"\",\"\",DATE(YEAR(E28),MONTH(E28),DAY(E28)-14))","v":""},null,{"$f":"IF($B$14=\"\",\"\",DATE(YEAR('11.1 NTS'!B2),MONTH('11.1 NTS'!B2)-1,DAY('11.1 NTS'!B2)))","v":""},"Överordnade system för trafik- och \ndriftledning","NTS - Nationellt Trafikledningssystem"," --","Data","11.1","11.1"," Mail till NTS","NTS"]
["03.Vid färdig bygghandling",{"$f":"IF(COUNTIF('6.1 Siter och kabel'!F14:F23,\"X\")>0,\"X\",\"\")","v":""},{"$f":"IF($E$29=\"\",\"\",DATE(YEAR(E29),MONTH(E29),DAY(E29)-14))","v":""},null,{"$f":"IF($B$15=\"\",\"\",DATE(YEAR('6.1 Siter och kabel'!B2),MONTH('6.1 Siter och kabel'!B2),DAY('6.1 Siter och kabel'!B2)))","v":""},"IT- och telekominfrastruktur","Siter och kabel","Kabelanläggning","Dokument","6.1.1.1","6.1","Chaos","ProjectWise /IKT"]
["03.Vid färdig bygghandling",{"$f":"IF(COUNTIF('6.1 Siter och kabel'!F24:F30,\"X\")>0,\"X\",\"\")","v":""},{"$f":"IF($E$30=\"\",\"\",DATE(YEAR(E30),MONTH(E30),DAY(E30)-14))","v":""},null,{"$f":"IF($B$15=\"\",\"\",DATE(YEAR('6.1 Siter och kabel'!B2),MONTH('6.1 Siter och kabel'!B2),DAY('6.1 Siter och kabel'!B2)))","v":""},"IT- och telekominfrastruktur","Siter och kabel","Kraft - Tele","Dokument","6.1.1.2","6.1","Chaos","ProjectWise /IKT"]
["03.Vid färdig bygghandling",{"$f":"IF(COUNTIF('6.1 Siter och kabel'!F31:F34,\"X\")>0,\"X\",\"\")","v":""},{"$f":"IF($E$31=\"\",\"\",DATE(YEAR(E31),MONTH(E31),DAY(E31)-14))","v":""},null,{"$f":"IF($B$15=\"\",\"\",DATE(YEAR('6.1 Siter och kabel'!B2),MONTH('6.1 Siter och kabel'!B2),DAY('6.1 Siter och kabel'!B2)))","v":""},"IT- och telekominfrastruktur","Siter och kabel","Teletransmission","Dokument","6.1.1.3","6.1","Chaos","ProjectWise /IKT"]
["04.2 månader före ÖFT",{"$f":"IF(COUNTIF('6.1 Siter och kabel'!F38:F43,\"X\")>0,\"X\",\"\")","v":""},{"$f":"IF($E$32=\"\",\"\",DATE(YEAR(E32),MONTH(E32),DAY(E32)-14))","v":""},null,{"$f":"IF($B$14=\"\",\"\",DATE(YEAR('6.1 Siter och kabel'!B4),MONTH('6.1 Siter och kabel'!B4)-2,DAY('6.1 Siter och kabel'!B4)))","v":""},"IT- och telekominfrastruktur","Siter och kabel","Kabelanläggning","Dokument","6.1.1.1","6.1","Chaos","ProjectWise /IKT"]
["04.2 månader före ÖFT",{"$f":"IF(COUNTIF('10.1 Adm-funkt. företeelser'!F36,\"X\")>0,\"X\",\"\")","v":""},{"$f":"IF($E$33=\"\",\"\",DATE(YEAR(E33),MONTH(E33),DAY(E33)-60))","v":""},null,{"$f":"IF($B$14=\"\",\"\",DATE(YEAR('10.1 Adm-funkt. företeelser'!B2),MONTH('10.1 Adm-funkt. företeelser'!B2)-2,DAY('10.1 Adm-funkt. företeelser'!B2)))","v":""},"Övrigt","Administrativa  och funktionella företeelser","Funktionell företeelse","Data","10.1.1.1","10.1","Chaos","NVDB"]
["05.1 månad före ÖFT",{"$f":"IF(COUNTIF('4.1 Bro'!E14:E15,\"X\")>0,\"X\",\"\")","v":""},{"$f":"IF($E$34=\"\",\"\",DATE(YEAR(E34),MONTH(E34),DAY(E34)-14))","v":""},null,{"$f":"IF($B$16=\"\",\"\",DATE(YEAR('4.1 Bro'!B2),MONTH('4.1 Bro'!B2)-1,DAY('4.1 Bro'!B2)))","v":""},"Byggnadsverk","Bro"," --","Data","4.1.1","4.1","BATMAN","BATMAN"]
["05.1 månad före ÖFT",{"$f":"IF(COUNTIF('4.1 Bro'!E17:E22,\"X\")>0,\"X\",\"\")","v":""},{"$f":"IF($E$35=\"\",\"\",DATE(YEAR(E35),MONTH(E35),DAY(E35)-14))","v":""},null,{"$f":"IF($B$16=\"\",\"\",DATE(YEAR('4.1 Bro'!B2),MONTH('4.1 Bro'!B2)-1,DAY('4.1 Bro'!B2)))","v":""},"Byggnadsverk","Bro"," --","Dokument","4.1.2","4.1","BATMAN","BATMAN"]
["05.1 månad före ÖFT",{"$f":"IF(COUNTIF('4.2 Tunnel och bergslänt'!E14:E15,\"X\")>0,\"X\",\"\")","v":""},{"$f":"IF($E$36=\"\",\"\",DATE(YEAR(E36),MONTH(E36),DAY(E36)-14))","v":""},null,{"$f":"IF($B$16=\"\",\"\",DATE(YEAR('4.2 Tunnel och bergslänt'!B2),MONTH('4.2 Tunnel och bergslänt'!B2)-1,DAY('4.2 Tunnel och bergslänt'!B2)))","v":""},"Byggnadsverk","Tunnel och bergslänt"," --","Data","4.2.1","4.2","BATMAN","BATMAN"]
["05.1 månad före ÖFT",{"$f":"IF(COUNTIF('4.2 Tunnel och bergslänt'!E17:E23,\"X\")>0,\"X\",\"\")","v":""},{"$f":"IF($E$37=\"\",\"\",DATE(YEAR(E37),MONTH(E37),DAY(E37)-14))","v":""},null,{"$f":"IF($B$16=\"\",\"\",DATE(YEAR('4.2 Tunnel och bergslänt'!B2),MONTH('4.2 Tunnel och bergslänt'!B2)-1,DAY('4.2 Tunnel och bergslänt'!B2)))","v":""},"Byggnadsverk","Tunnel och bergslänt"," --","Dokument","4.2.2","4.2","BATMAN","BATMAN"]
["05.1 månad före ÖFT",{"$f":"IF(COUNTIF('4.3 Övriga byggnadsverk'!E14:E15,\"X\")>0,\"X\",\"\")","v":""},{"$f":"IF($E$38=\"\",\"\",DATE(YEAR(E38),MONTH(E38),DAY(E38)-14))","v":""},null,{"$f":"IF($B$16=\"\",\"\",DATE(YEAR('4.3 Övriga byggnadsverk'!B2),MONTH('4.3 Övriga byggnadsverk'!B2)-1,DAY('4.3 Övriga byggnadsverk'!B2)))","v":""},"Byggnadsverk","Övriga byggnadsverk"," --","Data","4.3.1","4.3","BATMAN","BATMAN"]
["05.1 månad före ÖFT",{"$f":"IF(COUNTIF('4.3 Övriga byggnadsverk'!E17:E22,\"X\")>0,\"X\",\"\")","v":""},{"$f":"IF($E$39=\"\",\"\",DATE(YEAR(E39),MONTH(E39),DAY(E39)-14))","v":""},null,{"$f":"IF($B$16=\"\",\"\",DATE(YEAR('4.3 Övriga byggnadsverk'!B2),MONTH('4.3 Övriga byggnadsverk'!B2)-1,DAY('4.3 Övriga byggnadsverk'!B2)))","v":""},"Byggnadsverk","Övriga byggnadsverk"," --","Dokument","4.3.2","4.3","BATMAN","BATMAN"]
["05.Dagen för ÖFT",{"$f":"IF(COUNTIF('4.1 Bro'!E27,\"X\")>0,\"X\",\"\")","v":""},{"$f":"IF($E$40=\"\",\"\",DATE(YEAR(E40),MONTH(E40),DAY(E40)))","v":""},null,{"$f":"IF($B$16=\"\",\"\",DATE(YEAR('4.1 Bro'!B2),MONTH('4.1 Bro'!B2),DAY('4.1 Bro'!B2)))","v":""},"Byggnadsverk","Bro"," --","Data","4.1.1","4.1","BATMAN","BATMAN"]
["05.Dagen för ÖFT",{"$f":"IF(COUNTIF('4.2 Tunnel och bergslänt'!E28,\"X\")>0,\"X\",\"\")","v":""},{"$f":"IF($E$41=\"\",\"\",DATE(YEAR(E41),MONTH(E41),DAY(E41)))","v":""},null,{"$f":"IF($B$16=\"\",\"\",DATE(YEAR('4.2 Tunnel och bergslänt'!B2),MONTH('4.2 Tunnel och bergslänt'!B2),DAY('4.2 Tunnel och bergslänt'!B2)))","v":""},"Byggnadsverk","Tunnel och bergslänt"," --","Data","4.1.2","4.2","BATMAN","BATMAN"]
["05.Dagen för ÖFT",{"$f":"IF(COUNTIF('4.3 Övriga byggnadsverk'!E27,\"X\")>0,\"X\",\"\")","v":""},{"$f":"IF($E$42=\"\",\"\",DATE(YEAR(E42),MONTH(E42),DAY(E42)))","v":""},null,{"$f":"IF($B$16=\"\",\"\",DATE(YEAR('4.3 Övriga byggnadsverk'!B2),MONTH('4.3 Övriga byggnadsverk'!B2),DAY('4.3 Övriga byggnadsverk'!B2)))","v":""},"Byggnadsverk","Övriga byggnadsverk"," --","Data","4.1.3","4.3","BATMAN","BATMAN"]
["06.2 veckor före slutbesiktning ",{"$f":"IF(COUNTIF('5.1 Anl.nära system'!F12:F13,\"X\")>0,\"X\",\"\")","v":""},{"$f":"IF($E$45=\"\",\"\",DATE(YEAR(E43),MONTH(E43),DAY(E43)-14))","v":""},null,{"$f":"IF($B$17=\"\",\"\",DATE(YEAR('5.1 Anl.nära system'!C2),MONTH('5.1 Anl.nära system'!C2),DAY('5.1 Anl.nära system'!C2)-14))","v":""},"Infrasystem","Anläggningsnära system (OT/ICT)"," --","Data","5.1.1","5.1","Mottagande förvaltning (PL) på VO Underhåll ","GusMaximo"]
["06.2 veckor före slutbesiktning ",{"$f":"IF(COUNTIF('5.1 Anl.nära system'!F15:F22,\"X\")>0,\"X\",\"\")","v":""},{"$f":"IF($E$45=\"\",\"\",DATE(YEAR(E44),MONTH(E44),DAY(E44)-14))","v":""},null,{"$f":"IF($B$17=\"\",\"\",DATE(YEAR('5.1 Anl.nära system'!C2),MONTH('5.1 Anl.nära system'!C2),DAY('5.1 Anl.nära system'!C2)-14))","v":""},"Infrasystem","Anläggningsnära system (OT/ICT)"," --","Dokument","5.1.3","5.1","Mottagande förvaltning (PL) på VO Underhåll ","Chaos"]
["06.2 veckor före slutbesiktning ",{"$f":"IF(COUNTIF('5.1 Anl.nära system'!F24:F27,\"X\")>0,\"X\",\"\")","v":""},{"$f":"IF($E$45=\"\",\"\",DATE(YEAR(E45),MONTH(E45),DAY(E45)-14))","v":""},null,{"$f":"IF($B$17=\"\",\"\",DATE(YEAR('5.1 Anl.nära system'!C2),MONTH('5.1 Anl.nära system'!C2),DAY('5.1 Anl.nära system'!C2)-14))","v":""},"Infrasystem","Anläggningsnära system (OT/ICT)"," --","Program o licens","5.1.4","5.1","PROVA","PROVA"]
["06.2 veckor före slutbesiktning ",{"$f":"IF(COUNTIF('5.10 Ventilation'!D12:D13,\"X\")>0,\"X\",\"\")","v":""},{"$f":"IF($E$46=\"\",\"\",DATE(YEAR(E46),MONTH(E46),DAY(E46)-14))","v":""},null,{"$f":"IF($B$17=\"\",\"\",DATE(YEAR('5.10 Ventilation'!C2),MONTH('5.10 Ventilation'!C2),DAY('5.10 Ventilation'!C2)-14))","v":""},"Infrasystem","Ventilation"," --","Data","5.10.1","5.10","Chaos","GusMaximo"]
["06.2 veckor före slutbesiktning ",{"$f":"IF(COUNTIF('5.10 Ventilation'!E15:E22,\"X\")>0,\"X\",\"\")","v":""},{"$f":"IF($E$47=\"\",\"\",DATE(YEAR(E47),MONTH(E47),DAY(E47)-14))","v":""},null,{"$f":"IF($B$17=\"\",\"\",DATE(YEAR('5.10 Ventilation'!C2),MONTH('5.10 Ventilation'!C2),DAY('5.10 Ventilation'!C2)-14))","v":""},"Infrasystem","Ventilation"," --","Dokument","5.10.2","5.10","Chaos","Maximo (länk till Chaos)"]
["06.2 veckor före slutbesiktning",{"$f":"IF(COUNTIF('5.10 Ventilation'!E24:E27,\"X\")>0,\"X\",\"\")","v":""},{"$f":"IF($E$48=\"\",\"\",DATE(YEAR(E48),MONTH(E48),DAY(E48)-14))","v":""},null,{"$f":"IF($B$17=\"\",\"\",DATE(YEAR('5.10 Ventilation'!C2),MONTH('5.10 Ventilation'!C2),DAY('5.10 Ventilation'!C2)-14))","v":""},"Infrasystem","Ventilation"," --","Program o licens","5.10.3","5.10","PROVA","PROVA"]
["06.2 veckor före slutbesiktning ",{"$f":"IF(COUNTIF('5.11 VViS'!E12:E13,\"X\")>0,\"X\",\"\")","v":""},{"$f":"IF($E$49=\"\",\"\",DATE(YEAR(E49),MONTH(E49),DAY(E49)-14))","v":""},null,{"$f":"IF($B$17=\"\",\"\",DATE(YEAR('5.11 VViS'!C2),MONTH('5.11 VViS'!C2),DAY('5.11 VViS'!C2)-14))","v":""},"Infrasystem","VViS"," --","Data","5.11.1","5.11","Chaos","GusMaximo"]
["06.2 veckor före slutbesiktning ",{"$f":"IF(COUNTIF('5.11 VViS'!E15:E24,\"X\")>0,\"X\",\"\")","v":""},{"$f":"IF($E$50=\"\",\"\",DATE(YEAR(E50),MONTH(E50),DAY(E50)-14))","v":""},null,{"$f":"IF($B$17=\"\",\"\",DATE(YEAR('5.11 VViS'!C2),MONTH('5.11 VViS'!C2),DAY('5.11 VViS'!C2)-14))","v":""},"Infrasystem","VViS"," --","Dokument","5.11.2","5.11","Chaos","GusMaximo"]
["06.2 veckor före slutbesiktning ",{"$f":"IF(COUNTIF('5.11 VViS'!E26:E30,\"X\")>0,\"X\",\"\")","v":""},{"$f":"IF($E$51=\"\",\"\",DATE(YEAR(E51),MONTH(E51),DAY(E51)-14))","v":""},null,{"$f":"IF($B$17=\"\",\"\",DATE(YEAR('5.11 VViS'!C2),MONTH('5.11 VViS'!C2),DAY('5.11 VViS'!C2)-14))","v":""},"Infrasystem","VViS"," --","Program o licens","5.11.3","5.11","Ansvarig PL på VO Underhåll","PROVA"]
["06.2 veckor före slutbesiktning ",{"$f":"IF(COUNTIF('5.2 ATK Mätstation'!E12:E13,\"X\")>0,\"X\",\"\")","v":""},{"$f":"IF($E$52=\"\",\"\",DATE(YEAR(E52),MONTH(E52),DAY(E52)-14))","v":""},null,{"$f":"IF($B$17=\"\",\"\",DATE(YEAR('5.2 ATK Mätstation'!C2),MONTH('5.2 ATK Mätstation'!C2),DAY('5.2 ATK Mätstation'!C2)-14))","v":""},"Infrasystem","ATK Mätstation"," --","Data","5.2.1","5.2","Chaos","GusMaximo"]
["06.2 veckor före slutbesiktning ",{"$f":"IF(COUNTIF('5.2 ATK Mätstation'!E15,\"X\")>0,\"X\",\"\")","v":""},{"$f":"IF($E$53=\"\",\"\",DATE(YEAR(E53),MONTH(E53),DAY(E53)-14))","v":""},null,{"$f":"IF($B$17=\"\",\"\",DATE(YEAR('5.2 ATK Mätstation'!C2),MONTH('5.2 ATK Mätstation'!C2),DAY('5.2 ATK Mätstation'!C2)-14))","v":""},"Infrasystem","ATK Mätstation"," --","Dokument","5.2.2","5.2","Chaos","Maximo (länk till Chaos)"]
["06.2 veckor före slutbesiktning ",{"$f":"IF(COUNTIF('5.3 Belysning'!E13:E14,\"X\")>0,\"X\",\"\")","v":""},{"$f":"IF($E$54=\"\",\"\",DATE(YEAR(E54),MONTH(E54),DAY(E54)-14))","v":""},null,{"$f":"IF($B$17=\"\",\"\",DATE(YEAR('5.3 Belysning'!C2),MONTH('5.3 Belysning'!C2),DAY('5.3 Belysning'!C2)-14))","v":""},"Infrasystem","Belysning"," --","Data","5.3.1","5.3","Chaos","GusMaximo"]
["06.2 veckor före slutbesiktning ",{"$f":"IF(COUNTIF('5.3 Belysning'!E16:E60,\"X\")>0,\"X\",\"\")","v":""},{"$f":"IF($E$55=\"\",\"\",DATE(YEAR(E55),MONTH(E55),DAY(E55)-14))","v":""},null,{"$f":"IF($B$17=\"\",\"\",DATE(YEAR('5.3 Belysning'!C2),MONTH('5.3 Belysning'!C2),DAY('5.3 Belysning'!C2)-14))","v":""},"Infrasystem","Belysning"," --","Dokument","5.3.2","5.3","Chaos","Maximo (länk till Chaos)"]
["06.2 veckor före slutbesiktning ",{"$f":"IF(COUNTIF('5.4 Brukaravg'!E12:E13,\"X\")>0,\"X\",\"\")","v":""},{"$f":"IF($E$56=\"\",\"\",DATE(YEAR(E56),MONTH(E56),DAY(E56)-14))","v":""},null,{"$f":"IF($B$17=\"\",\"\",DATE(YEAR('5.4 Brukaravg'!C2),MONTH('5.4 Brukaravg'!C2),DAY('5.4 Brukaravg'!C2)-14))","v":""},"Infrasystem","Brukaravgiftssystem"," --","Data","5.4.1","5.4","Chaos","GusMaximo"]
["06.2 veckor före slutbesiktning ",{"$f":"IF(COUNTIF('5.4 Brukaravg'!E15:E21,\"X\")>0,\"X\",\"\")","v":""},{"$f":"IF($E$57=\"\",\"\",DATE(YEAR(E57),MONTH(E57),DAY(E57)-14))","v":""},null,{"$f":"IF($B$17=\"\",\"\",DATE(YEAR('5.4 Brukaravg'!C2),MONTH('5.4 Brukaravg'!C2),DAY('5.4 Brukaravg'!C2)-14))","v":""},"Infrasystem","Brukaravgiftssystem"," --","Dokument","5.4.2","5.4","Chaos","Maximo (länk till Chaos)"]
["06.2 veckor före slutbesiktning ",{"$f":"IF(COUNTIF('5.4 Brukaravg'!E23:E26,\"X\")>0,\"X\",\"\")","v":""},{"$f":"IF($E$58=\"\",\"\",DATE(YEAR(E58),MONTH(E58),DAY(E58)-14))","v":""},null,{"$f":"IF($B$17=\"\",\"\",DATE(YEAR('5.4 Brukaravg'!C2),MONTH('5.4 Brukaravg'!C2),DAY('5.4 Brukaravg'!C2)-14))","v":""},"Infrasystem","Brukaravgiftssystem"," --","Program o licens","5.4.3","5.4","PROVA","PROVA"]
["06.2 veckor före slutbesiktning ",{"$f":"IF(COUNTIF('5.5 Elkraft'!E12:E13,\"X\")>0,\"X\",\"\")","v":""},{"$f":"IF($E$59=\"\",\"\",DATE(YEAR(E59),MONTH(E59),DAY(E59)-14))","v":""},null,{"$f":"IF($B$17=\"\",\"\",DATE(YEAR('5.5 Elkraft'!C2),MONTH('5.5 Elkraft'!C2),DAY('5.5 Elkraft'!C2)-14))","v":""},"Infrasystem","Elkraft"," --","Data","5.5.1","5.5","Chaos","GusMaximo"]
["06.2 veckor före slutbesiktning ",{"$f":"IF(COUNTIF('5.5 Elkraft'!E15:E23,\"X\")>0,\"X\",\"\")","v":""},{"$f":"IF($E$60=\"\",\"\",DATE(YEAR(E60),MONTH(E60),DAY(E60)-14))","v":""},null,{"$f":"IF($B$17=\"\",\"\",DATE(YEAR('5.5 Elkraft'!C2),MONTH('5.5 Elkraft'!C2),DAY('5.5 Elkraft'!C2)-14))","v":""},"Infrasystem","Elkraft"," --","Dokument","5.5.2","5.5","Chaos","Maximo (länk till Chaos)"]
["06.2 veckor före slutbesiktning ",{"$f":"IF(COUNTIF('5.5 Elkraft'!E25:E28,\"X\")>0,\"X\",\"\")","v":""},{"$f":"IF($E$61=\"\",\"\",DATE(YEAR(E61),MONTH(E61),DAY(E61)-14))","v":""},null,{"$f":"IF($B$17=\"\",\"\",DATE(YEAR('5.5 Elkraft'!C2),MONTH('5.5 Elkraft'!C2),DAY('5.5 Elkraft'!C2)-14))","v":""},"Infrasystem","Elkraft"," --","Program o licens","5.5.3","5.5","PROVA","PROVA"]
["06.2 veckor före slutbesiktning ",{"$f":"IF(COUNTIF('5.6 Styr och regler'!G12:G13,\"X\")>0,\"X\",\"\")","v":""},{"$f":"IF($E$62=\"\",\"\",DATE(YEAR(E62),MONTH(E62),DAY(E62)-14))","v":""},null,{"$f":"IF($B$17=\"\",\"\",DATE(YEAR('5.6 Styr och regler'!C2),MONTH('5.6 Styr och regler'!C2),DAY('5.6 Styr och regler'!C2)-14))","v":""},"Infrasystem","Styr- och reglersystem"," --","Data","5.6.1","5.6","Chaos","GusMaximo"]
["06.2 veckor före slutbesiktning ",{"$f":"IF(COUNTIF('5.6 Styr och regler'!G15:G38,\"X\")>0,\"X\",\"\")","v":""},{"$f":"IF($E$63=\"\",\"\",DATE(YEAR(E63),MONTH(E63),DAY(E63)-14))","v":""},null,{"$f":"IF($B$17=\"\",\"\",DATE(YEAR('5.6 Styr och regler'!C2),MONTH('5.6 Styr och regler'!C2),DAY('5.6 Styr och regler'!C2)-14))","v":""},"Infrasystem","Styr- och reglersystem","Styr och regler","Dokument","5.6.1.3","5.6","Chaos","Maximo (länk till Chaos)"]
["06.2 veckor före slutbesiktning ",{"$f":"IF(COUNTIF('5.6 Styr och regler'!G23:G38,\"X\")>0,\"X\",\"\")","v":""},{"$f":"IF($E$63=\"\",\"\",DATE(YEAR(E64),MONTH(E64),DAY(E64)-14))","v":""},null,{"$f":"IF($B$17=\"\",\"\",DATE(YEAR('5.6 Styr och regler'!C2),MONTH('5.6 Styr och regler'!C2),DAY('5.6 Styr och regler'!C2)-14))","v":""},"Infrasystem","Styr- och reglersystem","Miljömätning","Dokument","5.6.2.3","5.6","Chaos","Maximo (länk till Chaos)"]
["06.2 veckor före slutbesiktning ",{"$f":"IF(COUNTIF('5.6 Styr och regler'!G40:G43,\"X\")>0,\"X\",\"\")","v":""},{"$f":"IF($E$65=\"\",\"\",DATE(YEAR(E65),MONTH(E65),DAY(E65)-14))","v":""},null,{"$f":"IF($B$17=\"\",\"\",DATE(YEAR('5.6 Styr och regler'!C2),MONTH('5.6 Styr och regler'!C2),DAY('5.6 Styr och regler'!C2)-14))","v":""},"Infrasystem","Styr- och reglersystem"," --","Program o licens","5.6.2.4","5.6","PROVA","PROVA"]
["06.2 veckor före slutbesiktning ",{"$f":"IF(COUNTIF('5.7 Telesystem'!G12:G13,\"X\")>0,\"X\",\"\")","v":""},{"$f":"IF($E$66=\"\",\"\",DATE(YEAR(E66),MONTH(E66),DAY(E66)-14))","v":""},null,{"$f":"IF($B$17=\"\",\"\",DATE(YEAR('5.7 Telesystem'!C2),MONTH('5.7 Telesystem'!C2),DAY('5.7 Telesystem'!C2)-14))","v":""},"Infrasystem","Telesystem"," --","Data","5.7.1","5.7","Chaos","GusMaximo"]
["06.2 veckor före slutbesiktning ",{"$f":"IF(COUNTIF('5.7 Telesystem'!G15:G35,\"X\")>0,\"X\",\"\")","v":""},{"$f":"IF($E$67=\"\",\"\",DATE(YEAR(E67),MONTH(E67),DAY(E67)-14))","v":""},null,{"$f":"IF($B$17=\"\",\"\",DATE(YEAR('5.7 Telesystem'!C2),MONTH('5.7 Telesystem'!C2),DAY('5.7 Telesystem'!C2)-14))","v":""},"Infrasystem","Telesystem","ITV","Dokument","5.7.1.3","5.7","Chaos","Maximo (länk till Chaos)"]
["06.2 veckor före slutbesiktning ",{"$f":"IF(COUNTIF('5.7 Telesystem'!G36:G42,\"X\")>0,\"X\",\"\")","v":""},{"$f":"IF($E$70=\"\",\"\",DATE(YEAR(E68),MONTH(E68),DAY(E68)-14))","v":""},null,{"$f":"IF($B$17=\"\",\"\",DATE(YEAR('5.7 Telesystem'!C2),MONTH('5.7 Telesystem'!C2),DAY('5.7 Telesystem'!C2)-14))","v":""},"Infrasystem","Telesystem","Incidentdetektering (kamerabaserad)","Dokument","5.7.2.3","5.7","Chaos","Maximo (länk till Chaos)"]
["06.2 veckor före slutbesiktning ",{"$f":"IF(COUNTIF('5.7 Telesystem'!G43:G58,\"X\")>0,\"X\",\"\")","v":""},{"$f":"IF($E$70=\"\",\"\",DATE(YEAR(E69),MONTH(E69),DAY(E69)-14))","v":""},null,{"$f":"IF($B$17=\"\",\"\",DATE(YEAR('5.7 Telesystem'!C2),MONTH('5.7 Telesystem'!C2),DAY('5.7 Telesystem'!C2)-14))","v":""},"Infrasystem","Telesystem","Brandlarm","Dokument","5.7.3.3","5.7","Chaos","Maximo (länk till Chaos)"]
["06.2 veckor före slutbesiktning ",{"$f":"IF(COUNTIF('5.7 Telesystem'!G59:G72,\"X\")>0,\"X\",\"\")","v":""},{"$f":"IF($E$70=\"\",\"\",DATE(YEAR(E70),MONTH(E70),DAY(E70)-14))","v":""},null,{"$f":"IF($B$17=\"\",\"\",DATE(YEAR('5.7 Telesystem'!C2),MONTH('5.7 Telesystem'!C2),DAY('5.7 Telesystem'!C2)-14))","v":""},"Infrasystem","Telesystem","Passerkontroll","Dokument","5.7.4.3","5.7","Chaos","Maximo (länk till Chaos)"]
["06.2 veckor före slutbesiktning ",{"$f":"IF(COUNTIF('5.7 Telesystem'!G73:G84,\"X\")>0,\"X\",\"\")","v":""},{"$f":"IF($E$72=\"\",\"\",DATE(YEAR(E71),MONTH(E71),DAY(E71)-14))","v":""},null,{"$f":"IF($B$17=\"\",\"\",DATE(YEAR('5.7 Telesystem'!C2),MONTH('5.7 Telesystem'!C2),DAY('5.7 Telesystem'!C2)-14))","v":""},"Infrasystem","Telesystem","Inbrottslarm","Dokument","5.7.5.3","5.7","Chaos","Maximo (länk till Chaos)"]
["06.2 veckor före slutbesiktning ",{"$f":"IF(COUNTIF('5.7 Telesystem'!G85:G91,\"X\")>0,\"X\",\"\")","v":""},{"$f":"IF($E$72=\"\",\"\",DATE(YEAR(E72),MONTH(E72),DAY(E72)-14))","v":""},null,{"$f":"IF($B$17=\"\",\"\",DATE(YEAR('5.7 Telesystem'!C2),MONTH('5.7 Telesystem'!C2),DAY('5.7 Telesystem'!C2)-14))","v":""},"Infrasystem","Telesystem","Meddelande- och PA-system","Dokument","5.7.6.3","5.7","Chaos","Maximo (länk till Chaos)"]
["06.2 veckor före slutbesiktning ",{"$f":"IF(COUNTIF('5.7 Telesystem'!G92:G99,\"X\")>0,\"X\",\"\")","v":""},{"$f":"IF($E$73=\"\",\"\",DATE(YEAR(E73),MONTH(E73),DAY(E73)-14))","v":""},null,{"$f":"IF($B$17=\"\",\"\",DATE(YEAR('5.7 Telesystem'!C2),MONTH('5.7 Telesystem'!C2),DAY('5.7 Telesystem'!C2)-14))","v":""},"Infrasystem","Telesystem","Hjälptelefoner","Dokument","5.7.7.3","5.7","Chaos","Maximo (länk till Chaos)"]
["06.2 veckor före slutbesiktning ",{"$f":"IF(COUNTIF('5.7 Telesystem'!G100:G108,\"X\")>0,\"X\",\"\")","v":""},{"$f":"IF($E$74=\"\",\"\",DATE(YEAR(E74),MONTH(E74),DAY(E74)-14))","v":""},null,{"$f":"IF($B$17=\"\",\"\",DATE(YEAR('5.7 Telesystem'!C2),MONTH('5.7 Telesystem'!C2),DAY('5.7 Telesystem'!C2)-14))","v":""},"Infrasystem","Telesystem","Radio","Dokument","5.7.8.3","5.7","Chaos","Maximo (länk till Chaos)"]
["06.2 veckor före slutbesiktning ",{"$f":"IF(COUNTIF('5.8 Trafiksystem'!G12:G14,\"X\")>0,\"X\",\"\")","v":""},{"$f":"IF($E$75=\"\",\"\",DATE(YEAR(E75),MONTH(E75),DAY(E75)-14))","v":""},null,{"$f":"IF($B$17=\"\",\"\",DATE(YEAR('5.8 Trafiksystem'!C2),MONTH('5.8 Trafiksystem'!C2),DAY('5.8 Trafiksystem'!C2)-14))","v":""},"Infrasystem","Trafiksystem"," --","Data","5.8.1","5.8","Chaos","GusMaximo"]
["06.2 veckor före slutbesiktning ",{"$f":"IF(COUNTIF('5.8 Trafiksystem'!G16:G33,\"X\")>0,\"X\",\"\")","v":""},{"$f":"IF($E$76=\"\",\"\",DATE(YEAR(E76),MONTH(E76),DAY(E76)-14))","v":""},null,{"$f":"IF($B$17=\"\",\"\",DATE(YEAR('5.8 Trafiksystem'!C2),MONTH('5.8 Trafiksystem'!C2),DAY('5.8 Trafiksystem'!C2)-14))","v":""},"Infrasystem","Trafiksystem","Trafiksignal","Dokument","5.8.1.3","5.8","Chaos","Maximo (länk till Chaos)"]
["06.2 veckor före slutbesiktning ",{"$f":"IF(COUNTIF('5.8 Trafiksystem'!G34:G51,\"X\")>0,\"X\",\"\")","v":""},{"$f":"IF($E$76=\"\",\"\",DATE(YEAR(E77),MONTH(E77),DAY(E77)-14))","v":""},null,{"$f":"IF($B$17=\"\",\"\",DATE(YEAR('5.8 Trafiksystem'!C2),MONTH('5.8 Trafiksystem'!C2),DAY('5.8 Trafiksystem'!C2)-14))","v":""},"Infrasystem","Trafiksystem","Rampstyrning","Dokument","5.8.2.3","5.8","Chaos","Maximo (länk till Chaos)"]
["06.2 veckor före slutbesiktning ",{"$f":"IF(COUNTIF('5.8 Trafiksystem'!G52:G61,\"X\")>0,\"X\",\"\")","v":""},{"$f":"IF($E$78=\"\",\"\",DATE(YEAR(E78),MONTH(E78),DAY(E78)-14))","v":""},null,{"$f":"IF($B$17=\"\",\"\",DATE(YEAR('5.8 Trafiksystem'!C2),MONTH('5.8 Trafiksystem'!C2),DAY('5.8 Trafiksystem'!C2)-14))","v":""},"Infrasystem","Trafiksystem","Trafikrelaterad mätning","Dokument","5.8.3.3","5.8","Chaos","Maximo (länk till Chaos)"]
["06.2 veckor före slutbesiktning ",{"$f":"IF(COUNTIF('5.8 Trafiksystem'!G62:G75,\"X\")>0,\"X\",\"\")","v":""},{"$f":"IF($E$78=\"\",\"\",DATE(YEAR(E79),MONTH(E79),DAY(E79)-14))","v":""},null,{"$f":"IF($B$17=\"\",\"\",DATE(YEAR('5.8 Trafiksystem'!C2),MONTH('5.8 Trafiksystem'!C2),DAY('5.8 Trafiksystem'!C2)-14))","v":""},"Infrasystem","Trafiksystem","Motorvägskontrollsystem (MCS)","Dokument","5.8.4.3","5.8","Chaos","Maximo (länk till Chaos)"]
["06.2 veckor före slutbesiktning ",{"$f":"IF(COUNTIF('5.8 Trafiksystem'!G76:G91,\"X\")>0,\"X\",\"\")","v":""},"",null,{"$f":"IF($B$17=\"\",\"\",DATE(YEAR('5.8 Trafiksystem'!C2),MONTH('5.8 Trafiksystem'!C2),DAY('5.8 Trafiksystem'!C2)-14))","v":""},"Infrasystem","Trafiksystem","Variabel vägvisning (VDS)","Dokument","5.8.5.3","5.8","Chaos","Maximo (länk till Chaos)"]
["06.2 veckor före slutbesiktning ",{"$f":"IF(COUNTIF('5.8 Trafiksystem'!G92:G107,\"X\")>0,\"X\",\"\")","v":""},"",null,{"$f":"IF($B$17=\"\",\"\",DATE(YEAR('5.8 Trafiksystem'!C2),MONTH('5.8 Trafiksystem'!C2),DAY('5.8 Trafiksystem'!C2)-14))","v":""},"Infrasystem","Trafiksystem","Omställbart vägmärke","Dokument","5.8.6.3","5.8","Chaos","Maximo (länk till Chaos)"]
["06.2 veckor före slutbesiktning ",{"$f":"IF(COUNTIF('5.8 Trafiksystem'!G108:G121,\"X\")>0,\"X\",\"\")","v":""},"",null,{"$f":"IF($B$17=\"\",\"\",DATE(YEAR('5.8 Trafiksystem'!C2),MONTH('5.8 Trafiksystem'!C2),DAY('5.8 Trafiksystem'!C2)-14))","v":""},"Infrasystem","Trafiksystem","Variabel hastighet (VH)","Dokument","5.8.7.3","5.8","Chaos","Maximo (länk till Chaos)"]
["06.2 veckor före slutbesiktning ",{"$f":"IF(COUNTIF('5.8 Trafiksystem'!G122:G135,\"X\")>0,\"X\",\"\")","v":""},"",null,{"$f":"IF($B$17=\"\",\"\",DATE(YEAR('5.8 Trafiksystem'!C2),MONTH('5.8 Trafiksystem'!C2),DAY('5.8 Trafiksystem'!C2)-14))","v":""},"Infrasystem","Trafiksystem","Viltvarningssystem","Dokument","5.8.8.3","5.8","Chaos","Maximo (länk till Chaos)"]
["06.2 veckor före slutbesiktning ",{"$f":"IF(COUNTIF('5.8 Trafiksystem'!G136:G150,\"X\")>0,\"X\",\"\")","v":""},"",null,{"$f":"IF($B$17=\"\",\"\",DATE(YEAR('5.8 Trafiksystem'!C2),MONTH('5.8 Trafiksystem'!C2),DAY('5.8 Trafiksystem'!C2)-14))","v":""},"Infrasystem","Trafiksystem","Trafikinformationstavla","Dokument","5.8.9.3","5.8","Chaos","Maximo (länk till Chaos)"]
["06.2 veckor före slutbesiktning ",{"$f":"IF(COUNTIF('5.8 Trafiksystem'!G151:G163,\"X\")>0,\"X\",\"\")","v":""},"",null,{"$f":"IF($B$17=\"\",\"\",DATE(YEAR('5.8 Trafiksystem'!C2),MONTH('5.8 Trafiksystem'!C2),DAY('5.8 Trafiksystem'!C2)-14))","v":""},"Infrasystem","Trafiksystem","Trafikinformationsskylt (TIS) och Tunnelentreskylt(TES)","Dokument","5.8.10.3","5.8","Chaos","Maximo (länk till Chaos)"]
["06.2 veckor före slutbesiktning ",{"$f":"IF(COUNTIF('5.8 Trafiksystem'!G164:G175,\"X\")>0,\"X\",\"\")","v":""},"",null,{"$f":"IF($B$17=\"\",\"\",DATE(YEAR('5.8 Trafiksystem'!C2),MONTH('5.8 Trafiksystem'!C2),DAY('5.8 Trafiksystem'!C2)-14))","v":""},"Infrasystem","Trafiksystem","Incidentindikeringssystem","Dokument","5.8.11.3","5.8","Chaos","Maximo (länk till Chaos)"]
["06.2 veckor före slutbesiktning ",{"$f":"IF(COUNTIF('5.8 Trafiksystem'!G176:G186,\"X\")>0,\"X\",\"\")","v":""},"",null,{"$f":"IF($B$17=\"\",\"\",DATE(YEAR('5.8 Trafiksystem'!C2),MONTH('5.8 Trafiksystem'!C2),DAY('5.8 Trafiksystem'!C2)-14))","v":""},"Infrasystem","Trafiksystem","Viktkontroll (HWIM)","Dokument","5.8.12.3","5.8","Chaos","Maximo (länk till Chaos)"]
["06.2 veckor före slutbesiktning ",{"$f":"IF(COUNTIF('5.8 Trafiksystem'!G187:G201,\"X\")>0,\"X\",\"\")","v":""},"",null,{"$f":"IF($B$17=\"\",\"\",DATE(YEAR('5.8 Trafiksystem'!C2),MONTH('5.8 Trafiksystem'!C2),DAY('5.8 Trafiksystem'!C2)-14))","v":""},"Infrasystem","Trafiksystem","Kontrollplats","Dokument","5.8.13.3","5.8","Chaos","Maximo (länk till Chaos)"]
["06.2 veckor före slutbesiktning ",{"$f":"IF(COUNTIF('5.8 Trafiksystem'!G202:G215,\"X\")>0,\"X\",\"\")","v":""},{"$f":"IF($E$89=\"\",\"\",DATE(YEAR(E89),MONTH(E89),DAY(E89)-14))","v":""},null,{"$f":"IF($B$17=\"\",\"\",DATE(YEAR('5.8 Trafiksystem'!C2),MONTH('5.8 Trafiksystem'!C2),DAY('5.8 Trafiksystem'!C2)-14))","v":""},"Infrasystem","Trafiksystem","Avstängningsanordning","Dokument","5.8.14.3","5.8","Chaos","Maximo (länk till Chaos)"]
["06.2 veckor före slutbesiktning ",{"$f":"IF(COUNTIF('5.8 Trafiksystem'!G216:G229,\"X\")>0,\"X\",\"\")","v":""},{"$f":"IF($E$89=\"\",\"\",DATE(YEAR(E90),MONTH(E90),DAY(E90)-14))","v":""},null,{"$f":"IF($B$17=\"\",\"\",DATE(YEAR('5.8 Trafiksystem'!C2),MONTH('5.8 Trafiksystem'!C2),DAY('5.8 Trafiksystem'!C2)-14))","v":""},"Infrasystem","Trafiksystem","Aktivt farthinder","Dokument","5.8.15.3","5.8","Chaos","Maximo (länk till Chaos)"]
["06.2 veckor före slutbesiktning ",{"$f":"IF(COUNTIF('5.8 Trafiksystem'!G230:G241,\"X\")>0,\"X\",\"\")","v":""},"",null,{"$f":"IF($B$17=\"\",\"\",DATE(YEAR('5.8 Trafiksystem'!C2),MONTH('5.8 Trafiksystem'!C2),DAY('5.8 Trafiksystem'!C2)-14))","v":""},"Infrasystem","Trafiksystem","Bussemafor","Dokument","5.8.16.3","5.8","Chaos","Maximo (länk till Chaos)"]
["06.2 veckor före slutbesiktning ",{"$f":"IF(COUNTIF('5.8 Trafiksystem'!G242:G255,\"X\")>0,\"X\",\"\")","v":""},{"$f":"IF($E$92=\"\",\"\",DATE(YEAR(E92),MONTH(E92),DAY(E92)-14))","v":""},null,{"$f":"IF($B$17=\"\",\"\",DATE(YEAR('5.8 Trafiksystem'!C2),MONTH('5.8 Trafiksystem'!C2),DAY('5.8 Trafiksystem'!C2)-14))","v":""},"Infrasystem","Trafiksystem","Öppningsbar bro","Dokument","5.8.17.1","5.8","Chaos","Maximo (länk till Chaos)"]
["06.2 veckor före slutbesiktning ",{"$f":"IF(COUNTIF('5.9 VA'!E12:E13,\"X\")>0,\"X\",\"\")","v":""},{"$f":"IF($E$93=\"\",\"\",DATE(YEAR(E93),MONTH(E93),DAY(E93)-14))","v":""},null,{"$f":"IF($B$17=\"\",\"\",DATE(YEAR('5.9 VA'!C2),MONTH('5.9 VA'!C2),DAY('5.9 VA'!C2)-14))","v":""},"Infrasystem","VA"," --","Data","5.9.1","5.9","Chaos","GusMaximo"]
["06.2 veckor före slutbesiktning ",{"$f":"IF(COUNTIF('5.9 VA'!E15:E35,\"X\")>0,\"X\",\"\")","v":""},{"$f":"IF($E$94=\"\",\"\",DATE(YEAR(E94),MONTH(E94),DAY(E94)-14))","v":""},null,{"$f":"IF($B$17=\"\",\"\",DATE(YEAR('5.9 VA'!C2),MONTH('5.9 VA'!C2),DAY('5.9 VA'!C2)-14))","v":""},"Infrasystem","VA"," --","Dokument","5.9.2","5.9","Chaos","Maximo (länk till Chaos)"]
["06.2 veckor före slutbesiktning ",{"$f":"IF(COUNTIF('5.9 VA'!E37:E40,\"X\")>0,\"X\",\"\")","v":""},{"$f":"IF($E$95=\"\",\"\",DATE(YEAR(E95),MONTH(E95),DAY(E95)-14))","v":""},null,{"$f":"IF($B$17=\"\",\"\",DATE(YEAR('5.9 VA'!C2),MONTH('5.9 VA'!C2),DAY('5.9 VA'!C2)-14))","v":""},"Infrasystem","VA"," --","Program o licens","5.9.3","5.9","PROVA","PROVA"]
["06.2 veckor före slutbesiktning ",{"$f":"IF(COUNTIF('5.12 Samord. komplex vägtunnel'!F12:F27,\"X\")>0,\"X\",\"\")","v":""},{"$f":"IF($E$97=\"\",\"\",DATE(YEAR(E96),MONTH(E96),DAY(E96)-14))","v":""},null,{"$f":"IF($B$17=\"\",\"\",DATE(YEAR('5.12 Samord. komplex vägtunnel'!C2),MONTH('5.12 Samord. komplex vägtunnel'!C2),DAY('5.12 Samord. komplex vägtunnel'!C2)-14))","v":""},"Infrasystem","Samordning komplex vägtunnel"," --","Data","5.12.1","5.12","Chaos","GusMaximo"]
["06.2 veckor före slutbesiktning ",{"$f":"IF(COUNTIF('5.13.1 Dörrkomponenter'!E12:E13,\"X\")>0,\"X\",\"\")","v":""},{"$f":"IF($E$97=\"\",\"\",DATE(YEAR(E97),MONTH(E97),DAY(E97)-14))","v":""},null,{"$f":"IF($B$17=\"\",\"\",DATE(YEAR('5.13.1 Dörrkomponenter'!C2),MONTH('5.13.1 Dörrkomponenter'!C2),DAY('5.13.1 Dörrkomponenter'!C2)-14))","v":""},"Infrasystem","Dörrkomponenter"," --","Data","5.13.1.1","5.13.1","Chaos","GusMaximo"]
["06.2 veckor före slutbesiktning",{"$f":"IF(COUNTIF('5.13.1 Dörrkomponenter'!E15:E17,\"X\")>0,\"X\",\"\")","v":""},{"$f":"IF($E$98=\"\",\"\",DATE(YEAR(E98),MONTH(E98),DAY(E98)-14))","v":""},null,{"$f":"IF($B$17=\"\",\"\",DATE(YEAR('5.13.1 Dörrkomponenter'!C2),MONTH('5.13.1 Dörrkomponenter'!C2),DAY('5.13.1 Dörrkomponenter'!C2)-14))","v":""},"Infrasystem","Dörrkomponenter"," --","Dokument","5.13.1.3","5.13.1","Chaos","Maximo (länk till Chaos)"]
["06.2 veckor före slutbesiktning ",{"$f":"IF(COUNTIF('5.13.2 Husbyggdelar'!E12:E13,\"X\")>0,\"X\",\"\")","v":""},{"$f":"IF($E$99=\"\",\"\",DATE(YEAR(E99),MONTH(E99),DAY(E99)-14))","v":""},null,{"$f":"IF($B$17=\"\",\"\",DATE(YEAR('5.13.2 Husbyggdelar'!C2),MONTH('5.13.2 Husbyggdelar'!C2),DAY('5.13.2 Husbyggdelar'!C2)-14))","v":""},"Infrasystem","Husbyggdelar"," --","Data","5.13.2.1","5.13.2","Chaos","GusMaximo"]
["06.2 veckor före slutbesiktning ",{"$f":"IF(COUNTIF('5.13.2 Husbyggdelar'!E15:E28,\"X\")>0,\"X\",\"\")","v":""},{"$f":"IF($E$100=\"\",\"\",DATE(YEAR(E100),MONTH(E100),DAY(E100)-14))","v":""},null,{"$f":"IF($B$17=\"\",\"\",DATE(YEAR('5.13.2 Husbyggdelar'!C2),MONTH('5.13.2 Husbyggdelar'!C2),DAY('5.13.2 Husbyggdelar'!C2)-14))","v":""},"Infrasystem","Husbyggdelar"," --","Dokument","5.13.2.3","5.13.2","Chaos","Maximo (länk till Chaos)"]
["06.2 veckor före slutbesiktning ",{"$f":"IF(COUNTIF('9.3 Vägkropp'!G20:G26,\"X\")>0,\"X\",\"\")","v":""},{"$f":"IF($E$101=\"\",\"\",DATE(YEAR(E101),MONTH(E101),DAY(E101)-14))","v":""},null,{"$f":"IF($B$17=\"\",\"\",DATE(YEAR('9.3 Vägkropp'!B2),MONTH('9.3 Vägkropp'!B2),DAY('9.3 Vägkropp'!B2)-14))","v":""},"Vägyta, vägkropp","Vägkropp","Vägteknik","Dokument","9.3.2.2","9.3","Chaos","Chaos"]
["06.2 veckor före slutbesiktning ",{"$f":"IF(COUNTIF('9.4 Vägmarkering'!D12:D13,\"X\")>0,\"X\",\"\")","v":""},{"$f":"IF($E$102=\"\",\"\",DATE(YEAR(E102),MONTH(E102),DAY(E102)-14))","v":""},null,{"$f":"IF($B$17=\"\",\"\",DATE(YEAR('9.4 Vägmarkering'!B2),MONTH('9.4 Vägmarkering'!B2),DAY('9.4 Vägmarkering'!B2)-14))","v":""},"Vägyta, vägkropp","Vägmarkering"," --","Dokument","9.4.1","9.4","Chaos","Chaos"]
["06.2 veckor före slutbesiktning ",{"$f":"IF(COUNTIF('8.1 Vatten'!E12:E14,\"X\")>0,\"X\",\"\")","v":""},{"$f":"IF($E$103=\"\",\"\",DATE(YEAR(E103),MONTH(E103),DAY(E103)-14))","v":""},null,{"$f":"IF($B$17=\"\",\"\",DATE(YEAR('8.1 Vatten'!B2),MONTH('8.1 Vatten'!B2),DAY('8.1 Vatten'!B2)-14))","v":""},"Vägutrustning, sidoområden och sidoanläggningar","Vatten","Vattenskyddsåtgärd","Dokument","8.1.1.1","8.1","Chaos","Chaos"]
["06.2 veckor före slutbesiktning",{"$f":"IF(COUNTIF('8.1 Vatten'!E16:E19,\"X\")>0,\"X\",\"\")","v":""},{"$f":"IF($E$104=\"\",\"\",DATE(YEAR(E104),MONTH(E104),DAY(E104)-14))","v":""},null,{"$f":"IF($B$17=\"\",\"\",DATE(YEAR('8.1 Vatten'!B2),MONTH('8.1 Vatten'!B2),DAY('8.1 Vatten'!B2)-14))","v":""},"Vägutrustning, sidoområden och sidoanläggningar","Vatten","Öppen dagvattenanläggning","Dokument","8.1.2.1","8.1","Chaos","Chaos"]
["07.2 månader efter slutbesiktning",{"$f":"IF(COUNTIF('10.1 Adm-funkt. företeelser'!F42:F56,\"X\")>0,\"X\",\"\")","v":""},{"$f":"IF($E$105=\"\",\"\",DATE(YEAR(E105),MONTH(E105),DAY(E105)-14))","v":""},null,{"$f":"IF($B$14=\"\",\"\",DATE(YEAR('10.1 Adm-funkt. företeelser'!B2),MONTH('10.1 Adm-funkt. företeelser'!B2)+2,DAY('10.1 Adm-funkt. företeelser'!B2)))","v":""},"Övrigt","Administrativa  och funktionella företeelser","Funktionell företeelse","Data","10.1.1.2","10.1","Chaos","NVDB"]
["07.2 månader efter slutbesiktning",{"$f":"IF(COUNTIF('4.1 Bro'!E18:E23,\"X\")>0,\"X\",\"\")","v":""},{"$f":"IF($E$106=\"\",\"\",DATE(YEAR(E106),MONTH(E106),DAY(E106)-14))","v":""},null,{"$f":"IF($B$14=\"\",\"\",DATE(YEAR('10.1 Adm-funkt. företeelser'!B2),MONTH('10.1 Adm-funkt. företeelser'!B2)+2,DAY('10.1 Adm-funkt. företeelser'!B2)))","v":""},"Övrigt","Administrativa  och funktionella företeelser","Administrativ företeelse","Data","10.1.1.1","10.1","Chaos","Vägområdesdatabas"]
["07.2 månader efter slutbesiktning",{"$f":"IF(COUNTIF('9.1 Beläggning'!D12:D13,\"X\")>0,\"X\",\"\")","v":""},{"$f":"IF($E$107=\"\",\"\",DATE(YEAR(E107),MONTH(E107),DAY(E107)-60))","v":""},null,{"$f":"IF($B$17=\"\",\"\",DATE(YEAR('9.1 Beläggning'!B2),MONTH('9.1 Beläggning'!B2)+2,DAY('9.1 Beläggning'!B2)))","v":""},"Vägyta, vägkropp","Beläggning"," --","Data","9.1.1","9.1","PMS-beläggning","PMS-beläggning"]
["07.2 månader efter slutbesiktning",{"$f":"IF(COUNTIF('9.2 Grusväg'!D12:D13,\"X\")>0,\"X\",\"\")","v":""},{"$f":"IF($E$108=\"\",\"\",DATE(YEAR(E108),MONTH(E108),DAY(E108)-60))","v":""},null,{"$f":"IF($B$17=\"\",\"\",DATE(YEAR('9.2 Grusväg'!B2),MONTH('9.2 Grusväg'!B2)+2,DAY('9.2 Grusväg'!B2)))","v":""},"Vägyta, vägkropp","Grusväg"," --","Data","9.2.1","9.2","PMS-beläggning","PMS-beläggning"]
["07.2 månader efter slutbesiktning",{"$f":"IF(COUNTIF('9.3 Vägkropp'!G12:G13,\"X\")>0,\"X\",\"\")","v":""},{"$f":"IF($E$109=\"\",\"\",DATE(YEAR(E109),MONTH(E109),DAY(E109)-14))","v":""},null,{"$f":"IF($B$17=\"\",\"\",DATE(YEAR('9.3 Vägkropp'!B2),MONTH('9.3 Vägkropp'!B2)+2,DAY('9.3 Vägkropp'!B2)))","v":""},"Vägyta, vägkropp","Vägkropp"," --","Data","9.3.1","9.3","Chaos","NVDB"]
["07.2 månader efter slutbesiktning",{"$f":"IF(COUNTIF('9.3 Vägkropp'!G14:G15,\"X\")>0,\"X\",\"\")","v":""},{"$f":"IF($E$110=\"\",\"\",DATE(YEAR(E110),MONTH(E110),DAY(E110)-60))","v":""},null,{"$f":"IF($B$17=\"\",\"\",DATE(YEAR('9.3 Vägkropp'!B2),MONTH('9.3 Vägkropp'!B2)+2,DAY('9.3 Vägkropp'!B2)))","v":""},"Vägyta, vägkropp","Vägkropp"," --","Data","9.3.1","9.3","PMS-beläggning","PMS-beläggning"]
["08.3 månader efter slutbesiktning",{"$f":"IF(COUNTIF('4.1 Bro'!E32:E47,\"X\")>0,\"X\",\"\")","v":""},{"$f":"IF($E$111=\"\",\"\",DATE(YEAR(E111),MONTH(E111),DAY(E111)-30))","v":""},null,{"$f":"IF($B$16=\"\",\"\",DATE(YEAR('4.1 Bro'!B2),MONTH('4.1 Bro'!B2)+3,DAY('4.1 Bro'!B2)))","v":""},"Byggnadsverk","Bro"," --","Dokument","4.1.2","4.1","BATMAN","BATMAN"]
["08.3 månader efter slutbesiktning",{"$f":"IF(COUNTIF('4.2 Tunnel och bergslänt'!E33:E402,\"X\")>0,\"X\",\"\")","v":""},{"$f":"IF($E$112=\"\",\"\",DATE(YEAR(E112),MONTH(E112),DAY(E112)-30))","v":""},null,{"$f":"IF($B$16=\"\",\"\",DATE(YEAR('4.2 Tunnel och bergslänt'!B2),MONTH('4.2 Tunnel och bergslänt'!B2)+3,DAY('4.2 Tunnel och bergslänt'!B2)))","v":""},"Byggnadsverk","Tunnel"," --","Dokument","4.2.2","4.2","BATMAN","BATMAN"]
["08.3 månader efter slutbesiktning",{"$f":"IF(COUNTIF('4.3 Övriga byggnadsverk'!E32:E47,\"X\")>0,\"X\",\"\")","v":""},{"$f":"IF($E$113=\"\",\"\",DATE(YEAR(E113),MONTH(E113),DAY(E113)-30))","v":""},null,{"$f":"IF($B$16=\"\",\"\",DATE(YEAR('4.3 Övriga byggnadsverk'!B2),MONTH('4.3 Övriga byggnadsverk'!B2)+3,DAY('4.3 Övriga byggnadsverk'!B2)))","v":""},"Byggnadsverk","Övriga byggnadsverk"," --","Dokument","4.3.2","4.3","BATMAN","BATMAN"]
["08.3 månader efter slutbesiktning",{"$f":"IF(COUNTIF('10.2 Miljö'!F13,\"X\")>0,\"X\",\"\")","v":""},{"$f":"IF($E$114=\"\",\"\",DATE(YEAR(E114),MONTH(E114),DAY(E114)-60))","v":""},null,{"$f":"IF($B$17=\"\",\"\",DATE(YEAR('10.2 Miljö'!B2),MONTH('10.2 Miljö'!B2)+3,DAY('10.2 Miljö'!B2)))","v":""},"Övrigt","Miljö","Förorenade områden och förorenade massor","Data","10.2.1.1","10.2","LEB","LEB"]
["08.3 månader efter slutbesiktning",{"$f":"IF(COUNTIF('10.2 Miljö'!F30:F38,\"X\")>0,\"X\",\"\")","v":""},{"$f":"IF($E$115=\"\",\"\",DATE(YEAR(E115),MONTH(E115),DAY(E115)-60))","v":""},null,{"$f":"IF($B$17=\"\",\"\",DATE(YEAR('10.2 Miljö'!B2),MONTH('10.2 Miljö'!B2)+3,DAY('10.2 Miljö'!B2)))","v":""},"Övrigt","Miljö","Förorenade områden och förorenade massor","Dokument","10.2.2.1","10.2","Diariet ","LEB (länk till Diariet)"]
["08.3 månader efter slutbesiktning",{"$f":"IF(COUNTIF('10.2 Miljö'!F14:F15,\"X\")>0,\"X\",\"\")","v":""},{"$f":"IF($E$117=\"\",\"\",DATE(YEAR(E116),MONTH(E116),DAY(E116)-60))","v":""},null,{"$f":"IF($B$17=\"\",\"\",DATE(YEAR('10.2 Miljö'!B1),MONTH('10.2 Miljö'!B1)+3,DAY('10.2 Miljö'!B1)))","v":""},"Övrigt","Miljö","Buller och Vibrationer","Data","10.2.1.2","10.2","NBDB","NBDB"]
["08.3 månader efter slutbesiktning",{"$f":"IF(COUNTIF('10.2 Miljö'!F16,\"X\")>0,\"X\",\"\")","v":""},{"$f":"IF($E$117=\"\",\"\",DATE(YEAR(E117),MONTH(E117),DAY(E117)-60))","v":""},null,{"$f":"IF($B$17=\"\",\"\",DATE(YEAR('10.2 Miljö'!B2),MONTH('10.2 Miljö'!B2)+3,DAY('10.2 Miljö'!B2)))","v":""},"Övrigt","Miljö","Analysdata/Mätdata","Data","10.2.1.3","10.2","Analys och mätdatabas","Analys och mätdatabas"]
["08.3 månader efter slutbesiktning",{"$f":"IF(COUNTIF('10.2 Miljö'!F17:F28,\"X\")>0,\"X\",\"\")","v":""},{"$f":"IF($E$119=\"\",\"\",DATE(YEAR(E118),MONTH(E118),DAY(E118)-60))","v":""},null,{"$f":"IF($B$17=\"\",\"\",DATE(YEAR('10.2 Miljö'!B2),MONTH('10.2 Miljö'!B2)+3,DAY('10.2 Miljö'!B2)))","v":""},"Övrigt","Miljö","Miljöföreteelser","Data","10.2.1.4","10.2","Miljöwebb Landskap","Miljöwebb Landskap"]
["08.3 månader efter slutbesiktning",{"$f":"IF(COUNTIF('10.2 Miljö'!F17:F28,\"X\")>0,\"X\",\"\")","v":""},{"$f":"IF($E$119=\"\",\"\",DATE(YEAR(E119),MONTH(E119),DAY(E119)-60))","v":""},null,{"$f":"IF($B$17=\"\",\"\",DATE(YEAR('10.2 Miljö'!B2),MONTH('10.2 Miljö'!B2)+3,DAY('10.2 Miljö'!B2)))","v":""},"Övrigt","Miljö","Miljöföreteelser","Dokument","10.2.2.2","10.2","Miljöwebb Landskap","Miljöwebb Landskap"]
["08.3 månader efter slutbesiktning",{"$f":"IF(COUNTIF('10.2 Miljö'!F40:F48,\"X\")>0,\"X\",\"\")","v":""},{"$f":"IF($E$120=\"\",\"\",DATE(YEAR(E120),MONTH(E120),DAY(E120)-60))","v":""},null,{"$f":"IF($B$17=\"\",\"\",DATE(YEAR('10.2 Miljö'!B2),MONTH('10.2 Miljö'!B2)+3,DAY('10.2 Miljö'!B2)))","v":""},"Övrigt","Miljö","Övrigt om miljö","Dokument","10.2.2.3","10.2","Chaos","Chaos"]
["08.3 månader efter slutbesiktning",{"$f":"IF(COUNTIF('6.1 Siter och kabel'!F48:F67,\"X\")>0,\"X\",\"\")","v":""},{"$f":"IF($E$121=\"\",\"\",DATE(YEAR(E121),MONTH(E121),DAY(E121)-30))","v":""},null,{"$f":"IF($B$17=\"\",\"\",DATE(YEAR('6.1 Siter och kabel'!B3),MONTH('6.1 Siter och kabel'!B3)+3,DAY('6.1 Siter och kabel'!B3)))","v":""},"IT- och telekominfrastruktur","Siter och kabel","Kabelanläggning","Dokument","6.1.1.1","6.1","Chaos","ProjectWise /IKT"]
["08.3 månader efter slutbesiktning",{"$f":"IF(COUNTIF('6.1 Siter och kabel'!F68:F78,\"X\")>0,\"X\",\"\")","v":""},{"$f":"IF($E$122=\"\",\"\",DATE(YEAR(E122),MONTH(E122),DAY(E122)-30))","v":""},null,{"$f":"IF($B$17=\"\",\"\",DATE(YEAR('6.1 Siter och kabel'!B3),MONTH('6.1 Siter och kabel'!B3)+3,DAY('6.1 Siter och kabel'!B3)))","v":""},"IT- och telekominfrastruktur","Siter och kabel","Kraft - Tele","Dokument","6.1.1.2","6.1","Chaos","ProjectWise /IKT"]
["08.3 månader efter slutbesiktning",{"$f":"IF(COUNTIF('6.1 Siter och kabel'!F79:F83,\"X\")>0,\"X\",\"\")","v":""},{"$f":"IF($E$123=\"\",\"\",DATE(YEAR(E123),MONTH(E123),DAY(E123)-30))","v":""},null,{"$f":"IF($B$17=\"\",\"\",DATE(YEAR('6.1 Siter och kabel'!B3),MONTH('6.1 Siter och kabel'!B3)+3,DAY('6.1 Siter och kabel'!B3)))","v":""},"IT- och telekominfrastruktur","Siter och kabel","Teletransmission","Dokument","6.1.1.3","6.1","Chaos","ProjectWise /IKT"]
["08.3 månader efter slutbesiktning",{"$f":"IF(COUNTIF('9.3 Vägkropp'!G31:G57,\"X\")>0,\"X\",\"\")","v":""},{"$f":"IF($E$124=\"\",\"\",DATE(YEAR(E124),MONTH(E124),DAY(E124)-30))","v":""},null,{"$f":"IF($B$17=\"\",\"\",DATE(YEAR('9.3 Vägkropp'!B2),MONTH('9.3 Vägkropp'!B2)+3,DAY('9.3 Vägkropp'!B2)))","v":""},"Vägyta, vägkropp","Vägkropp","Geoteknik","Dokument","9.3.2.1","9.3","Chaos","Chaos"]

{"sheet":"4.1 Bro","index":7,"n_rows":49,"n_cols":12,"rows_kept":49,"cut":false,"hidden":false,"merged":[[28,0,28,11],[47,4,47,7],[13,0,13,1],[13,2,14,3],[13,8,14,8],[13,9,14,9],[14,0,14,1],[15,0,15,11],[27,0,27,11],[29,0,29,11],[16,8,21,8],[16,9,21,9],[22,0,22,11],[24,0,24,11],[25,0,25,11],[23,0,23,11],[7,9,7,10],[9,0,9,11],[11,0,11,11],[12,0,12,11],[7,4,7,8],[10,0,10,11],[47,0,47,3],[26,0,26,1],[26,2,26,3],[16,0,16,1],[17,0,17,1],[18,0,18,1],[19,0,19,1],[20,0,20,1],[21,0,21,1],[30,0,30,11],[31,8,46,8],[31,9,46,9],[40,0,41,0],[42,0,46,0],[31,0,31,1],[32,0,39,0]]}
["Bro",null,"Länk till flik Projektuppgifter"]
["Öppnande för trafik (ÖFT) :",{"$f":"IF(Projektuppgifter!B16=\"\",\"Fyll i datum\",Projektuppgifter!B16)","v":"Fyll i datum"}]
["Slutbesiktning : ",{"$f":"IF(Projektuppgifter!B17=\"\",\"Fyll i datum\",Projektuppgifter!B17)","v":"Fyll i datum"}]
["Konstruktionsnummer :","Fyll i brons konstruktionsnummer (BATMAN-nummer)"]
["För fullständig beskrivning av kraven för respektive leverans hänvisas till TDOK 2019:0210 Data om anläggningen - Data och dokumentation till förvaltande system - Väg"]
["Alla data och teknisk dokumentation ska lagras av projektet direkt i systemet BATMAN."]
["Se även rutinbeskrivning TDOK 2018:0200 Förvaltningsdata och uppgifter i BATMAN samt TDOK 2023:0079 Handlägga och fastställa bärighetsuppgifter för byggnadsverk, dessa rutiner kompletterar kravdokumentet TDOK 2019:0210."]
[null,null,null,"Fylls i av:","Projekt",null,null,null,null,"1. Kontroll av teknikspecialist/teknikingenjör\n2. Mottagande förvaltning",null,"Alla"]
[null,null,"Filformat\nvisningsfil","Filformat\nunderlagsfil","Aktuellt att upprättas av projektet","Filnamn","Levereras av:\n- E (Entreprenör)\n- K (Konsult)\n- B (Beställare)\n(datum + namn)","Registrerat i BATMAN\n(datum + namn)","Levereras till","Förvaltande system","1. Kontrollerat och/eller fastställt enl TDOK 2018:0200 (datum + namn (ej initialer) och org.tillhörighet)\n\n2. Rad 48 (datum + namn (ej initialer) och org.tillhörighet)","Eventuella kommentarer"]
["1 månad före ÖFT"]
[{"$f":"\" Leverans från leverantör (E/K) till överenskommen leveransyta, för mottagningskontroll senast: \"&IF(Projektuppgifter!C34=\"\",\"Fyll i datum\",TEXT(DATE(YEAR(Projektuppgifter!C34),MONTH(Projektuppgifter!C34),DAY(Projektuppgifter!C34)),\"ÅÅÅÅ-MM-DD\"))","v":" Leverans från leverantör (E/K) till överenskommen leveransyta, för mottagningskontroll senast: Fyll i datum"}]
[{"$f":"\"Leverans till mottagande förvaltning senast: \"&IF(B2=\"Fyll i datum\",\"Fyll i datum\",TEXT(DATE(YEAR(B2),MONTH(B2)-1,DAY(B2)),\"ÅÅÅÅ-MM-DD\"))","v":"Leverans till mottagande förvaltning senast: Fyll i datum"}]
["Data för lagring i databas"]
["Tekniska uppgifter",null,"Registreras direkt i BATMAN",null,null,null,null,null,"BATMAN","BATMAN"]
["Konstruktiv indelning"]
["Teknisk dokumentation"]
["Anläggningsskiss",null,"PDF/A"," --",null,null,null,null,"BATMAN","BATMAN"]
["Bärighetsberäkning",null,"PDF/A"," --"]
["Ritningar",null,"PDF/A"," --"]
["Beskrivningar",null,"PDF/A"," --"]
["Redogörelse för konstruktionens förutsättningar och metoder",null,"PDF/A"," --"]
["Konstruktionsberäkningar",null,"PDF/A"," --"]
["Dagen för ÖFT"]
[{"$f":"\" Leverans från leverantör (E/K) till överenskommen leveransyta, för mottagningskontroll senast: \"&IF(Projektuppgifter!C40=\"\",\"Fyll i datum\",TEXT(DATE(YEAR(Projektuppgifter!C40),MONTH(Projektuppgifter!C40),DAY(Projektuppgifter!C40)),\"ÅÅÅÅ-MM-DD\"))","v":" Leverans från leverantör (E/K) till överenskommen leveransyta, för mottagningskontroll senast: Fyll i datum"}]
[{"$f":"\"Leverans till mottagande förvaltning senast: \"&IF(B2=\"Fyll i datum\",\"Fyll i datum\",TEXT(DATE(YEAR(B2),MONTH(B2),DAY(B2)),\"ÅÅÅÅ-MM-DD\"))","v":"Leverans till mottagande förvaltning senast: Fyll i datum"}]
["Data för lagring i databas"]
["Huvudinspektion",null,"Registreras direkt i BATMAN",null,null,null,null,null,"BATMAN","BATMAN"]
["3 månader efter slutbesiktning"]
[{"$f":"\" Leverans från leverantör (E/K) till överenskommen leveransyta, för mottagningskontroll senast: \"&IF(Projektuppgifter!C111=\"\",\"Fyll i datum\",TEXT(DATE(YEAR(Projektuppgifter!C111),MONTH(Projektuppgifter!C111),DAY(Projektuppgifter!C111)),\"ÅÅÅÅ-MM-DD\"))","v":" Leverans från leverantör (E/K) till överenskommen leveransyta, för mottagningskontroll senast: Fyll i datum"}]
[{"$f":"\"Leverans till mottagande förvaltning senast: \"&IF(B3=\"Fyll i datum\",\"Fyll i datum\",TEXT(DATE(YEAR(B3),MONTH(B3)+3,DAY(B3)),\"ÅÅÅÅ-MM-DD\"))","v":"Leverans till mottagande förvaltning senast: Fyll i datum"}]
["Teknisk dokumentation"]
["Teknisk dokumentation från 1 mån före ÖFT/ibruktagande har status relationshandling",null,"PDF/A"," --",null,null,null,null,"BATMAN","BATMAN"]
["Övriga dokument från en åtgärd","Betonggjutningsjournal","PDF/A"," --"]
[null,"Rapporter och tekniska utredningar från byggtiden","PDF/A"," --"]
[null,"Kvarstående avvikelserapporter efter slutbesiktning samt eventuella provningsintyg som hör till avvikelse.","PDF/A"," --"]
[null,"Protokoll från entreprenadbesiktningar. (förekommande besiktningstyper enl AB04/ABT06 kap 7)","PDF/A"," --"]
[null,"Avtal, exempelvis med kommun, annan väghållare, markägare.","PDF/A"," --"]
[null,"Reservdelsinformation","PDF/A"," --"]
[null,"Teknisk beskrivning avfuktningsanläggning","PDF/A"," --"]
[null,"Ev övriga dokument från åtgärd som är viktiga för framtida förvaltning av bro","PDF/A"," --"]
["Geoteknik","Geotekniskt PM","PDF/A"," --"]
[null,"Markundersökningsrapport","PDF/A"," --"]
["Miljö","Miljödom","PDF/A"," --"]
[null,"Beslut om anmäld vattenverksamhet","PDF/A"," --"]
[null,"Kontrollprogram miljö, tex utifrån myndighetsbeslut enligt miljölagstiftning","PDF/A"," --"]
[null,"Övriga myndighetsbeslut","PDF/A"," --"]
[null,"Skötselbeskrivning","PDF/A"," --"]
["Data och dokumentation enl TDOK 2019:0210 är komplett. Aktivitet 1-5 enl TDOK 2018:0200 är genomförd. Bärighetsuppgifter enl TDOK 2023:0079 är registrerade och fastställda",null,null,null,null,null,null,null,"BATMAN"]
["OBS! Relevant data/dokumentation kopplat till miljö ska också levereras enligt flik 10.2."]

{"sheet":"4.2 Tunnel och bergslänt","index":8,"n_rows":49,"n_cols":12,"rows_kept":49,"cut":false,"hidden":false,"merged":[[28,0,28,11],[30,0,30,11],[31,0,31,11],[32,8,46,8],[32,9,46,9],[42,0,46,0],[33,0,40,0],[15,0,15,11],[16,0,16,1],[18,0,18,1],[7,9,7,10],[9,0,9,11],[11,0,11,11],[12,0,12,11],[7,4,7,8],[13,0,13,1],[13,2,14,3],[13,8,14,8],[13,9,14,9],[14,0,14,1],[10,0,10,11],[16,8,22,8],[47,0,47,3],[17,0,17,1],[19,0,19,1],[20,0,20,1],[21,0,21,1],[32,0,32,1],[29,0,29,11],[24,0,24,11],[47,4,47,7],[22,0,22,1],[16,9,22,9],[23,0,23,11],[25,0,25,11],[26,0,26,11],[27,0,27,1],[27,2,27,3]]}
["Tunnel och bergslänt",null,"Länk till flik Projektuppgifter"]
["Öppnande för trafik (ÖFT) :",{"$f":"IF(Projektuppgifter!B16=\"\",\"Fyll i datum\",Projektuppgifter!B16)","v":"Fyll i datum"}]
["Slutbesiktning : ",{"$f":"IF(Projektuppgifter!B17=\"\",\"Fyll i datum\",Projektuppgifter!B17)","v":"Fyll i datum"}]
["Konstruktionsnummer :","Fyll i tunnelns/bergsläntens konstruktionsnummer från BATMAN"]
["För fullständig beskrivning av kraven för respektive leverans hänvisas till TDOK 2019:0210 Data om anläggningen - Data och dokumentation till förvaltande system - Väg"]
["Alla data och teknisk dokumentation ska lagras av projektet direkt i systemet BATMAN."]
["Se även rutinbeskrivning TDOK 2018:0200 Förvaltningsdata och uppgifter i BATMAN samt TDOK 2023:0079 Handlägga och fastställa bärighetsuppgifter för byggnadsverk, dessa rutiner kompletterar kravdokumentet TDOK 2019:0210."]
[null,null,null,"Fylls i av:","Projekt",null,null,null,null,"1. Kontroll av teknikspecialist/teknikingenjör\n2. Mottagande förvaltning",null,"Alla"]
[null,null,"Filformat\nvisningsfil","Filformat\nunderlagsfil","Aktuellt att upprättas av projektet","Filnamn","Levereras av:\n- E (Entreprenör)\n- K (Konsult)\n- B (Beställare)\n(datum + namn)","Registrerat i BATMAN\n(datum + namn)","Levereras till","Förvaltande system","1. Kontrollerat och/eller fastställt enl TDOK 2018:0200 (datum + namn (ej initialer) och org.tillhörighet)\n\n2. Rad 48 (datum + namn (ej initialer) och org.tillhörighet)","Eventuella kommentarer"]
["1 månad före ÖFT"]
[{"$f":"\" Leverans från leverantör (E/K) till överenskommen leveransyta, för mottagningskontroll senast: \"&IF(Projektuppgifter!C36=\"\",\"Fyll i datum\",TEXT(DATE(YEAR(Projektuppgifter!C36),MONTH(Projektuppgifter!C36),DAY(Projektuppgifter!C36)),\"ÅÅÅÅ-MM-DD\"))","v":" Leverans från leverantör (E/K) till överenskommen leveransyta, för mottagningskontroll senast: Fyll i datum"}]
[{"$f":"\"Leverans till mottagande förvaltning senast: \"&IF(B2=\"Fyll i datum\",\"Fyll i datum\",TEXT(DATE(YEAR(B2),MONTH(B2)-1,DAY(B2)),\"ÅÅÅÅ-MM-DD\"))","v":"Leverans till mottagande förvaltning senast: Fyll i datum"}]
["Data för lagring i databas"]
["Tekniska uppgifter",null,"Registreras direkt i BATMAN",null,null,null,null,null,"BATMAN","BATMAN"]
["Konstruktiv indelning"]
["Teknisk dokumentation"]
["Anläggningsskiss",null,"PDF/A"," --",null,null,null,null,"BATMAN","BATMAN"]
["Bärighetsberäkning",null,"PDF/A"," --"]
["Ritningar",null,"PDF/A"," --"]
["Beskrivningar",null,"PDF/A"," --"]
["Redogörelse för konstruktionens förutsättningar och metoder",null,"PDF/A"," --"]
["Utredningar och beräkningar",null,"PDF/A"," --"]
["Förundersökning",null,"PDF/A"," --"]
["Dagen för ÖFT"]
[{"$f":"\" Leverans från leverantör (E/K) till överenskommen leveransyta, för mottagningskontroll senast: \"&IF(Projektuppgifter!C41=\"\",\"Fyll i datum\",TEXT(DATE(YEAR(Projektuppgifter!C41),MONTH(Projektuppgifter!C41),DAY(Projektuppgifter!C41)),\"ÅÅÅÅ-MM-DD\"))","v":" Leverans från leverantör (E/K) till överenskommen leveransyta, för mottagningskontroll senast: Fyll i datum"}]
[{"$f":"\"Leverans till mottagande förvaltning senast: \"&IF(B2=\"Fyll i datum\",\"Fyll i datum\",TEXT(DATE(YEAR(B2),MONTH(B2),DAY(B2)),\"ÅÅÅÅ-MM-DD\"))","v":"Leverans till mottagande förvaltning senast: Fyll i datum"}]
["Data för lagring i databas"]
["Huvudinspektion",null,"Registreras direkt i BATMAN",null,null,null,null,null,"BATMAN","BATMAN"]
["3 månader efter slutbesiktning"]
[{"$f":"\" Leverans från leverantör (E/K) till överenskommen leveransyta, för mottagningskontroll senast: \"&IF(Projektuppgifter!C112=\"\",\"Fyll i datum\",TEXT(DATE(YEAR(Projektuppgifter!C112),MONTH(Projektuppgifter!C112),DAY(Projektuppgifter!C112)),\"ÅÅÅÅ-MM-DD\"))","v":" Leverans från leverantör (E/K) till överenskommen leveransyta, för mottagningskontroll senast: Fyll i datum"}]
[{"$f":"\"Leverans till mottagande förvaltning senast: \"&IF(B3=\"Fyll i datum\",\"Fyll i datum\",TEXT(DATE(YEAR(B3),MONTH(B3)+3,DAY(B3)),\"ÅÅÅÅ-MM-DD\"))","v":"Leverans till mottagande förvaltning senast: Fyll i datum"}]
["Teknisk dokumentation"]
["Teknisk dokumentation från 1 mån före ÖFT/ibruktagande har status relationshandling.",null,"PDF/A"," --",null,null,null,null,"BATMAN","BATMAN"]
["Övriga dokument från en åtgärd","Betonggjutningsjournal","PDF/A"," --"]
[null,"Rapporter och tekniska utredningar från byggtiden","PDF/A"," --"]
[null,"Kvarstående avvikelserapporter efter slutbesiktning samt eventuella provningsintyg som hör till avvikelse.","PDF/A"," --"]
[null,"Protokoll från entreprenadbesiktningar. (förekommande besiktningstyper enl AB04/ABT06 kap 7)","PDF/A"," --"]
[null,"Avtal, exempelvis med kommun, annan väghållare, markägare.","PDF/A"," --"]
[null,"Reservdelsinformation","PDF/A"," --"]
[null,"Teknisk beskrivning avfuktningsanläggning","PDF/A"," --"]
[null,"Ev övriga dokument från åtgärd som är viktiga för framtida förvaltning av tunnel","PDF/A"," --"]
["Stomnät","Information om stomnät för vägtunnel","xlsx"," --"]
["Miljö","Miljödom","PDF/A"," --"]
[null,"Beslut om anmäld vattenverksamhet","PDF/A"," --"]
[null,"Kontrollprogram miljö","PDF/A"," --"]
[null,"Övriga myndighetsbeslut","PDF/A"," --"]
[null,"Skötselbeskrivning","PDF/A"," --"]
["Data och dokumentation enl TDOK 2019:0210 är komplett. Aktivitet 1-5 enl TDOK 2018:0200 är genomförd. Bärighetsuppgifter enl TDOK 2023:0079 är registrerade och fastställda.",null,null,null,null,null,null,null,"BATMAN"]
["OBS! Relevant data/dokumentation kopplat till miljö ska också levereras enligt flik 10.2."]

{"sheet":"4.3 Övriga byggnadsverk","index":9,"n_rows":49,"n_cols":12,"rows_kept":49,"cut":false,"hidden":false,"merged":[[15,0,15,11],[27,0,27,11],[13,0,13,1],[13,2,14,3],[13,8,14,8],[13,9,14,9],[14,0,14,1],[29,0,29,11],[16,8,21,8],[16,9,21,9],[22,0,22,11],[24,0,24,11],[25,0,25,11],[26,0,26,1],[26,2,26,3],[16,0,16,1],[17,0,17,1],[18,0,18,1],[19,0,19,1],[20,0,20,1],[21,0,21,1],[28,0,28,11],[23,0,23,11],[7,9,7,10],[9,0,9,11],[11,0,11,11],[12,0,12,11],[7,4,7,8],[10,0,10,11],[47,0,47,3],[32,0,39,0],[30,0,30,11],[31,8,46,8],[31,9,46,9],[40,0,41,0],[42,0,46,0],[31,0,31,1],[47,4,47,7]]}
["Övriga byggnadsverk",null,"Länk till flik Projektuppgifter"]
["Öppnande för trafik (ÖFT) :",{"$f":"IF(Projektuppgifter!B16=\"\",\"Fyll i datum\",Projektuppgifter!B16)","v":"Fyll i datum"}]
["Slutbesiktning : ",{"$f":"IF(Projektuppgifter!B17=\"\",\"Fyll i datum\",Projektuppgifter!B17)","v":"Fyll i datum"}]
["Konstruktionsnummer :","Fyll i byggnadsverkets konstruktionsnummer i BATMAN"]
["För fullständig beskrivning av kraven för respektive leverans hänvisas till TDOK 2019:0210 Data om anläggningen - Data och dokumentation till förvaltande system - Väg"]
["Alla data och teknisk dokumentation ska lagras av projektet direkt i systemet BATMAN."]
["Se även rutinbeskrivning TDOK 2018:0200 Förvaltningsdata och uppgifter i BATMAN samt TDOK 2023:0079 Handlägga och fastställa bärighetsuppgifter för byggnadsverk, dessa rutiner kompletterar kravdokumentet TDOK 2019:0210."]
[null,null,null,"Fylls i av:","Projekt",null,null,null,null,"1. Kontroll av teknikspecialist/teknikingenjör\n2. Mottagande förvaltning",null,"Alla"]
[null,null,"Filformat\nvisningsfil","Filformat\nunderlagsfil","Aktuellt att upprättas av projektet","Filnamn","Levereras av:\n- E (Entreprenör)\n- K (Konsult)\n- B (Beställare)\n(datum + namn)","Registrerat i BATMAN\n(datum + namn)","Levereras till","Förvaltande system","1. Kontrollerat och/eller fastställt enl TDOK 2018:0200 (datum + namn (ej initialer) och org.tillhörighet)\n\n2. Rad 48 (datum + namn (ej initialer) och org.tillhörighet)","Eventuella kommentarer"]
["1 månad före ÖFT"]
[{"$f":"\" Leverans från leverantör (E/K) till överenskommen leveransyta, för mottagningskontroll senast: \"&IF(Projektuppgifter!C38=\"\",\"Fyll i datum\",TEXT(DATE(YEAR(Projektuppgifter!C38),MONTH(Projektuppgifter!C38),DAY(Projektuppgifter!C38)),\"ÅÅÅÅ-MM-DD\"))","v":" Leverans från leverantör (E/K) till överenskommen leveransyta, för mottagningskontroll senast: Fyll i datum"}]
[{"$f":"\"Leverans till mottagande förvaltning senast: \"&IF(B2=\"Fyll i datum\",\"Fyll i datum\",TEXT(DATE(YEAR(B2),MONTH(B2)-1,DAY(B2)),\"ÅÅÅÅ-MM-DD\"))","v":"Leverans till mottagande förvaltning senast: Fyll i datum"}]
["Data för lagring i databas"]
["Tekniska uppgifter",null,"Registreras direkt i BATMAN",null,null,null,null,null,"BATMAN","BATMAN"]
["Konstruktiv indelning"]
["Teknisk dokumentation"]
["Anläggningsskiss",null,"PDF/A"," --",null,null,null,null,"BATMAN","BATMAN"]
["Bärighetsberäkning",null,"PDF/A"," --"]
["Ritningar",null,"PDF/A"," --"]
["Beskrivningar",null,"PDF/A"," --"]
["Redogörelse för konstruktionens förutsättningar och metoder",null,"PDF/A"," --"]
["Konstruktionsberäkningar",null,"PDF/A"," --"]
["Dagen för ÖFT"]
[{"$f":"\" Leverans från leverantör (E/K) till överenskommen leveransyta, för mottagningskontroll senast: \"&IF(Projektuppgifter!C42=\"\",\"Fyll i datum\",TEXT(DATE(YEAR(Projektuppgifter!C42),MONTH(Projektuppgifter!C42),DAY(Projektuppgifter!C42)),\"ÅÅÅÅ-MM-DD\"))","v":" Leverans från leverantör (E/K) till överenskommen leveransyta, för mottagningskontroll senast: Fyll i datum"}]
[{"$f":"\"Leverans till mottagande förvaltning senast: \"&IF(B2=\"Fyll i datum\",\"Fyll i datum\",TEXT(DATE(YEAR(B2),MONTH(B2),DAY(B2)),\"ÅÅÅÅ-MM-DD\"))","v":"Leverans till mottagande förvaltning senast: Fyll i datum"}]
["Data för lagring i databas"]
["Huvudinspektion",null,"Registreras direkt i BATMAN",null,null,null,null,null,"BATMAN","BATMAN"]
["3 månader efter slutbesiktning"]
[{"$f":"\" Leverans från leverantör (E/K) till överenskommen leveransyta, för mottagningskontroll senast: \"&IF(Projektuppgifter!C113=\"\",\"Fyll i datum\",TEXT(DATE(YEAR(Projektuppgifter!C113),MONTH(Projektuppgifter!C113),DAY(Projektuppgifter!C113)),\"ÅÅÅÅ-MM-DD\"))","v":" Leverans från leverantör (E/K) till överenskommen leveransyta, för mottagningskontroll senast: Fyll i datum"}]
[{"$f":"\"Leverans till mottagande förvaltning senast: \"&IF(B3=\"Fyll i datum\",\"Fyll i datum\",TEXT(DATE(YEAR(B3),MONTH(B3)+3,DAY(B3)),\"ÅÅÅÅ-MM-DD\"))","v":"Leverans till mottagande förvaltning senast: Fyll i datum"}]
["Teknisk dokumentation"]
["Teknisk dokumentation från 1 mån före ÖFT/ibruktagande har status relationshandling.",null,"PDF/A"," --",null,null,null,null,"BATMAN","BATMAN"]
["Övriga dokument från en åtgärd","Betonggjutningsjournal","PDF/A"," --"]
[null,"Rapporter och tekniska utredningar från byggtiden","PDF/A"," --"]
[null,"Kvarstående avvikelserapporter efter slutbesiktning samt eventuella provningsintyg som hör till avvikelse.","PDF/A"," --"]
[null,"Protokoll från entreprenadbesiktningar. (förekommande besiktningstyper enl AB04/ABT06 kap 7)","PDF/A"," --"]
[null,"Avtal, exempelvis med kommun, annan väghållare, markägare.","PDF/A"," --"]
[null,"Reservdelsinformation","PDF/A"," --"]
[null,"Teknisk beskrivning avfuktningsanläggning","PDF/A"," --"]
[null,"Ev övriga dokument från åtgärd som är viktiga för framtida förvaltning av övrigt byggnadsverk","PDF/A"," --"]
["Geoteknik","Geotekniskt PM","PDF/A"," --"]
[null,"Markundersökningsrapport","PDF/A"," --"]
["Miljö","Miljödom ","PDF/A"," --"]
[null,"Beslut om anmäld vattenverksamhet","PDF/A"," --"]
[null,"Kontrollprogram miljö","PDF/A"," --"]
[null,"Övriga myndighetsbeslut","PDF/A"," --"]
[null,"Skötselbeskrivning","PDF/A"," --"]
["Data och dokumentation enl TDOK 2019:0210 är komplett. Aktivitet 1-5 enl TDOK 2018:0200 är genomförd. Bärighetsuppgifter enl TDOK 2023:0079 är registrerade och fastställda.",null,null,null,null,null,null,null,"BATMAN"]
["OBS! Relevant data/dokumentation kopplat till miljö ska också levereras enligt flik 10.2."]

{"sheet":"5.1 Anl.nära system","index":10,"n_rows":27,"n_cols":15,"rows_kept":27,"cut":false,"hidden":false,"merged":[[1,0,1,1],[22,1,22,14],[5,11,5,13],[5,5,5,10],[7,0,7,14],[9,0,9,14],[8,0,8,14],[11,1,11,2],[11,10,12,10],[11,11,12,11],[12,1,12,2],[10,1,10,14],[13,1,13,14],[21,1,21,2],[6,1,6,2],[26,1,26,2],[14,11,16,11],[17,11,21,11],[23,10,25,10],[23,11,25,11],[25,1,25,2],[24,1,24,2],[23,1,23,2],[14,1,14,2],[15,1,15,2],[16,1,16,2],[17,1,17,2],[18,1,18,2],[19,1,19,2],[20,1,20,2]]}
["Anläggningsnära system (OT/ICT)",null,null,null,null,"Länk till flik Projektuppgifter"]
["Slutbesiktning : ",null,{"$f":"IF(Projektuppgifter!B17=\"\",\"Fyll i datum\",Projektuppgifter!B17)","v":"Fyll i datum"}]
[]
["För fullständig beskrivning av kraven för respektive leverans hänvisas till TDOK 2019:0210 Data om anläggningen - Data och dokumentation till förvaltande system - Väg"]
[]
[null,null,null,null,"Fylls i av:","Projekt/Leverantör",null,null,null,null,null,"Mottagande förvaltning",null,null,"Alla"]
[null,"Not. Delar av dokumentation för Anläggningsnära system kan innehålla information som är känslig. Av denna anledning ska mottagande förvaltning kontaktas för att komma överens om leveranssätt och leveransplatser.",null,"Filformat\nvisningsfil","Filformat\nunderlagsfil","Aktuellt att upprättas av projektet","Filnamn","Levereras av:\n- E (Entreprenör)\n- K (Konsult)\n- B (Beställare)\n(datum + namn)","Projektet intygar att nedanstående dokument är kvalitetsgranskade samt levererade till Chaos\n(datum + namn)","Levererat till förvaltande system och aviserat leveransen till mottagande förvaltning \n(datum + namn)","Levereras till","Förvaltande system","Kontrollerat\n(datum + namn (ej initialer) och org.tillhörighet)","Godkänt av mottagande PL\n(datum + namn (ej initialer) och org.tillhörighet)","Eventuella kommentarer"]
["2 veckor före slutbesiktning "]
[{"$f":"\" Leverans från leverantör (E/K) till överenskommen leveransyta, för mottagningskontroll senast: \"&IF(Projektuppgifter!C43=\"\",\"Fyll i datum\",TEXT(DATE(YEAR(Projektuppgifter!C43),MONTH(Projektuppgifter!C43),DAY(Projektuppgifter!C43)),\"ÅÅÅÅ-MM-DD\"))","v":" Leverans från leverantör (E/K) till överenskommen leveransyta, för mottagningskontroll senast: Fyll i datum"}]
[{"$f":"\"Leverans till mottagande förvaltning senast: \"&IF(C2=\"Fyll i datum\",\"Fyll i datum\",TEXT(DATE(YEAR(C2),MONTH(C2),DAY(C2)-14),\"ÅÅÅÅ-MM-DD\"))","v":"Leverans till mottagande förvaltning senast: Fyll i datum"}]
["ID","Data för lagring i databas"]
[0,"TMALL 0742 - Laddmall för komponenter\nLaddmall för uppfört system (en laddmall per system)",null," --","xlsx",null,null,null,null,null,"Mottagande förvaltning (PL) på VO Underhåll leveransplats överenskommes","GusMaximo"]
[0,"TMALL 0742 - Laddmall för komponenter\nSkrotningsladdmall (för de projekt som avdriftar system eller delkomponenter i ett system)",null," --","xlsx"]
["ID","Teknisk dokumentation"]
[1,"TMALL 1574 Applikationsförteckning Anläggningsnära IT-lösning",null," --","xlsx",null,null,null,null,null,"Mottagande förvaltning (PL) på VO Underhåll ","Chaos"]
[2,"Grafisk systemöversikt",null," --","vsdx eller annat överens-kommet  Trafikverks-accepterat format",null,null,null,null,null,"Mottagande förvaltning (PL) på VO Underhåll "]
[3,"Förteckning över till systemet ansluten OT-utrustning",null," --","xlsx",null,null,null,null,null,"Mottagande förvaltning (PL) på VO Underhåll "]
[4,"Drift- och underhållsdokumentation",null,"PDF/A","docx",null,null,null,null,null,"Mottagande förvaltning (PL) på VO Underhåll ","Chaos"]
[5,"Anläggnings-, system-, och funktionsbeskrivande dokumentation",null,"PDF/A","docx",null,null,null,null,null,"Mottagande förvaltning (PL) på VO Underhåll "]
[6,"Övrigt",null,"PDF/A","docx",null,null,null,null,null,"Mottagande förvaltning (PL) på VO Underhåll"]
[7,"Utbildning",null,"PDF/A","docx",null,null,null,null,null,"Mottagande förvaltning (PL) på VO Underhåll"]
[8,"Kontroll och provning",null,"PDF/A","docx",null,null,null,null,null,"Mottagande förvaltning (PL) på VO Underhåll"]
["ID","Programvaror och licenser"]
[1,"Tillämpningsprogram",null,"--","zip",null,null,null,null,null,"PROVA","PROVA\nBiblioteks-struktur i PROVA överenskommes med mottagande förvaltning (projektledare) på VO Underhåll"]
[2,"Basprogram",null,"--","zip"]
[3,"Ifylld licenslista",null,"--","xlsx"]
[4,"Licenser",null,"--","--",null,null,null,null,null,"Ansvarig projektledare på VO Underhåll","--"]

{"sheet":"5.2 ATK Mätstation","index":11,"n_rows":15,"n_cols":14,"rows_kept":15,"cut":false,"hidden":false,"merged":[[13,1,13,13],[5,4,5,9],[11,9,12,9],[11,10,12,10],[1,0,1,1],[7,0,7,13],[9,0,9,13],[5,10,5,12],[10,1,10,13],[8,0,8,13]]}
["ATK Mätstation",null,null,"Länk till flik Projektuppgifter"]
["Slutbesiktning : ",null,{"$f":"IF(Projektuppgifter!B17=\"\",\"Fyll i datum\",Projektuppgifter!B17)","v":"Fyll i datum"}]
[]
["För fullständig beskrivning av kraven för respektive leverans hänvisas till TDOK 2019:0210 Data om anläggningen - Data och dokumentation till förvaltande system - Väg"]
[]
[null,null,null,"Fylls i av:","Projekt/Leverantör",null,null,null,null,null,"Mottagande förvaltning",null,null,"Alla"]
[null,null,"Filformat\nvisningsfil","Filformat\nunderlagsfil","Aktuellt att upprättas av projektet","Filnamn","Levereras av:\n- E (Entreprenör)\n- K (Konsult)\n- B (Beställare)\n(datum + namn)","Projektet intygar att nedanstående dokument är kvalitetsgranskade samt levererade till Chaos\n(datum + namn)","Levererat till förvaltande system och aviserat leveransen till mottagande förvaltning \n(datum + namn)","Levereras till","Förvaltande system","Kontrollerat\n(datum + namn (ej initialer) och org.tillhörighet)","Godkänt av mottagande PL\n(datum + namn (ej initialer) och org.tillhörighet)","Eventuella kommentarer"]
["2 veckor före slutbesiktning "]
[{"$f":"\" Leverans från leverantör (E/K) till överenskommen leveransyta, för mottagningskontroll senast: \"&IF(Projektuppgifter!C52=\"\",\"Fyll i datum\",TEXT(DATE(YEAR(Projektuppgifter!C52),MONTH(Projektuppgifter!C52),DAY(Projektuppgifter!C52)),\"ÅÅÅÅ-MM-DD\"))","v":" Leverans från leverantör (E/K) till överenskommen leveransyta, för mottagningskontroll senast: Fyll i datum"}]
[{"$f":"\"Leverans till mottagande förvaltning senast: \"&IF(C2=\"Fyll i datum\",\"Fyll i datum\",TEXT(DATE(YEAR(C2),MONTH(C2),DAY(C2)-14),\"ÅÅÅÅ-MM-DD\"))","v":"Leverans till mottagande förvaltning senast: Fyll i datum"}]
["ID","Data för lagring i databas"]
[0,"TMALL 0742 - Laddmall för komponenter\nLaddmall för uppförd anläggning (en laddmall per central)"," --","xlsx",null,null,null,null,null,"Chaos","GusMaximo"]
[0,"TMALL 0742 - Laddmall för komponenter\nSkrotningsladdmall (för de projekt som river anläggning)"," --","xlsx"]
["ID","Teknisk dokumentation"]
[1,"Planritning","PDF/A"," --",null,null,null,null,null,"Chaos (mottagande förvaltning skapar koppling mellan Chaos och GusMaximo)","GusMaximo"]

{"sheet":"5.3 Belysning","index":12,"n_rows":60,"n_cols":14,"rows_kept":60,"cut":false,"hidden":false,"merged":[[5,4,5,9],[11,10,13,10],[11,9,13,9],[8,0,8,13],[7,0,7,13],[9,0,9,13],[15,9,59,9],[15,10,59,10],[1,0,1,1],[12,0,13,0],[20,0,23,0],[25,0,27,0],[29,0,30,0],[32,0,38,0],[40,0,41,0],[45,0,46,0],[48,0,50,0],[52,0,56,0],[58,0,59,0],[5,10,5,12],[10,1,10,13],[14,1,14,13]]}
["Belysning",null,null,"Länk till flik Projektuppgifter"]
["Slutbesiktning : ",null,{"$f":"IF(Projektuppgifter!B17=\"\",\"Fyll i datum\",Projektuppgifter!B17)","v":"Fyll i datum"}]
[]
["För fullständig beskrivning av kraven för respektive leverans hänvisas till TDOK 2019:0210 Data om anläggningen - Data och dokumentation till förvaltande system - Väg"]
[]
[null,null,null,"Fylls i av:","Projekt/Leverantör",null,null,null,null,null,"Mottagande förvaltning",null,null,"Alla"]
[null,null,"Filformat\nvisningsfil","Filformat\nunderlagsfil","Aktuellt att upprättas av projektet","Filnamn","Levereras av:\n- E (Entreprenör)\n- K (Konsult)\n- B (Beställare)\n(datum + namn)","Projektet intygar att nedanstående dokument är kvalitetsgranskade samt levererade till Chaos\n(datum + namn)","Levererat till förvaltande system och aviserat leveransen till mottagande förvaltning \n(datum + namn)","Levereras till","Förvaltande system","Kontrollerat\n(datum + namn (ej initialer) och org.tillhörighet)","Godkänt av mottagande PL\n(datum + namn (ej initialer) och org.tillhörighet)","Eventuella kommentarer"]
["2 veckor före slutbesiktning"]
[{"$f":"\" Leverans från leverantör (E/K) till överenskommen leveransyta, för mottagningskontroll senast: \"&IF(Projektuppgifter!C54=\"\",\"Fyll i datum\",TEXT(DATE(YEAR(Projektuppgifter!C54),MONTH(Projektuppgifter!C54),DAY(Projektuppgifter!C54)),\"ÅÅÅÅ-MM-DD\"))","v":" Leverans från leverantör (E/K) till överenskommen leveransyta, för mottagningskontroll senast: Fyll i datum"}]
[{"$f":"\"Leverans till mottagande förvaltning senast: \"&IF(C2=\"Fyll i datum\",\"Fyll i datum\",TEXT(DATE(YEAR(C2),MONTH(C2),DAY(C2)-14),\"ÅÅÅÅ-MM-DD\"))","v":"Leverans till mottagande förvaltning senast: Fyll i datum"}]
["ID","Data för lagring i databas"]
[0,"TMALL 0742 - Laddmall för komponenter",null,null,null,null,null,null,null,"Chaos","GusMaximo"]
[null,"TMALL 0742 - Laddmall för komponenter\nLaddmall för uppförd anläggning (en laddmall per central)"," --","xlsx"]
[null,"TMALL 0742 - Laddmall för komponenter\nSkrotningsladdmall (för de projekt som river anläggning)"," --","xlsx"]
["ID","Teknisk dokumentation"]
[1,"Anläggningsbeskrivning",null,null,null,null,null,null,null,"Chaos (mottagande förvaltning skapar koppling mellan Chaos och GusMaximo)","GusMaximo"]
[null,"- Anläggningsbeskrivning (en per central)","PDF/A","docx"]
[2,"Översiktsritningar"]
[null,"- Översiktsritningar","PDF/A","dwg"]
[3,"Datablad för stolpar, armar, säkringslådor och fundament "]
[null,"- Fundament (Ett blad per fundamenttyp)","PDF/A","PDF/A"]
[null,"- Stolpar (Ett datablad per stolptyp)","PDF/A","PDF/A"]
[null,"- Armar (Ett datablad per armtyp)","PDF/A","PDF/A"]
[null,"- Säkringslådor (Ett datablad per lådtyp)","PDF/A","PDF/A"]
[4,"Datablad för armaturer och ljuskällor"]
[null,"- Armaturer (Ett datablad per armaturtyp)","PDF/A","PDF/A"]
[null,"- Annex A (Ett dokument per armaturtyp)","PDF/A","PDF/A"]
[null,"- Ljuskällor (Ett datablad per ljuskälletyp)","PDF/A","PDF/A"]
[5,"Datablad för kablar, fästdon och kopplingsmateriel "]
[null,"- Kablar (Ett databladper kabeltyp)","PDF/A","PDF/A"]
[null,"- Fästdon (Ett datablad per fästdon)","PDF/A","PDF/A"]
[6,"Centraldokumentation, inkl. gruppförteckning och huvudledningsschema"]
[null,"- Innehållsförteckning","PDF/A","dwg"]
[null,"- Front och apparatplaceringsritning","PDF/A","dwg"]
[null,"- Kretsschema","PDF/A","dwg"]
[null,"- Apparatlista","PDF/A","dwg"]
[null,"- Enlinjeschema","PDF/A","dwg"]
[null,"- Gruppförteckning (docx)","PDF/A","docx"]
[null,"- Huvudledningsschema","PDF/A","dwg"]
[7,"Isolationsmätnings- och skyddsjordningsprotokoll"]
[null,"- Isolationsmätningsprotokoll","PDF/A","docx"]
[null,"- Skyddsjordningsprotokoll","PDF/A","docx"]
[8,"Belysningsberäkningar"]
[null,"- Belysningsberäkningar (en per vägtyp)","PDF/A","docx"]
[9,"Ledningslista och beräkningar"]
[null,"- Beräkning utlösningsvillkor och spänningsfall \n(redovisas för hela centralen)","PDF/A","docx"]
[null,"- Mätning utlösningsvillkor","PDF/A","docx"]
[10,"Servisbeställningar"]
[null,"- Servisbeställningar","PDF/A"," --"]
[null,"- Föranmälningar","PDF/A"," --"]
[null,"- Färdiganmälningar","PDF/A"," --"]
[11,"Foton"]
[null,"- Bild 1: Döps till Centralnamn-FIH (Framifrån Insida Hela)","jpg"," --"]
[null,"- Bild 2: Döps till Centralnamn-FUH (Framifrån Utsida Hela)","jpg"," --"]
[null,"- Bild 3: Döps till Centralnamn-VY (Vy-bild skåp från avstånd)","jpg"," --"]
[null,"- Bild 4: Döps till Centralnamn-FIN (Framifrån Insida Nedre )","jpg"," --"]
[null,"- Bild 5: Döps till Centralnamn-FIÖ (FramifrånInsida Övre del)","jpg"," --"]
[12,"Underlag för relationshandlingar"]
[null,"- Underlag för relationshandlingar","PDF/A","dwg"]
[null,"- Eventuella relationshandlingar","PDF/A","dwg"]

{"sheet":"5.4 Brukaravg","index":13,"n_rows":26,"n_cols":14,"rows_kept":26,"cut":false,"hidden":false,"merged":[[1,0,1,1],[7,0,7,13],[9,0,9,13],[22,9,24,9],[22,10,24,10],[21,1,21,13],[14,9,20,9],[14,10,20,10],[5,10,5,12],[10,1,10,13],[13,1,13,13],[5,4,5,9],[11,9,12,9],[11,10,12,10],[8,0,8,13]]}
["Brukaravgiftssystem",null,null,"Länk till flik Projektuppgifter"]
["Slutbesiktning : ",null,{"$f":"IF(Projektuppgifter!B17=\"\",\"Fyll i datum\",Projektuppgifter!B17)","v":"Fyll i datum"}]
[]
["För fullständig beskrivning av kraven för respektive leverans hänvisas till TDOK 2019:0210 Data om anläggningen - Data och dokumentation till förvaltande system - Väg"]
[]
[null,null,null,"Fylls i av:","Projekt/Leverantör",null,null,null,null,null,"Mottagande förvaltning",null,null,"Alla"]
[null,null,"Filformat\nvisningsfil","Filformat\nunderlagsfil","Aktuellt att upprättas av projektet","Filnamn","Levereras av:\n- E (Entreprenör)\n- K (Konsult)\n- B (Beställare)\n(datum + namn)","Projektet intygar att nedanstående dokument är kvalitetsgranskade samt levererade till Chaos\n(datum + namn)","Levererat till förvaltande system och aviserat leveransen till mottagande förvaltning \n(datum + namn)","Levereras till","Förvaltande system","Kontrollerat\n(datum + namn (ej initialer) och org.tillhörighet)","Godkänt av mottagande PL\n(datum + namn (ej initialer) och org.tillhörighet)","Eventuella kommentarer"]
["2 veckor före slutbesiktning "]
[{"$f":"\" Leverans från leverantör (E/K) till överenskommen leveransyta, för mottagningskontroll senast: \"&IF(Projektuppgifter!C56=\"\",\"Fyll i datum\",TEXT(DATE(YEAR(Projektuppgifter!C56),MONTH(Projektuppgifter!C56),DAY(Projektuppgifter!C56)),\"ÅÅÅÅ-MM-DD\"))","v":" Leverans från leverantör (E/K) till överenskommen leveransyta, för mottagningskontroll senast: Fyll i datum"}]
[{"$f":"\"Leverans till mottagande förvaltning senast: \"&IF(C2=\"Fyll i datum\",\"Fyll i datum\",TEXT(DATE(YEAR(C2),MONTH(C2),DAY(C2)-14),\"ÅÅÅÅ-MM-DD\"))","v":"Leverans till mottagande förvaltning senast: Fyll i datum"}]
["ID","Data för lagring i databas"]
[0,"TMALL 0742 - Laddmall för komponenter\nLaddmall för uppförd anläggning (en laddmall per central)"," --","xlsx",null,null,null,null,null,"Chaos","GusMaximo"]
[0,"TMALL 0742 - Laddmall för komponenter\nSkrotningsladdmall (för de projekt som river anläggning)"," --","xlsx"]
["ID","Teknisk dokumentation"]
[1,"Planritning","PDF/A","dwg",null,null,null,null,null,"Chaos (mottagande förvaltning skapar koppling mellan Chaos och GusMaximo)","GusMaximo"]
[2,"Konstruktionsdokumentation","PDF/A","docx"]
[3,"Apparatskåpdokumentation","PDF/A","dwg"]
[4,"Drift- och underhållsdokumentation","PDF/A","docx",null,null,null,null,null,"Chaos"]
[5,"Installationsdokument","PDF/A","docx"]
[6,"Anläggnings-, system-, och funktionsbeskrivande dokumentation","PDF/A","docx"]
[7,"Programvarudokumentation","PDF/A","docx"]
["ID","Programvaror och licenser"]
[1,"Tillämpningsprogram","--","zip",null,null,null,null,null,"PROVA","PROVA"]
[2,"Basprogram","--","zip"]
[3,"Licenslista","--","xlsx"]
[4,"Licenser","--","--",null,null,null,null,null,"Ansvarig projektledare på VO Underhåll","--"]

{"sheet":"5.5 Elkraft","index":14,"n_rows":28,"n_cols":14,"rows_kept":28,"cut":false,"hidden":false,"merged":[[1,0,1,1],[7,0,7,13],[9,0,9,13],[23,1,23,13],[24,9,26,9],[24,10,26,10],[14,9,22,9],[14,10,22,10],[5,10,5,12],[10,1,10,13],[13,1,13,13],[5,4,5,9],[11,9,12,9],[11,10,12,10],[8,0,8,13]]}
["Elkraft (Kraft i tunnelsystem och öppningsbara broar)",null,null,null,null,"Länk till flik Projektuppgifter"]
["Slutbesiktning : ",null,{"$f":"IF(Projektuppgifter!B17=\"\",\"Fyll i datum\",Projektuppgifter!B17)","v":"Fyll i datum"}]
[]
["För fullständig beskrivning av kraven för respektive leverans hänvisas till TDOK 2019:0210 Data om anläggningen - Data och dokumentation till förvaltande system - Väg"]
[]
[null,null,null,"Fylls i av:","Projekt/Leverantör",null,null,null,null,null,"Mottagande förvaltning",null,null,"Alla"]
[null,null,"Filformat\nvisningsfil","Filformat\nunderlagsfil","Aktuellt att upprättas av projektet","Filnamn","Levereras av:\n- E (Entreprenör)\n- K (Konsult)\n- B (Beställare)\n(datum + namn)","Projektet intygar att nedanstående dokument är kvalitetsgranskade samt levererade till Chaos\n(datum + namn)","Levererat till förvaltande system och aviserat leveransen till mottagande förvaltning \n(datum + namn)","Levereras till","Förvaltande system","Kontrollerat\n(datum + namn (ej initialer) och org.tillhörighet)","Godkänt av mottagande PL\n(datum + namn (ej initialer) och org.tillhörighet)","Eventuella kommentarer"]
["2 veckor före slutbesiktning "]
[{"$f":"\" Leverans från leverantör (E/K) till överenskommen leveransyta, för mottagningskontroll senast: \"&IF(Projektuppgifter!C59=\"\",\"Fyll i datum\",TEXT(DATE(YEAR(Projektuppgifter!C59),MONTH(Projektuppgifter!C59),DAY(Projektuppgifter!C59)),\"ÅÅÅÅ-MM-DD\"))","v":" Leverans från leverantör (E/K) till överenskommen leveransyta, för mottagningskontroll senast: Fyll i datum"}]
[{"$f":"\"Leverans till mottagande förvaltning senast: \"&IF(C2=\"Fyll i datum\",\"Fyll i datum\",TEXT(DATE(YEAR(C2),MONTH(C2),DAY(C2)-14),\"ÅÅÅÅ-MM-DD\"))","v":"Leverans till mottagande förvaltning senast: Fyll i datum"}]
["ID","Data för lagring i databas"]
[0,"TMALL 0742 - Laddmall för komponenter\nLaddmall för uppförd anläggning (en laddmall per central)"," --","xlsx",null,null,null,null,null,"Chaos","GusMaximo"]
[0,"TMALL 0742 - Laddmall för komponenter\nSkrotningsladdmall (för de projekt som river anläggning)"," --","xlsx"]
["ID","Teknisk dokumentation"]
[1,"System / Anläggningsbeskrivning","PDF/A","docx",null,null,null,null,null,"Chaos (mottagande förvaltning skapar koppling mellan Chaos och GusMaximo)","GusMaximo"]
[2,"Översiktsritningar","PDF/A","dwg"]
[3,"Kanalisationsritningar","PDF/A","dwg"]
[4,"Apparatskåpdokumentation","PDF/A","dwg"]
[5,"Datablad","PDF/A","docx"]
[6,"Garantier","PDF/A","dwg"]
[7,"Drift- och underhållsdokumentation","PDF/A","docx"]
[8,"Reservdelslista","PDF/A","docx"]
[9,"Servisbeställningar","PDF/A","docx"]
["ID","Programvaror och licenser"]
[1,"Tillämpningsprogram","--","zip",null,null,null,null,null,"PROVA","PROVA"]
[2,"Basprogram","--","zip"]
[3,"Licenslista","--","xlsx"]
[4,"Licenser","--","--",null,null,null,null,null,"Ansvarig projektledare på VO Underhåll","--"]

{"sheet":"5.6 Styr och regler","index":15,"n_rows":43,"n_cols":16,"rows_kept":43,"cut":false,"hidden":false,"merged":[[14,2,14,3],[39,1,39,3],[38,1,38,15],[39,11,41,11],[8,0,8,15],[39,12,41,12],[40,1,40,3],[41,1,41,3],[11,12,12,12],[11,1,11,3],[12,1,12,3],[14,12,37,12],[42,1,42,3],[22,2,24,2],[25,2,27,2],[28,2,29,2],[30,2,33,2],[34,2,35,2],[36,2,37,2],[22,1,37,1],[1,0,1,1],[9,0,9,15],[7,0,7,15],[21,2,21,3],[15,2,15,3],[16,2,16,3],[17,2,17,3],[18,2,18,3],[19,2,19,3],[5,12,5,14],[10,1,10,15],[13,1,13,15],[5,6,5,11],[11,11,12,11],[14,11,37,11],[14,1,21,1]]}
["Styr- och reglersystem",null,null,null,null,"Länk till flik Projektuppgifter"]
["Slutbesiktning : ",null,{"$f":"IF(Projektuppgifter!B17=\"\",\"Fyll i datum\",Projektuppgifter!B17)","v":"Fyll i datum"}]
[]
["För fullständig beskrivning av kraven för respektive leverans hänvisas till TDOK 2019:0210 Data om anläggningen - Data och dokumentation till förvaltande system - Väg"]
[]
[null,null,null,null,null,"Fylls i av:","Projekt/Leverantör",null,null,null,null,null,"Mottagande förvaltning",null,null,"Alla"]
[null,null,null,null,"Filformat\nvisningsfil","Filformat\nunderlagsfil","Aktuellt att upprättas av projektet","Filnamn","Levereras av:\n- E (Entreprenör)\n- K (Konsult)\n- B (Beställare)\n(datum + namn)","Projektet intygar att nedanstående dokument är kvalitetsgranskade samt levererade till Chaos\n(datum + namn)","Levererat till förvaltande system och aviserat leveransen till mottagande förvaltning \n(datum + namn)","Levereras till","Förvaltande system","Kontrollerat\n(datum + namn (ej initialer) och org.tillhörighet)","Godkänt av mottagande PL\n(datum + namn (ej initialer) och org.tillhörighet)","Eventuella kommentarer"]
["2 veckor före slutbesiktning "]
[{"$f":"\" Leverans från leverantör (E/K) till överenskommen leveransyta, för mottagningskontroll senast: \"&IF(Projektuppgifter!C62=\"\",\"Fyll i datum\",TEXT(DATE(YEAR(Projektuppgifter!C62),MONTH(Projektuppgifter!C62),DAY(Projektuppgifter!C62)),\"ÅÅÅÅ-MM-DD\"))","v":" Leverans från leverantör (E/K) till överenskommen leveransyta, för mottagningskontroll senast: Fyll i datum"}]
[{"$f":"\"Leverans till mottagande förvaltning senast: \"&IF(C2=\"Fyll i datum\",\"Fyll i datum\",TEXT(DATE(YEAR(C2),MONTH(C2),DAY(C2)-14),\"ÅÅÅÅ-MM-DD\"))","v":"Leverans till mottagande förvaltning senast: Fyll i datum"}]
["ID","Data för lagring i databas"]
[0,"TMALL 0742 - Laddmall för komponenter\nLaddmall för uppförd anläggning (en laddmall per central)",null,null," --","xlsx",null,null,null,null,null,"Chaos","GusMaximo"]
[0,"TMALL 0742 - Laddmall för komponenter\nSkrotningsladdmall (för de projekt som river anläggning)",null,null," --","xlsx"]
["ID","Teknisk dokumentation"]
[1,"Styr och regler","Planritning",null,"PDF/A","dwg",null,null,null,null,null,"Chaos (mottagande förvaltning skapar koppling mellan Chaos och GusMaximo)","GusMaximo"]
[2,null,"Apparatskåpdokumentation",null,"PDF/A","dwg"]
[3,null,"Drift- och underhållsdokumentation",null,"PDF/A","docx"]
[4,null,"Anläggnings-, system-, och funktionsbeskrivande dokumentation",null,"PDF/A","docx"]
[5,null,"Programvarudokumentation",null,"PDF/A","docx"]
[6,null,"Övrigt",null,"PDF/A","docx"]
[7,null,"Utbildning",null,"PDF/A","docx"]
[8,null,"Kontroll och provning",null,"PDF/A","docx"]
[1,"Miljömätning","Apparatskåp","Planritning","PDF/A","dwg"]
[2,null,null,"Apparatskåpsdokumentation","PDF/A","dwg"]
[3,null,null,"Drift- och underhållsdokumentation","PDF/A","docx"]
[4,null,"Centralapparat","Apparatskåpsdokumentation","PDF/A","dwg"]
[5,null,null,"Drift- och underhållsdokumentation","PDF/A","docx"]
[6,null,null,"Anläggnings-, system- och funktionsbeskrivande dokumentation","PDF/A","docx"]
[7,null,"Kopplingsplint","Apparatskåpsdokumentation","PDF/A","dwg"]
[8,null,null,"Drift- och underhållsdokumentation","PDF/A","docx"]
[9,null,"Samtliga givare","Planritning","PDF/A","dwg"]
[10,null,null,"Apparatskåpsdokumentation","PDF/A","dwg"]
[11,null,null,"Drift- och underhållsdokumentation","PDF/A","docx"]
[12,null,null,"Anläggnings-, system- och funktionsbeskrivande dokumentation","PDF/A","docx"]
[13,null,"Modem","Apparatskåpsdokumentation","PDF/A","dwg"]
[14,null,null,"Drift- och underhållsdokumentation","PDF/A","docx"]
[15,null,"Antenn","Apparatskåpsdokumentation","PDF/A","dwg"]
[16,null,null,"Drift- och underhållsdokumentation","PDF/A","docx"]
["ID","Programvaror och licenser"]
[1,"Tillämpningsprogram",null,null,"--","zip",null,null,null,null,null,"PROVA","PROVA"]
[2,"Basprogram",null,null,"--","zip"]
[3,"Licenslista",null,null,"--","xlsx"]
[4,"Licenser",null,null,"--","--",null,null,null,null,null,"Ansvarig projektledare på VO Underhåll","--"]

{"sheet":"5.7 Telesystem","index":16,"n_rows":108,"n_cols":16,"rows_kept":108,"cut":false,"hidden":false,"merged":[[89,2,90,2],[35,1,41,1],[35,2,37,2],[38,2,39,2],[91,1,98,1],[91,2,94,2],[58,1,71,1],[58,2,61,2],[73,12,107,12],[13,1,13,15],[14,1,34,1],[14,2,16,2],[18,2,19,2],[24,2,26,2],[27,2,29,2],[14,11,35,11],[99,1,107,1],[99,2,102,2],[36,11,72,11],[42,1,57,1],[42,2,47,2],[72,1,83,1],[72,2,77,2],[84,1,90,1],[1,0,1,1],[9,0,9,15],[7,0,7,15],[84,2,86,2],[11,1,11,3],[5,12,5,14],[10,1,10,15],[5,6,5,11],[12,1,12,3],[11,11,12,11],[11,12,12,12],[8,0,8,15],[69,2,71,2],[73,11,107,11],[14,12,34,12],[35,12,72,12]]}
["Telesystem",null,null,"Länk till flik Projektuppgifter"]
["Slutbesiktning : ",null,{"$f":"IF(Projektuppgifter!B17=\"\",\"Fyll i datum\",Projektuppgifter!B17)","v":"Fyll i datum"}]
[]
["För fullständig beskrivning av kraven för respektive leverans hänvisas till TDOK 2019:0210 Data om anläggningen - Data och dokumentation till förvaltande system - Väg"]
[]
[null,null,null,null,null,"Fylls i av:","Projekt/Leverantör",null,null,null,null,null,"Mottagande förvaltning",null,null,"Alla"]
[null,null,null,null,"Filformat\nvisningsfil","Filformat\nunderlagsfil","Aktuellt att upprättas av projektet","Filnamn","Levereras av:\n- E (Entreprenör)\n- K (Konsult)\n- B (Beställare)\n(datum + namn)","Projektet intygar att nedanstående dokument är kvalitetsgranskade samt levererade till Chaos\n(datum + namn)","Levererat till förvaltande system och aviserat leveransen till mottagande förvaltning \n(datum + namn)","Levereras till","Förvaltande system","Kontrollerat\n(datum + namn (ej initialer) och org.tillhörighet)","Godkänt av mottagande PL\n(datum + namn (ej initialer) och org.tillhörighet)","Eventuella kommentarer"]
["2 veckor före slutbesiktning "]
[{"$f":"\" Leverans från leverantör (E/K) till överenskommen leveransyta, för mottagningskontroll senast: \"&IF(Projektuppgifter!C66=\"\",\"Fyll i datum\",TEXT(DATE(YEAR(Projektuppgifter!C66),MONTH(Projektuppgifter!C66),DAY(Projektuppgifter!C66)),\"ÅÅÅÅ-MM-DD\"))","v":" Leverans från leverantör (E/K) till överenskommen leveransyta, för mottagningskontroll senast: Fyll i datum"}]
[{"$f":"\"Leverans till mottagande förvaltning senast: \"&IF(C2=\"Fyll i datum\",\"Fyll i datum\",TEXT(DATE(YEAR(C2),MONTH(C2),DAY(C2)-14),\"ÅÅÅÅ-MM-DD\"))","v":"Leverans till mottagande förvaltning senast: Fyll i datum"}]
["ID","Data för lagring i databas"]
[0,"TMALL 0742 - Laddmall för komponenter\nLaddmall för uppförd anläggning (en laddmall per central)",null,null," --","xlsx",null,null,null,null,null,"Chaos","GusMaximo"]
[0,"TMALL 0742 - Laddmall för komponenter\nSkrotningsladdmall (för de projekt som river anläggning)",null,null," --","xlsx"]
["ID","Teknisk dokumentation"]
[1,"ITV","Apparatskåp","Planritning","PDF/A","dwg",null,null,null,null,null,"Chaos (mottagande förvaltning skapar koppling mellan Chaos och GusMaximo)","GusMaximo"]
[2,null,null,"Apparatskåpsdokumentation","PDF/A","dwg"]
[3,null,null,"Drift- och underhållsdokumentation","PDF/A","docx"]
[4,null,"Kamera","Apparatskåpsdokumentation","PDF/A","docx"]
[5,null,"ITV-server","Apparatskåpsdokumentation","PDF/A","docx"]
[6,null,null,"Drift- och underhållsdokumentation","PDF/A","docx"]
[7,null,"Mottagare","Apparatskåpsdokumentation","PDF/A","docx"]
[8,null,"Enkoder","Apparatskåpsdokumentation","PDF/A","docx"]
[9,null,"Nätaggregat","Apparatskåpsdokumentation","PDF/A","docx"]
[10,null,"Kopplingsbox","Apparatskåpsdokumentation","PDF/A","docx"]
[11,null,"Fiberbox, plint","Planritning","PDF/A","dwg"]
[12,null,null,"Apparatskåpsdokumentation","PDF/A","dwg"]
[13,null,null,"Drift- och underhållsdokumentation","PDF/A","docx"]
[14,null,"Inspelningsutrustning","Planritning","PDF/A","dwg"]
[15,null,null,"Apparatskåpsdokumentation","PDF/A","dwg"]
[16,null,null,"Drift- och underhållsdokumentation","PDF/A","docx"]
[17,null,"Dörrkontakt","Apparatskåpsdokumentation","PDF/A","docx"]
[18,null,"Kamerastolpe","Apparatskåpsdokumentation","PDF/A","docx"]
[19,null,"Glana-modem","Apparatskåpsdokumentation","PDF/A","docx"]
[20,null,"Antenn","Apparatskåpsdokumentation","PDF/A","docx"]
[21,null,"Manöverpanel","Apparatskåpsdokumentation","PDF/A","docx"]
[1,"Incidentdetektering (kamerabaserad)","Apparatskåp","Planritning","PDF/A","dwg",null,null,null,null,null,null,"GusMaximo"]
[2,null,null,"Apparatskåpsdokumentation","PDF/A","dwg",null,null,null,null,null,"Chaos (mottagande förvaltning skapar koppling mellan Chaos och GusMaximo)"]
[3,null,null,"Drift- och underhållsdokumentation","PDF/A","docx"]
[4,null,"Server indicentdetektering","Apparatskåpsdokumentation","PDF/A","docx"]
[5,null,null,"Drift- och underhållsdokumentation","PDF/A","docx"]
[6,null,"Detektor","Apparatskåpsdokumentation","PDF/A","docx"]
[7,null,"Nätaggregat","Apparatskåpsdokumentation","PDF/A","docx"]
[1,"Brandlarm","Brandcentral","Planritning","PDF/A","dwg"]
[2,null,null,"Orienteringsritning","PDF/A","dwg"]
[3,null,null,"Serviceritning","PDF/A","dwg"]
[4,null,null,"Sensorkabelkonfiguration","PDF/A","dwg"]
[5,null,null,"Apparatskåpsdokumentation","PDF/A","dwg"]
[6,null,null,"Drift- och underhållsdokumentation","PDF/A","docx"]
[7,null,"Kopplingsbox","Apparatskåpsdokumentation","PDF/A","dwg"]
[8,null,"Larmknapp","Apparatskåpsdokumentation","PDF/A","dwg"]
[9,null,"Sirén larmdon","Apparatskåpsdokumentation","PDF/A","dwg"]
[10,null,"Blixtljus larmdon","Apparatskåpsdokumentation","PDF/A","dwg"]
[11,null,"Roterande ljud larmdon","Apparatskåpsdokumentation","PDF/A","dwg"]
[12,null,"Ljusindikation larmdon","Apparatskåpsdokumentation","PDF/A","dwg"]
[13,null,"Brytare","Apparatskåpsdokumentation","PDF/A","dwg"]
[14,null,"Handbrandsläckare","Apparatskåpsdokumentation","PDF/A","dwg"]
[15,null,"Brandförsvarstablå","Apparatskåpsdokumentation","PDF/A","dwg"]
[16,null,"Närvarogivare för handbrandsläckare","Apparatskåpsdokumentation","PDF/A","dwg"]
[1,"Passerkontroll","Apparatskåp","Planritning","PDF/A","dwg"]
[2,null,null,"Dörrmiljöritning","PDF/A","dwg"]
[3,null,null,"Apparatskåpsdokumentation","PDF/A","dwg"]
[4,null,null,"Drift- och underhållsdokumentation","PDF/A","docx"]
[5,null,"Undercentral","Samtliga dokument kopplade till apparatskåp","PDF/A","dwg"]
[6,null,"I/O box","Samtliga dokument kopplade till apparatskåp","PDF/A","dwg"]
[7,null,"Kortläsare","Samtliga dokument kopplade till apparatskåp","PDF/A","dwg"]
[8,null,"Styrbox motorlås","Samtliga dokument kopplade till apparatskåp","PDF/A","dwg"]
[9,null,"Öppnarknapp","Samtliga dokument kopplade till apparatskåp","PDF/A","dwg"]
[10,null,"Larmknapp","Samtliga dokument kopplade till apparatskåp","PDF/A","dwg"]
[11,null,"Dörrkontakt/dörr","Samtliga dokument kopplade till apparatskåp","PDF/A","dwg"]
[12,null,"Passagesystem server","Planritning","PDF/A","dwg"]
[13,null,null,"Drift- och underhållsdokumentation","PDF/A","docx"]
[14,null,null,"Systemspecifikation","PDF/A","docx"]
[1,"Inbrottslarm","Apparatskåp","Planritning","PDF/A","dwg"]
[2,null,null,"Anläggarintyg","PDF/A","docx",null,null,null,null,null,"Chaos (mottagande förvaltning skapar koppling mellan Chaos och GusMaximo)","GusMaximo"]
[3,null,null,"Sektions och områdesförteckning","PDF/A","docx"]
[4,null,null,"Apparatskåpsdokumentation","PDF/A","dwg"]
[5,null,null,"Drift- och underhållsdokumentation för platsen","PDF/A","docx"]
[6,null,null,"Strömförbrukningsprotokoll/ beräkning","PDF/A","docx"]
[7,null,"Manöverpanel","Samtliga dokument kopplade till apparatskåp","PDF/A","dwg/docx"]
[8,null,"Undercentral","Samtliga dokument kopplade till apparatskåp","PDF/A","dwg"]
[9,null,"I/O box","Samtliga dokument kopplade till apparatskåp","PDF/A","dwg"]
[10,null,"Givare, inbrottslarm","Samtliga dokument kopplade till apparatskåp","PDF/A","dwg"]
[11,null,"Sirén","Samtliga dokument kopplade till apparatskåp","PDF/A","dwg"]
[12,null,"Dörrkontakt/dörr","Samtliga dokument kopplade till apparatskåp","PDF/A","dwg"]
[1,"Meddelande- och PA-system","Apparatskåp","Planritning","PDF/A","dwg"]
[2,null,null,"Apparatskåpsdokumentation","PDF/A","dwg"]
[3,null,null,"Drift- och underhållsdokumentation","PDF/A","docx"]
[4,null,"Högtalare","Apparatskåpsdokumentation","PDF/A","dwg"]
[5,null,"Förstärkare","Apparatskåpsdokumentation","PDF/A","dwg"]
[6,null,"Styr/Audioenhet","Apparatskåpsdokumentation","PDF/A","dwg"]
[7,null,null,"Ljudfiler","NA","NA"]
[1,"Hjälptelefoner","Telefon","Planritning","PDF/A","dwg"]
[2,null,null,"Apparatskåpsdokumentation","PDF/A","dwg"]
[3,null,null,"Telefonlista","PDF/A","docx"]
[4,null,null,"Drift- och underhållsdokumentation","PDF/A","docx"]
[5,null,"Hjälptelefon","Apparatskåpsdokumentation","PDF/A","dwg"]
[6,null,"Sirén","Apparatskåpsdokumentation","PDF/A","dwg"]
[7,null,"Nätaggregat","Apparatskåpsdokumentation","PDF/A","dwg"]
[8,null,"Kopplingsbox","Apparatskåpsdokumentation","PDF/A","dwg"]
[1,"Radio","Apparatskåp","Planritning","PDF/A","dwg"]
[2,null,null,"Konstruktionsdokumentation för Radio","PDF/A","dwg"]
[3,null,null,"Apparatskåpsdokumentation","PDF/A","dwg"]
[4,null,null,"Drift- och underhållsdokumentation","PDF/A","dwg"]
[5,null,"Splitter/combiner","Apparatskåpsdokumentation","PDF/A","dwg"]
[6,null,"Filter","Apparatskåpsdokumentation","PDF/A","dwg"]
[7,null,"Strömförsörjning","Apparatskåpsdokumentation","PDF/A","dwg"]
[8,null,"Centralapparat","Apparatskåpsdokumentation","PDF/A","dwg"]
[9,null,"Repeater","Apparatskåpsdokumentation","PDF/A","dwg"]

{"sheet":"5.8 Trafiksystem","index":17,"n_rows":255,"n_cols":16,"rows_kept":255,"cut":false,"hidden":false,"merged":[[10,1,10,15],[5,6,5,11],[51,1,60,2],[15,2,17,2],[15,1,32,1],[32,2,32,3],[11,1,11,3],[12,1,12,3],[29,2,31,2],[33,1,50,1],[33,2,35,2],[14,1,14,15],[18,2,23,2],[24,2,27,2],[8,0,8,15],[241,1,254,2],[186,11,254,11],[186,12,254,12],[1,0,1,1],[9,0,9,15],[7,0,7,15],[163,12,185,12],[15,12,32,12],[33,12,50,12],[51,12,74,12],[13,1,13,3],[11,11,13,11],[11,12,13,12],[135,1,149,2],[150,1,162,2],[5,12,5,14],[175,1,185,2],[51,11,74,11],[75,11,120,11],[215,1,228,2],[75,12,162,12],[229,1,240,2],[15,11,32,11],[33,11,50,11],[121,11,185,11],[186,1,200,2],[201,1,214,2],[61,1,74,2],[91,1,106,2],[107,1,120,2],[121,1,134,2],[75,1,90,2],[36,2,41,2],[42,2,45,2],[47,2,49,2],[50,2,50,3],[163,1,174,2]]}
["Trafiksystem",null,null,"Länk till flik Projektuppgifter"]
["Slutbesiktning : ",null,{"$f":"IF(Projektuppgifter!B17=\"\",\"Fyll i datum\",Projektuppgifter!B17)","v":"Fyll i datum"}]
[]
["För fullständig beskrivning av kraven för respektive leverans hänvisas till TDOK 2019:0210 Data om anläggningen - Data och dokumentation till förvaltande system - Väg"]
[]
[null,null,null,null,null,"Fylls i av:","Projekt/Leverantör",null,null,null,null,null,"Mottagande förvaltning",null,null,"Alla"]
[null,null,null,null,"Filformat\nvisningsfil","Filformat\nunderlagsfil","Aktuellt att upprättas av projektet","Filnamn","Levereras av:\n- E (Entreprenör)\n- K (Konsult)\n- B (Beställare)\n(datum + namn)","Projektet intygar att nedanstående dokument är kvalitetsgranskade samt levererade till Chaos\n(datum + namn)","Levererat till förvaltande system och aviserat leveransen till mottagande förvaltning \n(datum + namn)","Levereras till","Förvaltande system","Kontrollerat\n(datum + namn (ej initialer) och org.tillhörighet)","Godkänt av mottagande PL\n(datum + namn (ej initialer) och org.tillhörighet)","Eventuella kommentarer"]
["2 veckor före slutbesiktning "]
[{"$f":"\" Leverans från leverantör (E/K) till överenskommen leveransyta, för mottagningskontroll senast: \"&IF(Projektuppgifter!C75=\"\",\"Fyll i datum\",TEXT(DATE(YEAR(Projektuppgifter!C75),MONTH(Projektuppgifter!C75),DAY(Projektuppgifter!C75)),\"ÅÅÅÅ-MM-DD\"))","v":" Leverans från leverantör (E/K) till överenskommen leveransyta, för mottagningskontroll senast: Fyll i datum"}]
[{"$f":"\"Leverans till mottagande förvaltning senast: \"&IF(C2=\"Fyll i datum\",\"Fyll i datum\",TEXT(DATE(YEAR(C2),MONTH(C2),DAY(C2)-14),\"ÅÅÅÅ-MM-DD\"))","v":"Leverans till mottagande förvaltning senast: Fyll i datum"}]
["ID","Data för lagring i databas"]
[0,"TMALL 0742 - Laddmall för komponenter\nLaddmall för uppförd anläggning (en laddmall per central)",null,null," --","xlsx",null,null,null,null,null,"Chaos","GusMaximo"]
[0,"TMALL 0742 - Laddmall för komponenter\nSkrotningsladdmall (för de projekt som river anläggning)",null,null," --","xlsx"]
[0,"TMALL 1253 Laddmall för FU, Förebyggande Underhåll, Maximo",null,null," --","xlsx"]
["ID","Teknisk dokumentation"]
[1,"Trafiksignal","Signal - trafiksignal","Signalplan","PDF/A","dwg",null,null,null,null,null,"Chaos (mottagande förvaltning skapar koppling mellan Chaos och GusMaximo)","GusMaximo"]
[2,null,null,"Kabelplan med kabelförteckning","PDF/A","dwg"]
[3,null,null,"Apparatskåpsdokumentation","PDF/A","dwg"]
[4,null,"Trafiksignal - Funktionshandlingar","Signalgruppsfunktioner, alla tidplaner","PDF/A","dwg"]
[5,null,null,"Detektorfunktioner","PDF/A","docx, xlsx"]
[6,null,null,"Samordningsdiagram","PDF/A","dwg"]
[7,null,null,"Ritning över konfliktpunkter","PDF/A","dwg"]
[8,null,null,"Säkerhetstidsberäkningar","PDF/A","docx, xlsx"]
[9,null,null,"Spärrmatris","PDF/A","docx, xlsx"]
[10,null,"Trafiksignal - Inkopplingsritningar","Inkopplingsritning signalkabel","PDF/A","dwg, VSD"]
[11,null,null,"Inkopplingsritning Detektorkabel","PDF/A","dwg, VSD"]
[12,null,null,"Inkopplingsritning Förbindelsekabel","PDF/A","dwg, VSD"]
[13,null,null,"Gruppförteckning i apparatskåp, teknikhus och eventuell central för inkommande elservis","PDF/A","docx"]
[14,null,"Trafiksignal - Dokumentation från kontrollprogram och provningar","Provningsprotokoll enligt kontrollprogram trafiksignaler","PDF/A","docx, xlsx"]
[15,null,"Trafiksignal - Manualer och underhållsinstruktioner","Service- och programmeringsmanual","PDF/A","docx, xlsx"]
[16,null,null,"Underhållsinstruktioner","PDF/A","docx, xlsx"]
[17,null,null,"Inmätningar","PDF/A","dwg"]
[18,null,"Certifikat",null,"PDF/A"," --"]
[1,"Rampstyrning","Signal - Rampstyrning ","Signalplan","PDF/A","dwg",null,null,null,null,null,"Chaos (mottagande förvaltning skapar koppling mellan Chaos och GusMaximo)","GusMaximo"]
[2,null,null,"Kabelplan med kabelförteckning","PDF/A","dwg"]
[3,null,null,"Apparatskåpsdokumentation","PDF/A","dwg"]
[4,null,"Rampstyrning - Funktionshandlingar","Signalgruppsfunktioner, alla tidplaner","PDF/A","dwg"]
[5,null,null,"Detektorfunktioner","PDF/A","docx, xlsx"]
[6,null,null,"Samordningsdiagram","PDF/A","dwg"]
[7,null,null,"Ritning över konfliktpunkter","PDF/A","dwg"]
[8,null,null,"Säkerhetstidsberäkningar","PDF/A","docx, xlsx"]
[9,null,null,"Spärrmatris","PDF/A","docx, xlsx"]
[10,null,"Rampstyrning  - Inkopplingsritningar","Inkopplingsritning signalkabel","PDF/A","dwg, VSD"]
[11,null,null,"Inkopplingsritning Detektorkabel","PDF/A","dwg, VSD"]
[12,null,null,"Inkopplingsritning Förbindelsekabel","PDF/A","dwg, VSD"]
[13,null,null,"Gruppförteckning i apparatskåp, teknikhus och eventuell central för inkommande elservis","PDF/A","docx"]
[14,null,"Rampstyrning - Dokumentation från kontrollprogram och provningar","Provningsprotokoll enligt kontrollprogram trafiksignaler","PDF/A","docx, xlsx"]
[15,null,"Rampstyrning  - Manualer och underhållsinstruktioner","Service- och programmeringsmanual","PDF/A","docx, xlsx"]
[16,null,null,"Underhållsinstruktioner","PDF/A","docx, xlsx"]
[17,null,null,"Inmätningar","PDF/A","dwg"]
[18,null,"Certifikat",null,"PDF/A"," --"]
[1,"Trafikrelaterad mätning",null,"Planritning","PDF/A","dwg",null,null,null,null,null,"Chaos (mottagande förvaltning skapar koppling mellan Chaos och GusMaximo)","GusMaximo"]
[2,null,null,"Apparatskåpsdokumentation","PDF/A","dwg"]
[3,null,null,"Datablad","PDF/A","docx, xlsx"]
[4,null,null,"Reservdelslista","PDF/A","docx, xlsx"]
[5,null,null,"Installationsmanual","PDF/A","docx"]
[6,null,null,"Konfigurationsinstruktion","PDF/A","docx, xlsx"]
[7,null,null,"Felhanteringsmanual","PDF/A","docx, xlsx"]
[8,null,null,"Underhållsinstruktion","PDF/A","docx, xlsx"]
[9,null,null,"Systembeskrivning","PDF/A","docx, xlsx"]
[10,null,null,"Utbildningsmaterial","PDF/A","docx, xlsx, pptx"]
[1,"Motorvägskontrollsystem (MCS)",null,"Skyltritning","PDF/A","dwg"]
[2,null,null,"Planritning","PDF/A","dwg"]
[3,null,null,"Apparatskåpsdokumentation","PDF/A","dwg"]
[4,null,null,"Datablad","PDF/A"," --"]
[5,null,null,"Reservdelslista","PDF/A","docx, xlsx"]
[6,null,null,"Konfigurationsinstruktion","PDF/A","docx, xlsx"]
[7,null,null,"Felhanteringsmanual","PDF/A","docx, xlsx"]
[8,null,null,"Underhållsinstruktion","PDF/A","docx, xlsx"]
[9,null,null,"Elritning","PDF/A","dwg"]
[10,null,null,"Installationsmanual","PDF/A","docx"]
[11,null,null,"Systembeskrivning","PDF/A","docx"]
[12,null,null,"Utbildningsmaterial","PDF/A","docx, xlsx"]
[13,null,null,"Hållfasthetsberäkningar för portal, skyltbrygga och/eller stolpe","PDF/A","docx, xlsx"]
[14,null,null,"Datablad","PDF/A"," --"]
[1,"Variabel vägvisning (VDS)",null,"Skyltritning","PDF/A","dwg",null,null,null,null,null,"Chaos (mottagande förvaltning skapar koppling mellan Chaos och GusMaximo)","GusMaximo"]
[2,null,null,"Planritning","PDF/A","dwg"]
[3,null,null,"Apparatskåpsdokumentation","PDF/A","dwg"]
[4,null,null,"Datablad","PDF/A"," --"]
[5,null,null,"Bitmap/Skyltkort","PDF/A","bmp"]
[6,null,null,"Reservdelslista","PDF/A","docx, xlsx"]
[7,null,null,"Konfigurationsinstruktion","PDF/A","docx, xlsx"]
[8,null,null,"Felhanteringsmanual","PDF/A","docx, xlsx"]
[9,null,null,"SUL – Signalutbyteslista","PDF/A","docx, xlsx"]
[10,null,null,"Underhållsinstruktion","PDF/A","docx, xlsx"]
[11,null,null,"Elritning","PDF/A","dwg"]
[12,null,null,"Installationsmanual","PDF/A","docx"]
[13,null,null,"Systembeskrivning","PDF/A","docx"]
[14,null,null,"Utbildningsmaterial","PDF/A","docx"]
[15,null,null,"Hållfasthetsberäkningar för portal, skyltbrygga och/eller stolpe","PDF/A","docx, xlsx"]
[16,null,null,"Datablad","PDF/A"," --"]
[1,"Omställbart vägmärke",null,"Skyltritning","PDF/A","dwg"]
[2,null,null,"Planritning","PDF/A","dwg"]
[3,null,null,"Apparatskåpsdokumentation","PDF/A","dwg"]
[4,null,null,"Datablad","PDF/A"," --"]
[5,null,null,"Bitmap/Skyltkort","PDF/A","bmp"]
[6,null,null,"Reservdelslista","PDF/A","docx, xlsx"]
[7,null,null,"Konfigurationsinstruktion","PDF/A","docx, xlsx"]
[8,null,null,"Felhanteringsmanual","PDF/A","docx, xlsx"]
[9,null,null,"SUL – Signalutbyteslista","PDF/A","docx, xlsx"]
[10,null,null,"Underhållsinstruktion","PDF/A","docx, xlsx"]
[11,null,null,"Elritning","PDF/A","dwg"]
[12,null,null,"Installationsmanual","PDF/A","docx"]
[13,null,null,"Systembeskrivning","PDF/A","docx"]
[14,null,null,"Utbildningsmaterial","PDF/A","docx"]
[15,null,null,"Hållfasthetsberäkningar för portal, skyltbrygga och/eller stolpe","PDF/A","docx, xlsx"]
[16,null,null,"Datablad","PDF/A"," --"]
[1,"Variabel hastighet (VH)",null,"Planritning","PDF/A","dwg"]
[2,null,null,"Apparatskåpsdokumentation","PDF/A","dwg"]
[3,null,null,"Datablad","PDF/A"," --"]
[4,null,null,"Reservdelslista","PDF/A","docx, xlsx"]
[5,null,null,"Konfigurationsinstruktion","PDF/A","docx, xlsx"]
[6,null,null,"Felhanteringsmanual","PDF/A","docx, xlsx"]
[7,null,null,"SUL – Signalutbyteslista","PDF/A","docx, xlsx"]
[8,null,null,"Underhållsinstruktion","PDF/A","docx, xlsx"]
[9,null,null,"Elritning","PDF/A","dwg"]
[10,null,null,"Installationsmanual","PDF/A","docx"]
[11,null,null,"Systembeskrivning","PDF/A","docx"]
[12,null,null,"Utbildningsmaterial","PDF/A","docx"]
[13,null,null,"Hållfasthetsberäkningar för portal, skyltbrygga och/eller stolpe","PDF/A","docx, xlsx"]
[14,null,null,"Datablad","PDF/A"," --"]
[1,"Viltvarningssystem",null,"Planritning","PDF/A","dwg",null,null,null,null,null,"Chaos (mottagande förvaltning skapar koppling mellan Chaos och GusMaximo)"]
[2,null,null,"Apparatskåpsdokumentation","PDF/A","dwg"]
[3,null,null,"Datablad","PDF/A"," --"]
[4,null,null,"Reservdelslista","PDF/A","docx, xlsx"]
[5,null,null,"Konfigurationsinstruktion","PDF/A","docx, xlsx"]
[6,null,null,"Felhanteringsmanual","PDF/A","docx, xlsx"]
[7,null,null,"SUL – Signalutbyteslista","PDF/A","docx, xlsx"]
[8,null,null,"Underhållsinstruktion","PDF/A","docx, xlsx"]
[9,null,null,"Elritning","PDF/A","dwg"]
[10,null,null,"Installationsmanual","PDF/A","docx"]
[11,null,null,"Systembeskrivning","PDF/A","docx"]
[12,null,null,"Utbildningsmaterial","PDF/A","docx"]
[13,null,null,"Hållfasthetsberäkningar för portal, skyltbrygga och/eller stolpe","PDF/A","docx, xlsx"]
[14,null,null,"Datablad","PDF/A"," --"]
[1,"Trafikinformationstavla",null,"Skyltritning","PDF/A","dwg"]
[2,null,null,"Planritning","PDF/A","dwg"]
[3,null,null,"Apparatskåpsdokumentation","PDF/A","dwg"]
[4,null,null,"Datablad","PDF/A"," --"]
[5,null,null,"Reservdelslista","PDF/A","docx, xlsx"]
[6,null,null,"Konfigurationsinstruktion","PDF/A","docx, xlsx"]
[7,null,null,"Felhanteringsmanual","PDF/A","docx, xlsx"]
[8,null,null,"SUL – Signalutbyteslista","PDF/A","docx, xlsx"]
[9,null,null,"Underhållsinstruktion","PDF/A","docx, xlsx"]
[10,null,null,"Elritning","PDF/A","dwg"]
[11,null,null,"Installationsmanual","PDF/A","docx"]
[12,null,null,"Systembeskrivning","PDF/A","docx"]
[13,null,null,"Utbildningsmaterial","PDF/A","docx"]
[14,null,null,"Hållfasthetsberäkningar för portal, skyltbrygga och/eller stolpe","PDF/A","docx, xlsx"]
[15,null,null,"Datablad","PDF/A"," --"]
[1,"Tunnelinformationsskylt (TIS) och \nTunnelentreskylt (TES)",null,"Skyltritning","PDF/A","dwg"]
[2,null,null,"Planritning","PDF/A","dwg"]
[3,null,null,"Apparatskåpsdokumentation","PDF/A","dwg"]
[4,null,null,"Datablad","PDF/A"," --"]
[5,null,null,"Bitmap","PDF/A","bmp"]
[6,null,null,"Reservdelslista","PDF/A","docx, xlsx"]
[7,null,null,"Konfigurationsinstruktion","PDF/A","docx, xlsx"]
[8,null,null,"Felhanteringsmanual","PDF/A","docx, xlsx"]
[9,null,null,"SUL – Signalutbyteslista","PDF/A","docx, xlsx"]
[10,null,null,"Underhållsinstruktion","PDF/A","docx, xlsx"]
[11,null,null,"Elritning","PDF/A","dwg"]
[12,null,null,"Hållfasthetsberäkningar för portal, skyltbrygga och/eller stolpe","PDF/A","docx, xlsx"]
[13,null,null,"Datablad","PDF/A"," --"]
[1,"Incidentindikeringssystem (t.ex. RIDS dock ej kamerabaserade system)",null,"Planritning","PDF/A","dwg",null,null,null,null,null,null,"GusMaximo"]
[2,null,null,"Apparatskåpsdokumentation","PDF/A","dwg"]
[3,null,null,"Datablad","PDF/A"," --"]
[4,null,null,"Reservdelslista","PDF/A","docx, xlsx"]
[5,null,null,"Konfigurationsinstruktion","PDF/A","docx, xlsx"]
[6,null,null,"Felhanteringsmanual","PDF/A","docx, xlsx"]
[7,null,null,"Underhållsinstruktion","PDF/A","docx, xlsx"]
[8,null,null,"Installationsmanual","PDF/A","docx"]
[9,null,null,"Systembeskrivning","PDF/A","docx"]
[10,null,null,"Utbildningsmaterial","PDF/A","docx"]
[11,null,null,"Hållfasthetsberäkningar för portal, skyltbrygga och/eller stolpe","PDF/A","docx, xlsx"]
[12,null,null,"Datablad","PDF/A"," --"]
[1,"Viktkontroll (HWIM)",null,"Planritning","PDF/A","dwg"]
[2,null,null,"Apparatskåpsdokumentation","PDF/A","dwg"]
[3,null,null,"Datablad","PDF/A"," --"]
[4,null,null,"Reservdelslista","PDF/A","docx, xlsx"]
[5,null,null,"Konfigurationsinstruktion","PDF/A","docx, xlsx"]
[6,null,null,"Felhanteringsmanual","PDF/A","docx, xlsx"]
[7,null,null,"Underhållsinstruktion","PDF/A","docx, xlsx"]
[8,null,null,"Installationsmanual","PDF/A","docx"]
[9,null,null,"Systembeskrivning","PDF/A","docx"]
[10,null,null,"Utbildningsmaterial","PDF/A","docx"]
[11,null,null,"Elritning","PDF/A","dwg"]
[1,"Kontrollplats",null,"Planritning","PDF/A","dwg",null,null,null,null,null,"Chaos (mottagande förvaltning skapar koppling mellan Chaos och GusMaximo)","GusMaximo"]
[2,null,null,"Apparatskåpsdokumentation","PDF/A","dwg"]
[3,null,null,"Datablad","PDF/A"," --"]
[4,null,null,"Reservdelslista","PDF/A","docx, xlsx"]
[5,null,null,"Konfigurationsinstruktion","PDF/A","docx, xlsx"]
[6,null,null,"Felhanteringsmanual","PDF/A","docx, xlsx"]
[7,null,null,"SUL – Signalutbyteslista","PDF/A","docx, xlsx"]
[8,null,null,"Underhållsinstruktion","PDF/A","docx, xlsx"]
[9,null,null,"Elritning","PDF/A","dwg"]
[10,null,null,"Installationsmanual","PDF/A","docx"]
[11,null,null,"Systembeskrivning","PDF/A","docx"]
[12,null,null,"Utbildningsmaterial","PDF/A"," --"]
[13,null,null,"Belysningsberäkningar","PDF/A"," --"]
[14,null,null,"Hållfasthetsberäkningar för stolpe","PDF/A","docx, xlsx"]
[15,null,null,"Datablad","PDF/A"," --"]
[1,"Avstängningsanordning",null,"Planritning","PDF/A","dwg"]
[2,null,null,"Apparatskåpsdokumentation","PDF/A","dwg"]
[3,null,null,"Datablad","PDF/A"," --"]
[4,null,null,"Reservdelslista","PDF/A","docx, xlsx"]
[5,null,null,"Konfigurationsinstruktion","PDF/A","docx, xlsx"]
[6,null,null,"Felhanteringsmanual","PDF/A","docx, xlsx"]
[7,null,null,"SUL – Signalutbyteslista","PDF/A","docx, xlsx"]
[8,null,null,"Underhållsinstruktion","PDF/A","docx, xlsx"]
[9,null,null,"Elritning","PDF/A","dwg"]
[10,null,null,"Installationsmanual","PDF/A","docx"]
[1,null,null,"Systembeskrivning","PDF/A","docx"]
[12,null,null,"Utbildningsmaterial","PDF/A"," --"]
[13,null,null,"Hållfasthetsberäkningar för portal, skyltbrygga och/eller stolpe","PDF/A","docx, xlsx"]
[14,null,null,"Datablad","PDF/A"," --"]
[1,"Aktivt farthinder",null,"Planritning","PDF/A","dwg"]
[2,null,null,"Apparatskåpsdokumentation","PDF/A","dwg"]
[3,null,null,"Datablad","PDF/A"," --"]
[4,null,null,"Reservdelslista","PDF/A","docx, xlsx"]
[5,null,null,"Konfigurationsinstruktion","PDF/A","docx, xlsx"]
[6,null,null,"Felhanteringsmanual","PDF/A","docx, xlsx"]
[7,null,null,"SUL – Signalutbyteslista","PDF/A","docx, xlsx"]
[8,null,null,"Underhållsinstruktioner","PDF/A","docx, xlsx"]
[9,null,null,"Elritning","PDF/A","dwg"]
[10,null,null,"Installationsmanual","PDF/A","docx"]
[11,null,null,"Systembeskrivning","PDF/A","docx"]
[12,null,null,"Utbildningsmaterial","PDF/A"," --"]
[13,null,null,"Hållfasthetsberäkningar för portal, skyltbrygga och/eller stolpe","PDF/A","docx, xlsx"]
[14,null,null,"Datablad","PDF/A"," --"]
[1,"Bussemafor",null,"Planritning","PDF/A","dwg"]
[2,null,null,"Apparatskåpsdokumentation","PDF/A","dwg"]
[3,null,null,"Datablad","PDF/A"," --"]
[4,null,null,"Reservdelslista","PDF/A","docx, xlsx"]
[5,null,null,"Konfigurationsinstruktioner","PDF/A","docx, xlsx"]
[6,null,null,"Felhanteringsmanual","PDF/A","docx, xlsx"]
[7,null,null,"SUL – Signalutbyteslista","PDF/A","docx, xlsx"]
[8,null,null,"Underhållsinstruktioner","PDF/A","docx, xlsx"]
[9,null,null,"Elritning","PDF/A","dwg"]
[10,null,null,"Installationsmanual","PDF/A","docx"]
[11,null,null,"Systembeskrivning","PDF/A","docx"]
[12,null,null,"Utbildningsmaterial","PDF/A"," --"]
[1,"Öppningsbar bro",null,"Planritning","PDF/A","dwg"]
[2,null,null,"Apparatskåpsdokumentation","PDF/A","dwg"]
[3,null,null,"Datablad","PDF/A"," --"]
[4,null,null,"Reservdelslista","PDF/A","docx, xlsx"]
[5,null,null,"Konfigurationsinstruktion","PDF/A","docx, xlsx"]
[6,null,null,"Felhanteringsmanual","PDF/A","docx, xlsx"]
[7,null,null,"SUL – Signalutbyteslista","PDF/A","docx, xlsx"]
[8,null,null,"Underhållsinstruktion","PDF/A","docx, xlsx"]
[9,null,null,"Elritning","PDF/A","dwg"]
[10,null,null,"Installationsmanual","PDF/A","docx"]
[11,null,null,"Systembeskrivning","PDF/A","docx"]
[12,null,null,"Utbildningsmaterial","PDF/A"," --"]
[13,null,null,"Hållfasthetsberäkningar för portal, skyltbrygga och/eller stolpe","PDF/A","docx, xlsx"]
[14,null,null,"Datablad","PDF/A"," --"]

{"sheet":"5.9 VA","index":18,"n_rows":40,"n_cols":14,"rows_kept":40,"cut":false,"hidden":false,"merged":[[1,0,1,1],[7,0,7,13],[9,0,9,13],[35,1,35,13],[36,9,38,9],[36,10,38,10],[14,9,34,9],[14,10,34,10],[5,10,5,12],[10,1,10,13],[13,1,13,13],[5,4,5,9],[11,9,12,9],[11,10,12,10],[8,0,8,13]]}
["VA (avser elektriskt anslutna Pump- och VA-stationer för drän- och vägdagvatten)",null,null,null,null,null,null,null,"Länk till flik Projektuppgifter"]
["Slutbesiktning : ",null,{"$f":"IF(Projektuppgifter!B17=\"\",\"Fyll i datum\",Projektuppgifter!B17)","v":"Fyll i datum"}]
[]
["För fullständig beskrivning av kraven för respektive leverans hänvisas till TDOK 2019:0210 Data om anläggningen - Data och dokumentation till förvaltande system - Väg"]
[]
[null,null,null,"Fylls i av:","Projekt/Leverantör",null,null,null,null,null,"Mottagande förvaltning",null,null,"Alla"]
[null,null,"Filformat\nvisningsfil","Filformat\nunderlagsfil","Aktuellt att upprättas av projektet","Filnamn","Levereras av:\n- E (Entreprenör)\n- K (Konsult)\n- B (Beställare)\n(datum + namn)","Projektet intygar att nedanstående dokument är kvalitetsgranskade samt levererade till Chaos\n(datum + namn)","Levererat till förvaltande system och aviserat leveransen till mottagande förvaltning \n(datum + namn)","Levereras till","Förvaltande system","Kontrollerat\n(datum + namn (ej initialer) och org.tillhörighet)","Godkänt av mottagande PL\n(datum + namn (ej initialer) och org.tillhörighet)","Eventuella kommentarer"]
["2 veckor före slutbesiktning "]
[{"$f":"\" Leverans från leverantör (E/K) till överenskommen leveransyta, för mottagningskontroll senast: \"&IF(Projektuppgifter!C93=\"\",\"Fyll i datum\",TEXT(DATE(YEAR(Projektuppgifter!C93),MONTH(Projektuppgifter!C93),DAY(Projektuppgifter!C93)),\"ÅÅÅÅ-MM-DD\"))","v":" Leverans från leverantör (E/K) till överenskommen leveransyta, för mottagningskontroll senast: Fyll i datum"}]
[{"$f":"\"Leverans till mottagande förvaltning senast: \"&IF(C2=\"Fyll i datum\",\"Fyll i datum\",TEXT(DATE(YEAR(C2),MONTH(C2),DAY(C2)-14),\"ÅÅÅÅ-MM-DD\"))","v":"Leverans till mottagande förvaltning senast: Fyll i datum"}]
["ID","Data för lagring i databas"]
[0,"TMALL 0742 - Laddmall för komponenter\nLaddmall för uppförd anläggning (en laddmall per central)"," --","xlsx",null,null,null,null,null,"Chaos","GusMaximo"]
[0,"TMALL 0742 - Laddmall för komponenter\nSkrotningsladdmall (för de projekt som river anläggning)"," --","xlsx"]
["ID","Teknisk dokumentation"]
[1,"Ritningar","PDF/A","dwg",null,null,null,null,null,"Chaos (mottagande förvaltning skapar koppling mellan Chaos och GusMaximo)","GusMaximo"]
[2,"Apparatskåpdokumentation","PDF/A","dwg"]
[3,"Programvarudokumentation","PDF/A","docx"]
[4,"Drift och underhållsdokummentation","PDF/A","docx"]
[5,"Anläggnings-, system-, och funktionsbeskrivande dokumentation","PDF/A","docx"]
[6,"Beräkningsunderlag","PDF/A","docx"]
[7,"Foton","jpg"," --"]
[8,"Kontroll- och provningsprotokoll","PDF/A","docx, xlsx"]
[9,"Isolationsmätning- och skyddjordningsprotokoll","PDF/A","docx"]
[10,"Avtal och tillstånd","PDF/A","docx"]
[11,"El-, vatten- och fjärrvärmeservisbeställningar","PDF/A","docx"]
[12,"CE-dokumentation","PDF/A"," --"]
[13,"Miljödom (vattendom) inklusive beslut","PDF/A"," --"]
[14,"Anmälan inklusive beslut om vattenverksamhet","PDF/A"," --"]
[15,"Diariefört beslut om eventuellt undantag från utövande av vattenverksamhet enligt 11 kapitlet i miljöbalken","PDF/A"," --"]
[16,"Kontrollprogram miljö (för förvaltningsskedet)","PDF/A"," --"]
[17,"Övriga myndighetskrav","PDF/A"," --"]
[18,"Miljöinformation (allmän)","PDF/A"," --"]
[19,"Kulturhistorisk klassning/beslut","PDF/A"," --"]
[20,"Underhållsplan miljö","PDF/A"," --"]
[21,"Miljöinspektioner","PDF/A"," --"]
["ID","Programvaror och licenser"]
[1,"Tillämpningsprogram","--","zip",null,null,null,null,null,"PROVA","PROVA"]
[2,"Basprogram","--","zip"]
[3,"Licenslista","--","xlsx"]
[4,"Licenser","--","--",null,null,null,null,null,"Ansvarig projektledare på VO Underhåll","--"]

{"sheet":"5.10 Ventilation","index":19,"n_rows":27,"n_cols":14,"rows_kept":27,"cut":false,"hidden":false,"merged":[[1,0,1,1],[7,0,7,13],[9,0,9,13],[22,1,22,13],[23,9,25,9],[23,10,25,10],[14,9,21,9],[14,10,21,10],[5,10,5,12],[10,1,10,13],[13,1,13,13],[5,4,5,9],[11,9,12,9],[11,10,12,10],[8,0,8,13]]}
["Ventilation",null,null,"Länk till flik Projektuppgifter"]
["Slutbesiktning : ",null,{"$f":"IF(Projektuppgifter!B17=\"\",\"Fyll i datum\",Projektuppgifter!B17)","v":"Fyll i datum"}]
[]
["För fullständig beskrivning av kraven för respektive leverans hänvisas till TDOK 2019:0210 Data om anläggningen - Data och dokumentation till förvaltande system - Väg"]
[]
[null,null,null,"Fylls i av:","Projekt/Leverantör",null,null,null,null,null,"Mottagande förvaltning",null,null,"Alla"]
[null,null,"Filformat\nvisningsfil","Filformat\nunderlagsfil","Aktuellt att upprättas av projektet","Filnamn","Levereras av:\n- E (Entreprenör)\n- K (Konsult)\n- B (Beställare)\n(datum + namn)","Projektet intygar att nedanstående dokument är kvalitetsgranskade samt levererade till Chaos\n(datum + namn)","Levererat till förvaltande system och aviserat leveransen till mottagande förvaltning \n(datum + namn)","Levereras till","Förvaltande system","Kontrollerat\n(datum + namn (ej initialer) och org.tillhörighet)","Godkänt av mottagande PL\n(datum + namn (ej initialer) och org.tillhörighet)","Eventuella kommentarer"]
["2 veckor före slutbesiktning"]
[{"$f":"\" Leverans från leverantör (E/K) till överenskommen leveransyta, för mottagningskontroll senast: \"&IF(Projektuppgifter!C46=\"\",\"Fyll i datum\",TEXT(DATE(YEAR(Projektuppgifter!C46),MONTH(Projektuppgifter!C46),DAY(Projektuppgifter!C46)),\"ÅÅÅÅ-MM-DD\"))","v":" Leverans från leverantör (E/K) till överenskommen leveransyta, för mottagningskontroll senast: Fyll i datum"}]
[{"$f":"\"Leverans till mottagande förvaltning senast: \"&IF(C2=\"Fyll i datum\",\"Fyll i datum\",TEXT(DATE(YEAR(C2),MONTH(C2),DAY(C2)-14),\"ÅÅÅÅ-MM-DD\"))","v":"Leverans till mottagande förvaltning senast: Fyll i datum"}]
["ID","Data för lagring i databas"]
[0,"TMALL 0742 - Laddmall för komponenter\nLaddmall för uppförd anläggning (en laddmall per central)"," --","xlsx",null,null,null,null,null,"Chaos","GusMaximo"]
[0,"TMALL 0742 - Laddmall för komponenter\nSkrotningsladdmall (för de projekt som river anläggning)"," --","xlsx"]
["ID","Teknisk dokumentation"]
[1,"Planritning","PDF/A","dwg",null,null,null,null,null,"Chaos","GusMaximo(länk till Chaos)"]
[2,"Datablad","PDF/A","docx, xlsx"]
[3,"Underhållsplan","xlsx","docx, xlsx"]
[4,"Arbetsinstruktioner","PDF/A","docx, xlsx"]
[5,"Konfigurationsinstruktioner","PDF/A","docx, xlsx"]
[6,"Felhanteringsmanual","PDF/A","docx, xlsx"]
[7,"Underhållsinstruktioner","PDF/A","docx, xlsx"]
[8,"Elritning","PDF/A","docx, xlsx"]
["ID","Programvaror och licenser"]
[1,"Tillämpningsprogram","--","zip",null,null,null,null,null,"PROVA","PROVA"]
[2,"Basprogram","--","zip"]
[3,"Licenslista","--","xlsx"]
[4,"Licenser","--","--",null,null,null,null,null,"Ansvarig projektledare på VO Underhåll","--"]

{"sheet":"5.11 VViS","index":20,"n_rows":30,"n_cols":14,"rows_kept":30,"cut":false,"hidden":false,"merged":[[27,9,29,9],[14,9,15,9],[14,10,15,10],[16,9,23,9],[16,10,23,10],[24,1,24,13],[25,9,26,9],[25,10,26,10],[1,0,1,1],[9,0,9,13],[7,0,7,13],[13,1,13,13],[5,4,5,9],[5,10,5,12],[10,1,10,13],[11,9,12,9],[11,10,12,10],[8,0,8,13]]}
["VViS",null,null,"Länk till flik Projektuppgifter"]
["Slutbesiktning : ",null,{"$f":"IF(Projektuppgifter!B17=\"\",\"Fyll i datum\",Projektuppgifter!B17)","v":"Fyll i datum"}]
[]
["För fullständig beskrivning av kraven för respektive leverans hänvisas till TDOK 2019:0210 Data om anläggningen - Data och dokumentation till förvaltande system - Väg"]
[]
[null,null,null,"Fylls i av:","Projekt/Leverantör",null,null,null,null,null,"Mottagande förvaltning",null,null,"Alla"]
[null,null,"Filformat\nvisningsfil","Filformat\nunderlagsfil","Aktuellt att upprättas av projektet","Filnamn","Levereras av:\n- E (Entreprenör)\n- K (Konsult)\n- B (Beställare)\n(datum + namn)","Projektet intygar att nedanstående dokument är kvalitetsgranskade samt levererade till Chaos\n(datum + namn)","Levererat till förvaltande system och aviserat leveransen till mottagande förvaltning \n(datum + namn)","Levereras till","Förvaltande system","Kontrollerat\n(datum + namn (ej initialer) och org.tillhörighet)","Godkänt av mottagande PL\n(datum + namn (ej initialer) och org.tillhörighet)","Eventuella kommentarer"]
["2 veckor före slutbesiktning "]
[{"$f":"\" Leverans från leverantör (E/K) till överenskommen leveransyta, för mottagningskontroll senast: \"&IF(Projektuppgifter!C49=\"\",\"Fyll i datum\",TEXT(DATE(YEAR(Projektuppgifter!C49),MONTH(Projektuppgifter!C49),DAY(Projektuppgifter!C49)),\"ÅÅÅÅ-MM-DD\"))","v":" Leverans från leverantör (E/K) till överenskommen leveransyta, för mottagningskontroll senast: Fyll i datum"}]
[{"$f":"\"Leverans till mottagande förvaltning senast: \"&IF(C2=\"Fyll i datum\",\"Fyll i datum\",TEXT(DATE(YEAR(C2),MONTH(C2),DAY(C2)-14),\"ÅÅÅÅ-MM-DD\"))","v":"Leverans till mottagande förvaltning senast: Fyll i datum"}]
["ID","Data för lagring i databas"]
[0,"TMALL 0742 - Laddmall för komponenter\nLaddmall för uppförd anläggning (en laddmall per central)"," --","xlsx",null,null,null,null,null,"Chaos","GusMaximo(länk till Chaos)",null,null,"Platsspecifik (alla)"]
[0,"TMALL 0742 - Laddmall för komponenter\nSkrotningsladdmall (för de projekt som river anläggning)"," --","xlsx"]
["ID","Teknisk dokumentation"]
[1,"Planritning","PDF/A","dwg",null,null,null,null,null,"Chaos","GusMaximo(länk till Chaos)",null,null,"Platsspecifik"]
[2,"Fotografier","PDF/A","jpg/docx",null,null,null,null,null,null,null,null,null,"Platsspecifik"]
[3,"Egenkontroll (inkl. el-prov), signerad av E","PDF/A","--",null,null,null,null,null,"Chaos","Ej GUS",null,null,"Platsspecifik"]
[4,"Kontrollplan, signerad av TRVs BL","PDF/A","--",null,null,null,null,null,null,null,null,null,"Platsspecifik"]
[5,"Acceptanstestningsprotokoll (FAT, SAT, OAT)","PDF/A","--",null,null,null,null,null,null,null,null,null,"Nationellt gem."]
[6,"Leveransintyg och leveranscertifikat","PDF/A","--",null,null,null,null,null,null,null,null,null,"Nationellt gem."]
[7,"Leverantörsintyg, produktvalsanalyser miljö","PDF/A","--",null,null,null,null,null,null,null,null,null,"Nationellt gem."]
[8,"Överlämnanderapporter miljö","PDF/A","docx",null,null,null,null,null,null,null,null,null,"Nationellt/regionalt gem."]
[9,"Materialförteckning, markarbeten",".xlsx","xlsx",null,null,null,null,null,null,null,null,null,"Nationellt/regionalt gem."]
[10,"Bedömning - Relativ risk trafiksäkerhet",".xlsx","PFT/A",null,null,null,null,null,null,null,null,null,"Platsspecifik"]
["ID","Programvaror och licenser"]
[1,"Basprogram","--","zip",null,null,null,null,null,"PROVA","PROVA"]
[2,"Ifylld licenslista","--","xlsx"]
[3,"Licenser för basprogram","--","--",null,null,null,null,null,"IKTvävä (Anna Fransson)","--"]
[4,"Basprogram utvecklat av Trafikverket","--","--",null,null,null,null,null,null,"Trafikverket AZURE devops"]
[5,"Licenser för serverprogramvara, databaser mm.","--","--",null,null,null,null,null,null,"--"]

{"sheet":"5.12 Samord. komplex vägtunnel","index":21,"n_rows":27,"n_cols":15,"rows_kept":27,"cut":false,"hidden":false,"merged":[[10,1,10,14],[1,0,1,1],[5,5,5,10],[5,11,5,13],[7,0,7,14],[8,0,8,14],[9,0,9,14],[17,1,22,1],[23,1,24,1],[25,1,26,1],[11,10,26,10],[11,11,26,11],[11,1,16,1]]}
["Samordning komplex vägtunnel",null,null,null,"Länk till flik Projektuppgifter"]
["Slutbesiktning : ",null,{"$f":"IF(Projektuppgifter!B17=\"\",\"Fyll i datum\",Projektuppgifter!B17)","v":"Fyll i datum"}]
[]
["För fullständig beskrivning av kraven för respektive leverans hänvisas till TDOK 2019:0210 Data om anläggningen - Data och dokumentation till förvaltande system - Väg"]
[]
[null,null,null,null,"Fylls i av:","Projekt/Leverantör",null,null,null,null,null,"Mottagande förvaltning",null,null,"Alla"]
[null,null,null,"Filformat\nvisningsfil","Filformat\nunderlagsfil","Aktuellt att upprättas av projektet","Filnamn","Levereras av:\n- E (Entreprenör)\n- K (Konsult)\n- B (Beställare)\n(datum + namn)","Projektet intygar att nedanstående dokument är kvalitetsgranskade samt levererade till Chaos\n(datum + namn)","Levererat till förvaltande system och aviserat leveransen till mottagande förvaltning \n(datum + namn)","Levereras till","Förvaltande system","Kontrollerat\n(datum + namn (ej initialer) och org.tillhörighet)","Godkänt av mottagande PL\n(datum + namn (ej initialer) och org.tillhörighet)","Eventuella kommentarer"]
["2 veckor före slutbesiktning "]
[{"$f":"\" Leverans från leverantör (E/K) till överenskommen leveransyta, för mottagningskontroll senast: \"&IF(Projektuppgifter!C96=\"\",\"Fyll i datum\",TEXT(DATE(YEAR(Projektuppgifter!C96),MONTH(Projektuppgifter!C96),DAY(Projektuppgifter!C96)),\"ÅÅÅÅ-MM-DD\"))","v":" Leverans från leverantör (E/K) till överenskommen leveransyta, för mottagningskontroll senast: Fyll i datum"}]
[{"$f":"\"Leverans till mottagande förvaltning senast: \"&IF(C2=\"Fyll i datum\",\"Fyll i datum\",TEXT(DATE(YEAR(C2),MONTH(C2),DAY(C2)-14),\"ÅÅÅÅ-MM-DD\"))","v":"Leverans till mottagande förvaltning senast: Fyll i datum"}]
["ID","Teknisk dokumentation"]
[1,"Arbetsmiljö","Arbetsmiljöplan för hela anläggningen","PDF/A","docx",null,null,null,null,null,"Chaos (mottagande förvaltning skapar koppling mellan Chaos och GusMaximo)","GusMaximo"]
[2,null,"Risklista","PDF/A","docx"]
[3,null,"Driftavstängningsstrategi","PDF/A","docx"]
[4,null,"Utbildningsmaterial arbetsmiljö","PDF/A","pptx"]
[5,null,"Säkerhetshandbok","PDF/A","docx"]
[6,null,"Styrningsprinciper/åtgärdsrutiner driftavstängning","PDF/A","docx"]
["7a","Tunnelsäkerhet","Säkerhetsdokumentation","PDF/A","docx"]
["7b",null,"Säkerhetsbeskrivning","PDF/A","docx"]
[8,null,"Insatsplaner","PDF/A","--"]
[9,null,"Angreppsvägar och utrymningsvägar för räddningstjänst","xlsx","--"]
[10,null,"Utbildningsmaterial tunnelsäkerhet","PDF/A","pptx"]
[11,null,"Styrningsprinciper/åtgärdsrutiner trafikhändelser","PDF/A","docx"]
[12,"Tillgångsförvaltning","Kartor","PDF/A","dwg"]
[13,null,"Ljudfiler","PDF/A, MP3","docx"]
[14,"Beslut","Vägklassning","PDF/A","docx"]
[15,null,"Godkännande från Transportstyrelsen","PDF/A","docx"]

{"sheet":"5.13.1 Dörrkomponenter","index":22,"n_rows":17,"n_cols":14,"rows_kept":17,"cut":false,"hidden":false,"merged":[[1,0,1,1],[9,0,9,13],[7,0,7,13],[14,9,16,9],[14,10,16,10],[5,10,5,12],[10,1,10,13],[13,1,13,13],[5,4,5,9],[11,9,12,9],[11,10,12,10],[8,0,8,13]]}
["Dörrkomponenter",null,null,"Länk till flik Projektuppgifter"]
["Slutbesiktning : ",null,{"$f":"IF(Projektuppgifter!B17=\"\",\"Fyll i datum\",Projektuppgifter!B17)","v":"Fyll i datum"}]
[]
["För fullständig beskrivning av kraven för respektive leverans hänvisas till TDOK 2019:0210 Data om anläggningen - Data och dokumentation till förvaltande system - Väg"]
[]
[null,null,null,"Fylls i av:","Projekt/Leverantör",null,null,null,null,null,"Mottagande förvaltning",null,null,"Alla"]
[null,null,"Filformat\nvisningsfil","Filformat\nunderlagsfil","Aktuellt att upprättas av projektet","Filnamn","Levereras av:\n- E (Entreprenör)\n- K (Konsult)\n- B (Beställare)\n(datum + namn)","Projektet intygar att nedanstående dokument är kvalitetsgranskade samt levererade till Chaos\n(datum + namn)","Levererat till förvaltande system och aviserat leveransen till mottagande förvaltning \n(datum + namn)","Levereras till","Förvaltande system","Kontrollerat\n(datum + namn (ej initialer) och org.tillhörighet)","Godkänt av mottagande PL\n(datum + namn (ej initialer) och org.tillhörighet)","Eventuella kommentarer"]
["2 veckor före slutbesiktning"]
[{"$f":"\" Leverans från leverantör (E/K) till överenskommen leveransyta, för mottagningskontroll senast: \"&IF(Projektuppgifter!C97=\"\",\"Fyll i datum\",TEXT(DATE(YEAR(Projektuppgifter!C97),MONTH(Projektuppgifter!C97),DAY(Projektuppgifter!C97)),\"ÅÅÅÅ-MM-DD\"))","v":" Leverans från leverantör (E/K) till överenskommen leveransyta, för mottagningskontroll senast: Fyll i datum"}]
[{"$f":"\"Leverans till mottagande förvaltning senast: \"&IF(C2=\"Fyll i datum\",\"Fyll i datum\",TEXT(DATE(YEAR(C2),MONTH(C2),DAY(C2)-14),\"ÅÅÅÅ-MM-DD\"))","v":"Leverans till mottagande förvaltning senast: Fyll i datum"}]
["ID","Data för lagring i databas"]
[0,"TMALL 0742 - Laddmall för komponenter\nLaddmall för uppförd anläggning (en laddmall per central)"," --","xlsx",null,null,null,null,null,"Chaos","GusMaximo"]
[0,"TMALL 0742 - Laddmall för komponenter\nSkrotningsladdmall (för de projekt som river anläggning)"," --","xlsx"]
["ID","Teknisk dokumentation"]
[1,"Översiktsritningar","PDF/A","dwg",null,null,null,null,null,"Chaos (mottagande förvaltning skapar koppling mellan Chaos och GusMaximo)","GusMaximo"]
[2,"Dörruppställningslista","PDF/A","dwg"]
[3,"Datablad för dörr, låsbeslag, låskista, låsbehör, dörrstängare, utrymmningsbeslag","PDF/A","dwg"]

{"sheet":"5.13.2 Husbyggdelar","index":23,"n_rows":28,"n_cols":14,"rows_kept":28,"cut":false,"hidden":false,"merged":[[1,0,1,1],[9,0,9,13],[7,0,7,13],[14,9,27,9],[14,10,27,10],[5,10,5,12],[10,1,10,13],[13,1,13,13],[5,4,5,9],[11,9,12,9],[11,10,12,10],[8,0,8,13]]}
["Husbyggdelar",null,null,"Länk till flik Projektuppgifter"]
["Slutbesiktning : ",null,{"$f":"IF(Projektuppgifter!B17=\"\",\"Fyll i datum\",Projektuppgifter!B17)","v":"Fyll i datum"}]
[]
["För fullständig beskrivning av kraven för respektive leverans hänvisas till TDOK 2019:0210 Data om anläggningen - Data och dokumentation till förvaltande system - Väg"]
[]
[null,null,null,"Fylls i av:","Projekt/Leverantör",null,null,null,null,null,"Mottagande förvaltning",null,null,"Alla"]
[null,null,"Filformat\nvisningsfil","Filformat\nunderlagsfil","Aktuellt att upprättas av projektet","Filnamn","Levereras av:\n- E (Entreprenör)\n- K (Konsult)\n- B (Beställare)\n(datum + namn)","Projektet intygar att nedanstående dokument är kvalitetsgranskade samt levererade till Chaos\n(datum + namn)","Levererat till förvaltande system och aviserat leveransen till mottagande förvaltning \n(datum + namn)","Levereras till","Förvaltande system","Kontrollerat\n(datum + namn (ej initialer) och org.tillhörighet)","Godkänt av mottagande PL\n(datum + namn (ej initialer) och org.tillhörighet)","Eventuella kommentarer"]
["2 veckor före slutbesiktning"]
[{"$f":"\" Leverans från leverantör (E/K) till överenskommen leveransyta, för mottagningskontroll senast: \"&IF(Projektuppgifter!C99=\"\",\"Fyll i datum\",TEXT(DATE(YEAR(Projektuppgifter!C99),MONTH(Projektuppgifter!C99),DAY(Projektuppgifter!C99)),\"ÅÅÅÅ-MM-DD\"))","v":" Leverans från leverantör (E/K) till överenskommen leveransyta, för mottagningskontroll senast: Fyll i datum"}]
[{"$f":"\"Leverans till mottagande förvaltning senast: \"&IF(C2=\"Fyll i datum\",\"Fyll i datum\",TEXT(DATE(YEAR(C2),MONTH(C2),DAY(C2)-14),\"ÅÅÅÅ-MM-DD\"))","v":"Leverans till mottagande förvaltning senast: Fyll i datum"}]
["ID","Data för lagring i databas"]
[0,"TMALL 0742 - Laddmall för komponenter\nLaddmall för uppförd anläggning (en laddmall per central)"," --","xlsx",null,null,null,null,null,"Chaos","GusMaximo"]
[0,"TMALL 0742 - Laddmall för komponenter\nSkrotningsladdmall (för de projekt som river anläggning)"," --","xlsx"]
["ID","Teknisk dokumentation"]
[1,"Situationsplan","PDF/A","dwg",null,null,null,null,null,"Chaos (mottagande förvaltning skapar koppling mellan Chaos och GusMaximo)","GusMaximo"]
[2,"Markritning miljö","PDF/A","dwg"]
[3,"Kanalisationsritning, i mark","PDF/A","dwg"]
[4,"Konstruktionsritning","PDF/A","dwg"]
[5,"Planritningar","PDF/A","dwg"]
[6,"Beskrivning av i fastigheten ingående material","PDF/A","docx"]
[7,"Slutbesiktning","PDF/A","docx"]
[8,"Garantibesiktning","PDF/A","docx"]
[9,"Avtal","PDF/A","docx"]
[10,"Bygglovsinformation","PDF/A","docx"]
[11,"Utrymningsplan","PDF/A","dwg"]
[12,"Brandskyddsdokumentation","PDF/A","docx"]
[13,"Sköteselanvisningar","PDF/A","docx"]
[14,"Reservdelsinformation","PDF/A","docx, xlsx"]

{"sheet":"6.1 Siter och kabel","index":24,"n_rows":84,"n_cols":14,"rows_kept":84,"cut":false,"hidden":false,"merged":[[44,0,44,13],[37,11,42,11],[37,10,42,10],[37,1,38,1],[17,1,18,1],[19,1,22,1],[39,1,40,1],[41,1,42,1],[35,0,35,13],[13,0,22,0],[13,1,16,1],[13,10,33,10],[13,11,33,11],[23,0,29,1],[58,1,66,1],[67,0,77,1],[78,0,82,1],[30,0,33,1],[43,0,43,13],[45,0,45,13],[46,0,46,13],[47,0,66,0],[47,1,54,1],[47,9,82,9],[47,10,82,10],[47,11,82,11],[55,1,57,1],[34,0,34,13],[36,0,36,13],[37,0,42,0],[7,11,7,12],[9,0,9,13],[11,0,11,13],[12,0,12,13],[7,5,7,10],[10,0,10,13]]}
["Siter och kabel",null,"Länk till flik Projektuppgifter"]
["Sluttidpunkt för bygghandling :",{"$f":"IF(Projektuppgifter!B15=\"\",\"Fyll i datum\",Projektuppgifter!B15)","v":"Fyll i datum"}]
["Slutbesiktning : ",{"$f":"IF(Projektuppgifter!B17=\"\",\"Fyll i datum\",Projektuppgifter!B17)","v":"Fyll i datum"}]
["Öppnande för trafik (ÖFT) :",{"$f":"IF(Projektuppgifter!B14=\"\",\"Fyll i datum\",Projektuppgifter!B14)","v":"Fyll i datum"}]
[]
["För fullständig beskrivning av kraven för respektive leverans hänvisas till TDOK 2019:0210 Data om anläggningen - Data och dokumentation till förvaltande system - Väg"]
[]
[null,null,null,null,"Fylls i av:","Projekt/Leverantör",null,null,null,null,null,"Mottagande förvaltning",null,"Alla"]
[null,null,null,"Filformat\nvisningsfil","Filformat\nunderlagsfil","Aktuellt att upprättas av projektet","Filnamn","Levereras av:\n- E (Entreprenör)\n- K (Konsult)\n- B (Beställare)\n(datum + namn)","Levererat till förvaltande system och aviserat leveransen till mottagande förvaltning \n(datum + namn)","Eventuella ändringar av tidigare levererad dokumentation.\n(Länk till leveransen)","Levereras till","Förvaltande system","Godkänt \n(datum + namn (ej initialer) och org.tillhörighet)","Eventuella kommentarer"]
[" Vid färdig bygghandling"]
[{"$f":"\" Leverans från leverantör (E/K) till överenskommen leveransyta, för mottagningskontroll senast: \"&IF(Projektuppgifter!C29=\"\",\"Fyll i datum\",TEXT(DATE(YEAR(Projektuppgifter!C29),MONTH(Projektuppgifter!C29),DAY(Projektuppgifter!C29)),\"ÅÅÅÅ-MM-DD\"))","v":" Leverans från leverantör (E/K) till överenskommen leveransyta, för mottagningskontroll senast: Fyll i datum"}]
[{"$f":"\"Leverans till mottagande förvaltning senast: \"&IF(B2=\"Fyll i datum\",\"Fyll i datum\",TEXT(DATE(YEAR(B2),MONTH(B2),DAY(B2)),\"ÅÅÅÅ-MM-DD\"))","v":"Leverans till mottagande förvaltning senast: Fyll i datum"}]
["Teknisk dokumentation"]
["Kabelanläggning","Optokabelanläggning med optokabel","Telekabelplan (geografisk kabellägesplan)","pdf","dgn, dwg",null,null,null,null,null,"Chaos","ProjectWise/ IKT"]
[null,null,"Uppställningsplan","pdf","dgn, dwg"]
[null,null,"Kabelstativ/stativ","pdf","dgn, dwg"]
[null,null,"Utskarvningsplan","pdf","dgn, dwg"]
[null,"Optiska spridningsnät","Telekabelplan ","pdf","dgn"]
[null,null,"Utskarvningsplan","pdf","dgn, dwg"]
[null,"Multiduktanläggning","Telekabelplan ","pdf","dgn"]
[null,null,"Uppställningsplan","pdf","dgn, dwg"]
[null,null,"Kabelstativ/stativ","pdf","dgn, dwg"]
[null,null,"Utskarvningsplan","pdf","dgn, dwg"]
["Kraft - Tele",null,"Systemritning ","pdf"," --"]
[null,null,"Drift- och underhållsinstruktioner","pdf"," --"]
[null,null,"Produktfakta utrustningar ","pdf"," --"]
[null,null,"Specifikationer ","pdf"," --"]
[null,null,"Apparatlista ","pdf","docx, xlsx"]
[null,null,"Kabellista ","pdf","xlsx"]
[null,null,"Batteri"," --","docx, xlsx"]
["Teletransmission",null,"Dispositionsritning ","pdf","dgn, dwg, xlsx"]
[null,null,"Stativritning ","pdf","dgn, dwg"]
[null,null,"Uppställningsplan ","pdf","dgn, dwg"]
[null,null,"Radiolänk ODU","pdf","dgn, dwg"]
["2 månader före ÖFT"]
[{"$f":"\" Leverans från leverantör (E/K) till överenskommen leveransyta, för mottagningskontroll senast: \"&IF(Projektuppgifter!C32=\"\",\"Fyll i datum\",TEXT(DATE(YEAR(Projektuppgifter!C32),MONTH(Projektuppgifter!C32),DAY(Projektuppgifter!C32)),\"ÅÅÅÅ-MM-DD\"))","v":" Leverans från leverantör (E/K) till överenskommen leveransyta, för mottagningskontroll senast: Fyll i datum"}]
[{"$f":"\"Leverans till mottagande förvaltning senast: \"&IF(B4=\"Fyll i datum\",\"Fyll i datum\",TEXT(DATE(YEAR(B4),MONTH(B4)-2,DAY(B4)),\"ÅÅÅÅ-MM-DD\"))","v":"Leverans till mottagande förvaltning senast: Fyll i datum"}]
["Kabelanläggning","Optokabelanläggning med optokabel","Koordinatförteckning kabel","pdf","dgn, dwg, txt",null,null,null,null,null,"Chaos","ProjectWise/ IKT"]
[null,null,"Protokoll från optiska mätningar","pdf"," --"]
[null,"Optiska spridningsnät","Koordinatfil kabel"," --","dgn och kml"]
[null,null,"Protokoll från optiska mätningar","pdf"," --"]
[null,"Multiduktanläggning","Koordinatfil dukt och kabel"," --","dgn och kml"]
[null,null,"Protokoll från optiska mätningar","pdf"," --"]
["3 månader efter slutbesiktning"]
[{"$f":"\" Leverans från leverantör (E/K) till överenskommen leveransyta, för mottagningskontroll senast: \"&IF(Projektuppgifter!C121=\"\",\"Fyll i datum\",TEXT(DATE(YEAR(Projektuppgifter!C121),MONTH(Projektuppgifter!C121),DAY(Projektuppgifter!C121)),\"ÅÅÅÅ-MM-DD\"))","v":" Leverans från leverantör (E/K) till överenskommen leveransyta, för mottagningskontroll senast: Fyll i datum"}]
[{"$f":"\"Leverans till mottagande förvaltning senast: \"&IF(B3=\"Fyll i datum\",\"Fyll i datum\",TEXT(DATE(YEAR(B3),MONTH(B3)+3,DAY(B3)),\"ÅÅÅÅ-MM-DD\"))","v":"Leverans till mottagande förvaltning senast: Fyll i datum"}]
["Teknisk dokumentation"]
["Kabelanläggning","Optokabelanläggning med optokabel","Telekabelplan (geografisk kabellägesplan)","pdf","dgn, dwg",null,null,null,null,null,"Chaos","ProjectWise/ IKT"]
[null,null,"Avtal","pdf","docx"]
[null,null,"Besiktningsprotokoll","pdf","--"]
[null,null,"Foto","jpg","--"]
[null,null,"Schematisk kabelplan","pdf","dgn, dwg"]
[null,null,"Uppställningsplan","pdf","dgn, dwg"]
[null,null,"Kabelstativ/stativ","pdf","dgn, dwg"]
[null,null,"Utskarvningsplan","pdf","dgn, dwg"]
[null,"Optiska spridningsnät ","Utskarvningsplan","pdf","dgn, dwg"]
[null,null,"Telekabelplan","pdf","dgn"]
[null,null,"Schematisk kabelplan","pdf","dgn, dwg"]
[null,"Multiduktanläggning","Avtal","pdf","docx"]
[null,null,"Besiktningsprotokoll","pdf"," --"]
[null,null,"Telekabelplan","pdf","dgn"]
[null,null,"Foto","jpg","--"]
[null,null,"Koordinatförteckning skarvskåp, skarvbrunnar och multiduktskarvar","pdf","xlsx"]
[null,null,"Schematisk kabelplan","pdf","dgn, dwg"]
[null,null,"Uppställningsplan","pdf","dgn, dwg"]
[null,null,"Kabelstativ/stativ","pdf","dgn, dwg"]
[null,null,"Utskarvningsplan","pdf","dgn, dwg"]
["Kraft - Tele",null,"Dispositionsritning","pdf","dgn, dwg"]
[null,null,"Uppställningsplan","pdf","dgn, dwg"]
[null,null,"Stativritning","pdf","dgn, dwg"]
[null,null,"Foton","pdf"," --"]
[null,null,"Systemritning ","pdf"," --"]
[null,null,"Drift- och underhållsinstruktioner","pdf"," --"]
[null,null,"Produktfakta utrustningar ","pdf"," --"]
[null,null,"Specifikationer ","pdf"," --"]
[null,null,"Apparatlista ","pdf","docx, xlsx"]
[null,null,"Kabellista ","pdf","xlsx"]
[null,null,"Batteri","pdf","docx, xlsx"]
["Teletransmission",null,"Besiktningsprotokoll","pdf","docx"]
[null,null,"Dispositionsritning ","pdf","dgn, dwg, xlsx"]
[null,null,"Stativritning ","pdf","dgn, dwg"]
[null,null,"Uppställningsplan ","pdf","dgn, dwg"]
[null,null,"Radiolänk ODU","pdf","dgn, dwg"]
["OBS! Relevant data/dokumentation kopplat till miljö ska levereras enligt flik 10.2."]

{"sheet":"7.1 Vägnät","index":25,"n_rows":25,"n_cols":13,"rows_kept":25,"cut":false,"hidden":false,"merged":[[22,0,22,12],[13,8,21,8],[13,9,21,9],[7,9,7,11],[9,0,9,12],[11,0,11,12],[12,0,12,12],[7,4,7,8],[10,0,10,12]]}
["Vägnät",null,"Länk till flik Projektuppgifter"]
["Öppnande för trafik (ÖFT) :",{"$f":"IF(Projektuppgifter!B14=\"\",\"Fyll i datum\",Projektuppgifter!B14)","v":"Fyll i datum"}]
[]
["För fullständig beskrivning av kraven för respektive leverans hänvisas till TDOK 2019:0210 Data om anläggningen - Data och dokumentation till förvaltande system - Väg"]
["Attributen för respektive företeelsetyp ska anges enligt företeelsetypens dataproduktspecifikation (DPS). Mallar i dwg eller ESRI-filgeodatabas finns framtagna som stöd och ska användas. ",null,null,null,null,null,null,null,"Finns på denna sida på trafikverket.se"]
["Innan leverans kan egenkontroller av filer göras med hjälp av IT-stödet KOALA. För att kunna använda IT-stödet måste filerna vara framtagna genom mallarna. IT-stödet nås via Min sida på trafikverket.se (https://minsida.trafikverket.se/Min-sida/) alternativt http://koala-p.trafikverket.local/. Ansök om behörighet KOALA-Användare i Arthur. Externa användare behöver 90-konto."]
[]
[null,null,null,"Fylls i av:","Projekt/Leverantör",null,null,null,null,"Mottagande förvaltning",null,null,"Alla"]
[null,"Filformat\nvisningsfil","Filformat\nunderlagsfil","Beskrivning av krav","Aktuellt att upprättas av projektet","Filnamn","Levereras av:\n- E (Entreprenör)\n- K (Konsult)\n- B (Beställare)\n(datum + namn)","Levererat till förvaltande system och aviserat leveransen till mottagande förvaltning \n(datum + namn)","Levereras till","Förvaltande system","Kontrollerat\n(datum + namn (ej initialer) och org.tillhörighet)","Godkänt \n(datum + namn (ej initialer) och org.tillhörighet)","Eventuella kommentarer"]
["4 månader före ÖFT "]
[{"$f":"\" Leverans från leverantör (E/K) till överenskommen leveransyta, för mottagningskontroll senast: \"&IF(Projektuppgifter!C27=\"\",\"Fyll i datum\",TEXT(DATE(YEAR(Projektuppgifter!C27),MONTH(Projektuppgifter!C27),DAY(Projektuppgifter!C27)),\"ÅÅÅÅ-MM-DD\"))","v":" Leverans från leverantör (E/K) till överenskommen leveransyta, för mottagningskontroll senast: Fyll i datum"}]
[{"$f":"\"Leverans till mottagande förvaltning senast: \"&IF(B2=\"Fyll i datum\",\"Fyll i datum\",TEXT(DATE(YEAR(B2),MONTH(B2)-4,DAY(B2)),\"ÅÅÅÅ-MM-DD\"))","v":"Leverans till mottagande förvaltning senast: Fyll i datum"}]
["Data för lagring i databas"]
["Referenslinje bilnät"," --","dwg/ESRI filgeodatabas","Enligt TDOK 2021:0029",null,null,null,null,"Chaos","NVDB"]
["Referenslinje bilnät, avslutad anläggning"," --","dwg/ESRI filgeodatabas","Enligt TDOK 2021:0029"]
["Referenslinje cykelnät"," --","dwg/ESRI filgeodatabas","Enligt TDOK 2021:0029"]
["Referenslinje cykelnät, avslutad anläggning"," --","dwg/ESRI filgeodatabas","Enligt TDOK 2021:0029"]
["Referenslinje gångnät"," --","dwg/ESRI filgeodatabas","Enligt TDOK 2021:0029"]
["Referenslinje gångnät, avslutad anläggning"," --","dwg/ESRI filgeodatabas","Enligt TDOK 2021:0029"]
["Färjeled"," --","dwg/ESRI filgeodatabas","Enligt TDOK 2021:0029"]
["Vägnummer"," --","dwg/ESRI filgeodatabas","Enligt TDOK 2021:0029",{"$f":"IF(E14<>\"\",\"X\",\"\")","v":""}]
["Vägtrafiknät"," --","dwg/ESRI filgeodatabas","Enligt TDOK 2021:0029",{"$f":"IF(E14<>\"\",\"X\",IF(E16<>\"\",\"X\",IF(E18<>\"\",\"X\",\"\")))","v":""}]
["Teknisk dokumentation"]
["Planritning med vägmarkering*"," --","dwg","Enligt TDOK 2019:0210",{"$f":"IF(E14<>\"\",\"X\",IF(E16<>\"\",\"X\",IF(E18<>\"\",\"X\",\"\")))","v":""},null,null,null,"Chaos","NVDB"]
["* Underlagsfil med projekterade vägkanter, ev. vägmarkering, refuger, kantsten och mitträcke/vägräcken"]

{"sheet":"8.1 Vatten","index":26,"n_rows":19,"n_cols":12,"rows_kept":19,"cut":false,"hidden":false,"merged":[[11,0,13,0],[14,0,14,11],[15,0,18,0],[11,8,13,8],[15,8,18,8],[11,9,13,9],[15,9,18,9],[5,4,5,8],[5,9,5,10],[7,0,7,11],[9,0,9,11],[10,0,10,11],[8,0,8,11]]}
["Vatten",null,null,"Länk till flik Projektuppgifter"]
["Slutbesiktning : ",{"$f":"IF(Projektuppgifter!B17=\"\",\"Fyll i datum\",Projektuppgifter!B17)","v":"Fyll i datum"}]
[]
["För fullständig beskrivning av kraven för respektive leverans hänvisas till TDOK 2019:0210 Data om anläggningen - Data och dokumentation till förvaltande system - Väg"]
[]
[null,null,null,"Fylls i av:","Projekt/Leverantör",null,null,null,null,"Mottagande förvaltning",null,"Alla"]
[null,null,"Filformat\nvisningsfil","Filformat\nunderlagsfil","Aktuellt att upprättas av projektet","Filnamn","Levereras av:\n- E (Entreprenör)\n- K (Konsult)\n- B (Beställare)\n(datum + namn)","Levererat till förvaltande system och aviserat leveransen till mottagande förvaltning \n(datum + namn)","Levereras till","Förvaltande system","Godkänt \n(datum + namn (ej initialer) och org.tillhörighet)","Eventuella kommentarer"]
["2 veckor före slutbesiktning "]
[{"$f":"\" Leverans från leverantör (E/K) till överenskommen leveransyta, för mottagningskontroll senast: \"&IF(Projektuppgifter!C103=\"\",\"Fyll i datum\",TEXT(DATE(YEAR(Projektuppgifter!C103),MONTH(Projektuppgifter!C103),DAY(Projektuppgifter!C103)),\"ÅÅÅÅ-MM-DD\"))","v":" Leverans från leverantör (E/K) till överenskommen leveransyta, för mottagningskontroll senast: Fyll i datum"}]
[{"$f":"\"Leverans till mottagande förvaltning senast: \"&IF(B2=\"Fyll i datum\",\"Fyll i datum\",TEXT(DATE(YEAR(B2),MONTH(B2),DAY(B2)-14),\"ÅÅÅÅ-MM-DD\"))","v":"Leverans till mottagande förvaltning senast: Fyll i datum"}]
["Teknisk dokumentation"]
["Vattenskyddsåtgärd","Fördjupad riskanalys","PDF/A ","docx",null,null,null,null,"Chaos","Chaos"]
[null,"Anläggnings- och funktionsbeskrivande dokument","PDF/A ","docx"]
[null,"Planritning - vattenskyddsåtgärder","PDF/A ","dwg"]
["Teknisk dokumentation"]
["Öppen dagvattenanläggning","Anläggningsbeskrivning","PDF/A ","docx",null,null,null,null,"Chaos","Chaos"]
[null,"Dimensioneringsberäkningar","PDF/A ","docx"]
[null,"Underlag för skötsel och underhåll","PDF/A ","docx"]
[null,"Planritning - Öppen dagvattenanläggning","PDF/A ","dwg"]

{"sheet":"9.1 Beläggning","index":27,"n_rows":15,"n_cols":13,"rows_kept":15,"cut":false,"hidden":false,"merged":[[12,1,12,2],[5,9,5,11],[7,0,7,12],[9,0,9,12],[10,0,10,12],[11,7,12,7],[11,8,12,8],[11,9,12,9],[11,10,12,10],[11,11,12,11],[5,3,5,8],[8,0,8,12]]}
["Beläggning",null,"Länk till flik Projektuppgifter"]
["Slutbesiktning",{"$f":"IF(Projektuppgifter!B17=\"\",\"Fyll i datum\",Projektuppgifter!B17)","v":"Fyll i datum"}]
[]
["För fullständig beskrivning av kraven för respektive leverans hänvisas till TDOK 2019:0210 Data om anläggningen - Data och dokumentation till förvaltande system - Väg"]
[]
[null,null,"Fylls i av:","Projekt/Leverantör",null,null,null,null,null,"Mottagande förvaltning",null,null,"Alla"]
[null,"Filformat\nvisningsfil","Filformat\nunderlagsfil","Aktuellt att upprättas av projektet","Filnamn","Levereras av:\n- E (Entreprenör)\n- K (Konsult)\n- B (Beställare)\n(datum + namn)","Registrerat i PMS beläggning\n(datum + namn)","Levererat till förvaltande system och aviserat leveransen till mottagande förvaltning \n(datum + namn)","Levereras till","Förvaltande system","Mottaget \n(datum + namn (ej initialer) och org.tillhörighet)","Godkänt \n(datum + namn (ej initialer) och org.tillhörighet)","Eventuella kommentarer"]
["2 månader efter slutbesiktning"]
[{"$f":"\" Leverans från leverantör (E/K) till överenskommen leveransyta, för mottagningskontroll senast: \"&IF(Projektuppgifter!C107=\"\",\"Fyll i datum\",TEXT(DATE(YEAR(Projektuppgifter!C107),MONTH(Projektuppgifter!C107),DAY(Projektuppgifter!C107)),\"ÅÅÅÅ-MM-DD\"))","v":" Leverans från leverantör (E/K) till överenskommen leveransyta, för mottagningskontroll senast: Fyll i datum"}]
[{"$f":"\"Leverans till mottagande förvaltning senast: \"&IF(B2=\"Fyll i datum\",\"Fyll i datum\",TEXT(DATE(YEAR(B2),MONTH(B2)+2,DAY(B2)),\"ÅÅÅÅ-MM-DD\"))","v":"Leverans till mottagande förvaltning senast: Fyll i datum"}]
["Data för lagring i databas"]
["TMALL 0050 Underlag rapportering beläggningsdata"," --","xlsx",null,null,null,null,null,"PMS-beläggning","PMS-beläggning"]
["Beläggningsdata","Registreras direkt i PMS beläggning*",null,null,null,"B"]
[]
["*Om projektet har medfört ändringar i Referenslinje bilväg i NVDB, enligt flik 7.1, måste dessa ändringar ha blivit registrerade i NVDB innan registrering påbörjas i PMS Beläggning."]

{"sheet":"9.2 Grusväg","index":28,"n_rows":15,"n_cols":13,"rows_kept":15,"cut":false,"hidden":false,"merged":[[12,1,12,2],[5,3,5,8],[5,9,5,11],[7,0,7,12],[9,0,9,12],[10,0,10,12],[11,7,12,7],[11,8,12,8],[11,9,12,9],[11,10,12,10],[11,11,12,11],[8,0,8,12]]}
["Grusväg",null,"Länk till flik Projektuppgifter"]
["Slutbesiktning",{"$f":"IF(Projektuppgifter!B17=\"\",\"Fyll i datum\",Projektuppgifter!B17)","v":"Fyll i datum"}]
[]
["För fullständig beskrivning av kraven för respektive leverans hänvisas till TDOK 2019:0210 Data om anläggningen - Data och dokumentation till förvaltande system - Väg"]
[]
[null,null,"Fylls i av:","Projekt/Leverantör",null,null,null,null,null,"Mottagande förvaltning",null,null,"Alla"]
[null,"Filformat\nvisningsfil","Filformat\nunderlagsfil","Aktuellt att upprättas av projektet","Filnamn","Levereras av:\n- E (Entreprenör)\n- K (Konsult)\n- B (Beställare)\n(datum + namn)","Registrerat i PMS beläggning\n(datum + namn)","Levererat till förvaltande system och aviserat leveransen till mottagande förvaltning \n(datum + namn)","Levereras till","Förvaltande system","Mottaget \n(datum + namn (ej initialer) och org.tillhörighet)","Godkänt \n(datum + namn (ej initialer) och org.tillhörighet)","Eventuella kommentarer"]
["2 månader efter slutbesiktning"]
[{"$f":"\" Leverans från leverantör (E/K) till överenskommen leveransyta, för mottagningskontroll senast: \"&IF(Projektuppgifter!C108=\"\",\"Fyll i datum\",TEXT(DATE(YEAR(Projektuppgifter!C108),MONTH(Projektuppgifter!C108),DAY(Projektuppgifter!C108)),\"ÅÅÅÅ-MM-DD\"))","v":" Leverans från leverantör (E/K) till överenskommen leveransyta, för mottagningskontroll senast: Fyll i datum"}]
[{"$f":"\"Leverans till mottagande förvaltning senast: \"&IF(B2=\"Fyll i datum\",\"Fyll i datum\",TEXT(DATE(YEAR(B2),MONTH(B2)+2,DAY(B2)),\"ÅÅÅÅ-MM-DD\"))","v":"Leverans till mottagande förvaltning senast: Fyll i datum"}]
["Data för lagring i databas"]
["TMALL1384 Underlag rapportering Grusvägsdata"," --","xlsx",null,null,null,null,null,"PMS-beläggning","PMS-beläggning"]
["Grusvägsdata","Registreras direkt i PMS beläggning*",null,null,null,"B"]
[]
["*Om projektet har medfört ändringar i Referenslinje bilväg i NVDB, enligt flik 7.1, måste dessa ändringar ha blivit registrerade i NVDB innan registrering påbörjas i PMS Beläggning."]

{"sheet":"9.3 Vägkropp","index":29,"n_rows":61,"n_cols":15,"rows_kept":61,"cut":false,"hidden":false,"merged":[[16,0,16,14],[27,0,27,14],[26,0,26,14],[28,0,28,14],[29,0,29,14],[30,13,56,13],[17,0,17,14],[18,0,18,14],[19,10,22,10],[19,11,22,11],[19,12,22,12],[19,0,25,1],[30,0,56,0],[30,1,41,1],[30,10,56,10],[30,11,56,11],[30,12,56,12],[42,1,56,1],[5,11,5,13],[7,0,7,14],[9,0,9,14],[10,0,10,14],[5,6,5,10],[8,0,8,14],[15,0,15,14],[11,0,11,2],[11,10,12,10],[11,11,12,11],[12,0,12,2],[13,0,13,2],[13,10,14,10],[13,11,14,11],[13,12,14,12],[13,13,14,13],[14,0,14,2],[14,3,14,5]]}
["Vägkropp",null,"Länk till flik Projektuppgifter"]
["Slutbesiktning : ",{"$f":"IF(Projektuppgifter!B17=\"\",\"Fyll i datum\",Projektuppgifter!B17)","v":"Fyll i datum"}]
[]
["För fullständig beskrivning av kraven för respektive leverans hänvisas till TDOK 2019:0210 Data om anläggningen - Data och dokumentation till förvaltande system - Väg"]
[]
[null,null,null,null,null,"Fylls i av:","Projekt/Leverantör",null,null,null,null,"Mottagande förvaltning",null,null,"Alla"]
[null,null,null,"Filformat\nvisningsfil","Filformat\nunderlagsfil","Beskrivning av krav","Aktuellt att upprättas av projektet","Filnamn","Levereras av:\n- E (Entreprenör)\n- K (Konsult)\n- B (Beställare)\n(datum + namn)","Levererat till förvaltande system och aviserat leveransen till mottagande förvaltning \n(datum + namn)","Levereras till","Förvaltande system","Kontrollerat\n(datum + namn (ej initialer) och org.tillhörighet)","Godkänt \n(datum + namn (ej initialer) och org.tillhörighet)","Eventuella kommentarer"]
["2 månader efter slutbesiktning"]
[{"$f":"\" Leverans från leverantör (E/K) till överenskommen leveransyta, för mottagningskontroll senast: \"&IF(Projektuppgifter!C109=\"\",\"Fyll i datum\",TEXT(DATE(YEAR(Projektuppgifter!C109),MONTH(Projektuppgifter!C109),DAY(Projektuppgifter!C109)),\"ÅÅÅÅ-MM-DD\"))","v":" Leverans från leverantör (E/K) till överenskommen leveransyta, för mottagningskontroll senast: Fyll i datum"}]
[{"$f":"\"Leverans till mottagande förvaltning senast: \"&IF(B2=\"Fyll i datum\",\"Fyll i datum\",TEXT(DATE(YEAR(B2),MONTH(B2)+2,DAY(B2)),\"ÅÅÅÅ-MM-DD\"))","v":"Leverans till mottagande förvaltning senast: Fyll i datum"}]
["Data för lagring i databas"]
["Vägtrumma",null,null," --","dwg/ESRI filgeodatabas","Enligt TDOK 2021:0029",null,null,null,null,"Chaos","NVDB"]
["Vägtrumma, avslutad anläggning",null,null," --","dwg/ESRI filgeodatabas","Enligt TDOK 2021:0029"]
["TMALL 1018 Underlag rapportering avvattningsdata",null,null," --","xlxs"," --",null,null,null,null,"PMS \nBeläggning","PMS Beläggning"]
["Avvattningsdata",null,null,"Registreras direkt i PMS Beläggning***",null,null,null,null,"B","Registrerat i PMS Beläggning (datum+namn):"]
["2 veckor före slutbesiktning "]
[{"$f":"\" Leverans från leverantör (E/K) till överenskommen leveransyta, för mottagningskontroll senast: \"&IF(Projektuppgifter!C101=\"\",\"Fyll i datum\",TEXT(DATE(YEAR(Projektuppgifter!C101),MONTH(Projektuppgifter!C101),DAY(Projektuppgifter!C101)),\"ÅÅÅÅ-MM-DD\"))","v":" Leverans från leverantör (E/K) till överenskommen leveransyta, för mottagningskontroll senast: Fyll i datum"}]
[{"$f":"\"Leverans till mottagande förvaltning senast: \"&IF(B2=\"Fyll i datum\",\"Fyll i datum\",TEXT(DATE(YEAR(B2),MONTH(B2),DAY(B2)-14),\"ÅÅÅÅ-MM-DD\"))","v":"Leverans till mottagande förvaltning senast: Fyll i datum"}]
["Teknisk dokumentation"]
["Vägteknik",null,"Profilritning","PDF/A-1","dwg"," --",null,null,null,null,"Chaos","Chaos"]
[null,null,"Planritning *","PDF/A-1","dwg"," --"]
[null,null,"Avvattningsritning *","PDF/A-1","dwg"," --"]
[null,null,"Normalsektion","PDF/A-1","dwg"," --"]
[null,null,"Avtal och tillstånd","PDF/A-1","pdf, docx"," --"]
[null,null,"Skötselprogram","PDF/A-1","pdf, docx"," --"]
[null,null,"Kontrollprogram","PDF/A-1","pdf, docx"," --"]
["3 månader efter slutbesiktning"]
[{"$f":"\" Leverans från leverantör (E/K) till överenskommen leveransyta, för mottagningskontroll senast: \"&IF(Projektuppgifter!C124=\"\",\"Fyll i datum\",TEXT(DATE(YEAR(Projektuppgifter!C124),MONTH(Projektuppgifter!C124),DAY(Projektuppgifter!C124)),\"ÅÅÅÅ-MM-DD\"))","v":" Leverans från leverantör (E/K) till överenskommen leveransyta, för mottagningskontroll senast: Fyll i datum"}]
[{"$f":"\"Leverans till mottagande förvaltning senast: \"&IF(B2=\"Fyll i datum\",\"Fyll i datum\",TEXT(DATE(YEAR(B2),MONTH(B2)+3,DAY(B2)),\"ÅÅÅÅ-MM-DD\"))","v":"Leverans till mottagande förvaltning senast: Fyll i datum"}]
["Teknisk dokumentation"]
["Geoteknik","Undersökning","Rgeo/MUR","PDF/A-1","docx"," --",null,null,null,null,"Chaos","Chaos"]
[null,null,"Plan - Geologisk kartering","PDF/A-1","dgn, dwg"," --"]
[null,null,"Profil - Geologisk prognos","PDF/A-1","dgn, dwg"," --"]
[null,null,"Plan - Geoteknisk undersökning","PDF/A-1","dgn, dwg"," --"]
[null,null,"Profil - Geoteknisk undersökning","PDF/A-1","dgn, dwg"," --"]
[null,null,"Tvärsektion - Geoteknisk undersökning","PDF/A-1","dgn, dwg"," --"]
[null,null,"Plan - Geohydrologisk undersökning","PDF/A-1","dgn, dwg"," --"]
[null,null,"Avtal och tillstånd","PDF/A-1","pdf, docx"," --"]
[null,null,"Skötselprogram","PDF/A-1","pdf, docx"," --"]
[null,null,"Kontrollprogram","PDF/A-1","pdf, docx"," --"]
[null,null,"Borrhålsritning","PDF/A-1","dgn, dwg"," --"]
[null,null,"Autograffil/Geosuite-presentation","zip (hela autograf. dbf)"," --"," --"]
[null,"Anläggning","TB/OTB/TBGeo/TPM","PDF/A-1"," -- "," --"]
[null,null,"PM Geohydrologi","PDF/A-1"," -- "," --"]
[null,null,"Beräkning","PDF/A-1"," -- "," --"]
[null,null,"Masstabilisering**","PDF/A-1","docx, dgn, dwg"," --"]
[null,null,"Erosionsskydd**","PDF/A-1","docx, dgn, dwg"," --"]
[null,null,"Bankpålning**","PDF/A-1","docx, dgn, dwg"," --"]
[null,null,"Tryck-/stödbank**","PDF/A-1","docx, dgn, dwg"," --"]
[null,null,"K/C-pelare**","PDF/A-1","docx, dgn, dwg"," --"]
[null,null,"Vertikaldränering**","PDF/A-1","docx, dgn, dwg"," --"]
[null,null,"Lättfyllning**","PDF/A-1","docx, dgn, dwg"," --"]
[null,null,"Urgrävning, nedpressning**","PDF/A-1","docx, dgn, dwg"," --"]
[null,null,"Stödkonstruktion**","PDF/A-1","docx, dgn, dwg"," --"]
[null,null,"Frostskydd**","PDF/A-1","docx, dgn, dwg"," --"]
[null,null,"Jordarmering**","PDF/A-1","docx, dgn, dwg"," --"]
[null,null,"Jordspikning**","PDF/A-1","docx, dgn, dwg"," --"]
["OBS! För Vägteknik ska relevant data/dokumentation kopplat till miljö ska levereras enligt flik 10.2."]
["* Kan redovisa på samma ritning"]
["** Kan redovisas på samma planritning"]
["***Om projektet har medfört ändringar i Referenslinje bilväg i NVDB, enligt flik 7.1, måste dessa ändringar ha blivit registrerade i NVDB innan registrering påbörjas i PMS Beläggning."]

{"sheet":"9.4 Vägmarkering","index":30,"n_rows":14,"n_cols":11,"rows_kept":14,"cut":false,"hidden":false,"merged":[[11,7,12,7],[11,8,12,8],[8,0,8,10],[5,8,5,9],[7,0,7,10],[9,0,9,10],[10,0,10,10],[5,3,5,7]]}
["Vägmarkering",null,"Länk till flik Projektuppgifter"]
["Slutbesiktning : ",{"$f":"IF(Projektuppgifter!B17=\"\",\"Fyll i datum\",Projektuppgifter!B17)","v":"Fyll i datum"}]
[]
["För fullständig beskrivning av kraven för respektive leverans hänvisas till TDOK 2019:0210 Data om anläggningen - Data och dokumentation till förvaltande system - Väg"]
[]
[null,null,"Fylls i av:","Projekt/Leverantör",null,null,null,null,"Mottagande förvaltning",null,"Alla"]
[null,"Filformat\nvisningsfil","Filformat\nunderlagsfil","Aktuellt att upprättas av projektet","Filnamn","Levereras av:\n- E (Entreprenör)\n- K (Konsult)\n- B (Beställare)\n(datum + namn)","Levererat till förvaltande system och aviserat leveransen till mottagande förvaltning \n(datum + namn)","Levereras till","Förvaltande system","Godkänt \n(datum + namn (ej initialer) och org.tillhörighet)","Eventuella kommentarer"]
["2 veckor före slutbesiktning "]
[{"$f":"\" Leverans från leverantör (E/K) till överenskommen leveransyta, för mottagningskontroll senast: \"&IF(Projektuppgifter!C102=\"\",\"Fyll i datum\",TEXT(DATE(YEAR(Projektuppgifter!C102),MONTH(Projektuppgifter!C102),DAY(Projektuppgifter!C102)),\"ÅÅÅÅ-MM-DD\"))","v":" Leverans från leverantör (E/K) till överenskommen leveransyta, för mottagningskontroll senast: Fyll i datum"}]
[{"$f":"\"Leverans till mottagande förvaltning senast: \"&IF(B2=\"Fyll i datum\",\"Fyll i datum\",TEXT(DATE(YEAR(B2),MONTH(B2),DAY(B2)-14),\"ÅÅÅÅ-MM-DD\"))","v":"Leverans till mottagande förvaltning senast: Fyll i datum"}]
["Teknisk dokumentation"]
["Planritningar","PDF/A-1","dwg",null,null,null,null,"Chaos","Chaos"]
["Rapporter","PDF/A-1, xlsx"," --"]
["OBS! För Vägmarkering ska relevant data/dokumentation kopplat till miljö ska levereras enligt flik 10.2."]

{"sheet":"10.1 Adm-funkt. företeelser","index":31,"n_rows":56,"n_cols":14,"rows_kept":56,"cut":false,"hidden":false,"merged":[[41,0,54,0],[31,0,31,13],[33,0,33,13],[34,0,34,13],[36,0,36,13],[38,0,38,13],[39,0,39,13],[41,10,55,10],[41,9,55,9],[55,0,55,1],[32,0,32,13],[37,0,37,13],[16,0,30,0],[16,9,30,9],[16,10,30,10],[8,10,8,12],[10,0,10,13],[12,0,12,13],[13,0,13,13],[8,5,8,9],[14,0,15,0],[14,9,15,9],[14,10,15,10],[11,0,11,13]]}
["Administrativ och funktionell företeelse",null,null,"Länk till flik Projektuppgifter"]
["Öppnande för trafik (ÖFT) :",{"$f":"IF(Projektuppgifter!B14=\"\",\"Fyll i datum\",Projektuppgifter!B14)","v":"Fyll i datum"}]
["Slutbesiktning : ",{"$f":"IF(Projektuppgifter!B17=\"\",\"Fyll i datum\",Projektuppgifter!B17)","v":"Fyll i datum"}]
[]
["För fullständig beskrivning av kraven för respektive leverans hänvisas till TDOK 2019:0210 Data om anläggningen - Data och dokumentation till förvaltande system - Väg"]
["Attributen för respektive företeelsetyp ska anges enligt företeelsetypens dataproduktspecifikation (DPS). Mallar i dwg eller ESRI-filgeodatabas finns framtagna som stöd och ska användas. ",null,null,null,null,null,null,null,null,"Finns på denna sida på trafikverket.se"]
["Innan leverans kan egenkontroller av filer göras med hjälp av IT-stödet KOALA. För att kunna använda IT-stödet måste filerna vara framtagna genom mallarna. IT-stödet nås via Min sida på trafikverket.se (https://minsida.trafikverket.se/Min-sida/) alternativt http://koala-p.trafikverket.local/. Ansök om behörighet KOALA-Användare i Arthur. Externa användare behöver 90-konto."]
[]
[null,null,null,null,"Fylls i av:","Projekt/Leverantör",null,null,null,null,"Mottagande förvaltning",null,null,"Alla"]
[null,null,"Filformat\nvisningsfil","Filformat\nunderlagsfil","Beskrivning av krav","Aktuellt att upprättas av projektet","Filnamn","Levereras av:\n- E (Entreprenör)\n- K (Konsult)\n- B (Beställare)\n(datum + namn)","Levererat till förvaltande system och aviserat leveransen till mottagande förvaltning \n(datum + namn)","Levereras till","Förvaltande system","Kontrollerat\n(datum + namn (ej initialer) och org.tillhörighet)","Godkänt \n(datum + namn (ej initialer) och org.tillhörighet)","Eventuella kommentarer"]
["4 månader före ÖFT "]
[{"$f":"\" Leverans från leverantör (E/K) till överenskommen leveransyta, för mottagningskontroll senast: \"&IF(Projektuppgifter!C24=\"\",\"Fyll i datum\",TEXT(DATE(YEAR(Projektuppgifter!C24),MONTH(Projektuppgifter!C24),DAY(Projektuppgifter!C24)),\"ÅÅÅÅ-MM-DD\"))","v":" Leverans från leverantör (E/K) till överenskommen leveransyta, för mottagningskontroll senast: Fyll i datum"}]
[{"$f":"\"Leverans till mottagande förvaltning senast: \"&IF(B2=\"Fyll i datum\",\"Fyll i datum\",TEXT(DATE(YEAR(B2),MONTH(B2)-4,DAY(B2)),\"ÅÅÅÅ-MM-DD\"))","v":"Leverans till mottagande förvaltning senast: Fyll i datum"}]
["Data för lagring i databas"]
["Administrativ företeelse","Väghållare"," --","dwg/ESRI filgeodatabas","Enligt TDOK 2021:0029",{"$f":"IF('7.1 Vägnät'!$E$14<>\"\",\"X\",IF('7.1 Vägnät'!$E$16<>\"\",\"X\",IF('7.1 Vägnät'!$E$18<>\"\",\"X\",\"\")))","v":""},null,null,null,"Chaos","NVDB"]
[null,"Vägombyggnad"," --","dwg/ESRI filgeodatabas","Enligt TDOK 2021:0029"]
["Funktionell företeelse","Bro och tunnel"," --","dwg/ESRI filgeodatabas","Enligt TDOK 2021:0029",null,null,null,null,"Chaos","NVDB"]
[null,"Bygdeväg"," --","dwg/ESRI filgeodatabas","Enligt TDOK 2021:0029"]
[null,"Farthinder"," --","dwg/ESRI filgeodatabas","Enligt TDOK 2021:0029"]
[null,"Höjdhinder 4,5 m"," --","dwg/ESRI filgeodatabas","Enligt TDOK 2021:0029"]
[null,"GCM-belyst"," --","dwg/ESRI filgeodatabas","Enligt TDOK 2021:0029"]
[null,"GCM-passage"," --","dwg/ESRI filgeodatabas","Enligt TDOK 2021:0029"]
[null,"GCM-separation"," --","dwg/ESRI filgeodatabas","Enligt TDOK 2021:0029"]
[null,"GCM-vägtyp"," --","dwg/ESRI filgeodatabas","Enligt TDOK 2021:0029",{"$f":"IF('7.1 Vägnät'!$E$16<>\"\",\"X\",IF('7.1 Vägnät'!$E$18<>\"\",\"X\",\"\"))","v":""}]
[null,"Mittremsa"," --","dwg/ESRI filgeodatabas","Enligt TDOK 2021:0029"]
[null,"Parkeringsficka"," --","dwg/ESRI filgeodatabas","Enligt TDOK 2021:0029"]
[null,"Rastplats"," --","dwg/ESRI filgeodatabas","Enligt TDOK 2021:0029"]
[null,"Sidoanläggningsväg"," --","dwg/ESRI filgeodatabas","Enligt TDOK 2021:0029"]
[null,"Slitlager"," --","dwg/ESRI filgeodatabas","Enligt TDOK 2021:0029",{"$f":"IF('7.1 Vägnät'!$E$14<>\"\",\"X\",IF('7.1 Vägnät'!$E$16<>\"\",\"X\",IF('7.1 Vägnät'!$E$18<>\"\",\"X\",\"\")))","v":""}]
[null,"Vägbredd"," --","dwg/ESRI filgeodatabas","Enligt TDOK 2021:0029",{"$f":"IF('7.1 Vägnät'!$E$14<>\"\",\"X\",IF('7.1 Vägnät'!$E$16<>\"\",\"X\",IF('7.1 Vägnät'!$E$18<>\"\",\"X\",\"\")))","v":""}]
[null,"Väghinder"," --","dwg/ESRI filgeodatabas","Enligt TDOK 2021:0029"]
[" 2 månader före ÖFT"]
[{"$f":"\" Leverans från leverantör (E/K) till överenskommen leveransyta, för mottagningskontroll senast: \"&IF(Projektuppgifter!C33=\"\",\"Fyll i datum\",TEXT(DATE(YEAR(Projektuppgifter!C33),MONTH(Projektuppgifter!C33),DAY(Projektuppgifter!C33)),\"ÅÅÅÅ-MM-DD\"))","v":" Leverans från leverantör (E/K) till överenskommen leveransyta, för mottagningskontroll senast: Fyll i datum"}]
[{"$f":"\"Leverans till mottagande förvaltning senast: \"&IF(B2=\"Fyll i datum\",\"Fyll i datum\",TEXT(DATE(YEAR(B2),MONTH(B2)-2,DAY(B2)),\"ÅÅÅÅ-MM-DD\"))","v":"Leverans till mottagande förvaltning senast: Fyll i datum"}]
["Data för lagring i databas"]
["Funktionell företeelse","Provisorisk väg "," --","dwg/ESRI filgeodatabas","Enligt TDOK 2021:0029",null,null,null,null,"Chaos","NVDB"]
["2 månader efter slutbesiktning"]
[{"$f":"\" Leverans från leverantör (E/K) till överenskommen leveransyta, för mottagningskontroll senast: \"&IF(Projektuppgifter!C105=\"\",\"Fyll i datum\",TEXT(DATE(YEAR(Projektuppgifter!C105),MONTH(Projektuppgifter!C105),DAY(Projektuppgifter!C105)),\"ÅÅÅÅ-MM-DD\"))","v":" Leverans från leverantör (E/K) till överenskommen leveransyta, för mottagningskontroll senast: Fyll i datum"}]
[{"$f":"\"Leverans till mottagande förvaltning senast: \"&IF(B3=\"Fyll i datum\",\"Fyll i datum\",TEXT(DATE(YEAR(B3),MONTH(B3)+2,DAY(B3)),\"ÅÅÅÅ-MM-DD\"))","v":"Leverans till mottagande förvaltning senast: Fyll i datum"}]
["Data för lagring i databas"]
["Administrativ företeelse","Vägområde"," --","shape/dwg"," --",null,null,null,null,"Chaos","Vägområdes-databas"]
["Funktionell företeelse","Bländskydd"," --","dwg/ESRI filgeodatabas","Enligt TDOK 2021:0029",null,null,null,null,"Chaos","NVDB"]
[null,"Brunn-slamsugning"," --","dwg/ESRI filgeodatabas","Enligt TDOK 2021:0029"]
[null,"Bullerskydd - väg"," --","dwg/ESRI filgeodatabas","Enligt TDOK 2021:0029"]
[null,"Färist"," --","dwg/ESRI filgeodatabas","Enligt TDOK 2021:0029"]
[null,"Hållplatsläge"," --","dwg/ESRI filgeodatabas","Enligt TDOK 2021:0029"]
[null,"Kantstolpe"," --","dwg/ESRI filgeodatabas","Enligt TDOK 2021:0029"]
[null,"Katastroföverfart"," --","dwg/ESRI filgeodatabas","Enligt TDOK 2021:0029"]
[null,"Räffla"," --","dwg/ESRI filgeodatabas","Enligt TDOK 2021:0029"]
[null,"Stigningsfält"," --","dwg/ESRI filgeodatabas","Enligt TDOK 2021:0029"]
[null,"Viltpassage i plan"," --","dwg/ESRI filgeodatabas","Enligt TDOK 2021:0029"]
[null,"Viltstängsel"," --","dwg/ESRI filgeodatabas","Enligt TDOK 2021:0029"]
[null,"Viltuthopp"," --","dwg/ESRI filgeodatabas","Enligt TDOK 2021:0029"]
[null,"Vägräcke"," --","dwg/ESRI filgeodatabas","Enligt TDOK 2021:0029"]
[null,"Vägräckesavslutning"," --","dwg/ESRI filgeodatabas","Enligt TDOK 2021:0029"]
["Eventuella förändringar av tidigare levererade data som har ägt rum under byggtiden.",null," --","dwg/ESRI filgeodatabas","Enligt TDOK 2021:0029"]

{"sheet":"10.2 Miljö","index":32,"n_rows":48,"n_cols":14,"rows_kept":48,"cut":false,"hidden":false,"merged":[[39,0,47,1],[39,10,47,10],[39,11,47,11],[31,1,34,1],[35,1,36,1],[29,0,37,0],[29,1,30,1],[38,1,38,2],[29,10,37,10],[29,11,37,11],[6,11,6,12],[8,0,8,13],[10,0,10,13],[11,0,11,13],[6,5,6,10],[9,0,9,13],[12,0,12,1],[12,3,12,4],[16,0,27,1],[13,0,14,1],[15,0,15,1],[25,3,25,4],[26,3,26,4],[27,3,27,4],[18,3,18,4],[19,3,19,4],[20,3,20,4],[23,3,23,4],[24,3,24,4],[22,3,22,4],[21,3,21,4],[28,0,28,13],[14,3,14,4],[15,3,15,4],[16,3,16,4],[16,10,27,10],[16,11,27,11],[17,3,17,4]]}
["Miljö",null,"Länk till flik Projektuppgifter"]
["Slutbesiktning : ",{"$f":"IF(Projektuppgifter!B17=\"\",\"Fyll i datum\",Projektuppgifter!B17)","v":"Fyll i datum"}]
[]
["För fullständig beskrivning av kraven för respektive leverans hänvisas till TDOK 2019:0210 Data om anläggningen - Data och dokumentation till förvaltande system - Väg"]
["OBS! Material och kemikalförteckning behöver påbörjas tidigt i projektet. Följande mallar kan med fördel användas: TMALL 0558 (Materialförteckning) samt TMALL 0559 (Kemikalieförteckning), alternativt egen mall med liknande upplägg i Excel. ",null,null,null,null,null,null,null,null,"Länk till MALLARNA (förvaltningsdata/miljö)"]
[]
[null,null,null,null,"Fylls i av:","Projekt (OBS! Kolumn J gäller UH)",null,null,null,null,null,"Mottagande förvaltning",null,"Alla"]
[null,null,null,"Filformat\nvisningsfil","Filformat\nunderlagsfil","Aktuellt att upprättas av projektet","Filnamn","Levereras av:\n- E (Entreprenör)\n- K (Konsult)\n- B (Beställare)\n(datum + namn)","Kvalitetssäkrat av miljökompetens inom projektet\n(datum + namn)","Levererat till förvaltande system och aviserat leveransen till mottagande förvaltning \n(datum + namn)","Levereras till","Förvaltande system","Godkänt \n(datum + namn (ej initialer) och org.tillhörighet)","Eventuella kommentarer"]
["3 månader efter slutbesiktning"]
[{"$f":"\" Leverans från leverantör (E/K) till överenskommen leveransyta, för mottagningskontroll senast: \"&IF(Projektuppgifter!C120=\"\",\"Fyll i datum\",TEXT(DATE(YEAR(Projektuppgifter!C120),MONTH(Projektuppgifter!C120),DAY(Projektuppgifter!C120)),\"ÅÅÅÅ-MM-DD\"))","v":" Leverans från leverantör (E/K) till överenskommen leveransyta, för mottagningskontroll senast: Fyll i datum"}]
[{"$f":"\"Leverans till mottagande förvaltning senast: \"&IF(B2=\"Fyll i datum\",\"Fyll i datum\",TEXT(DATE(YEAR(B2),MONTH(B2)+3,DAY(B2)),\"ÅÅÅÅ-MM-DD\"))","v":"Leverans till mottagande förvaltning senast: Fyll i datum"}]
["Data för lagring i databas"]
["Förorenade områden och förorenade massor",null,"Riskobjekt förorenade områden enligt TMALL 0006 Förteckning Förorenade områden för inmatning i LEB. TMALL är ett stöd för att visa vilken information som ska registreras i LEB. ","Registreras direkt i systemet",null,null,null,null,null,null,"LEB","LEB"]
["Buller och vibrationer",null,"TMALL 0189 Import till nationella bullerdatabasen (NBDB)"," --","xlsx",null,null,null,null,null,"NBDB","NBDB"]
[null,null,"TMALL 0188 Import till Projektnav","Registreras direkt i systemet",null,null,null,null,null,null,"Projektnav","Projektnav"]
["Analysdata/Mätdata",null,"Analysdata, mätdata","Registreras direkt i systemet",null,null,null,null,null,null,"Analys och mätadatabas","Analys och mätdatabas",null,"Dialog med UHväv miljö om lagringsplats "]
["Miljöföreteelser",null,"Allé","Registreras i Miljöwebb landskap enligt TDOK 2023:0149",null,null,null,null,null,null,"Miljöwebb \nLandskap","Miljöwebb \nLandskap"]
[null,null,"Artrik vägmiljö","Registreras i Miljöwebb landskap enligt TDOK 2023:0151"]
[null,null,"Bevarandevärd bro","Registreras i Miljöwebb landskap enligt TDOK 2023:0152"]
[null,null,"Faunapassage för medelstora däggdjur","Registreras i Miljöwebb landskap enligt TDOK 2023:0153"]
[null,null,"Faunapassage för stora däggdjur","Registreras i Miljöwebb landskap enligt TDOK 2023:0154"]
[null,null,"Grod- och kräldjurskonstruktion","Registreras i Miljöwebb landskap enligt TDOK 2023:0155"]
[null,null,"Kulturväg","Registreras i Miljöwebb landskap enligt TDOK 2023:0157"]
[null,null,"Solitära träd","Registreras i Miljöwebb landskap enligt TDOK 2023:0158"]
[null,null,"Stenmur","Registreras i Miljöwebb landskap enligt TDOK 2023:0159"]
[null,null,"Vattenfaunapassage","Registreras i Miljöwebb landskap enligt TDOK 2023:0160"]
[null,null,"Väganknutet kulturminne","Registreras i Miljöwebb landskap enligt TDOK 2023:0161"]
[null,null,"Övrig miljöföreteelse","Registreras i Miljöwebb landskap enligt TDOK 2023:0162"]
["Teknisk dokumentation"]
["Förorenade områden och förorenade massor","Juridik","Myndighetsbeslut som berör förorenade områden enligt 10 kapitel miljöbalken och/eller förordningen 1998:899 \n- Upplysning om förorening till tillsynsmyndighet \n- Anmälning om avhjälpandeåtgärd 1998:899. \n- Svar från tillsynsmyndighet.","pdf"," --",null,null,null,null,null,"Diariet. \nLänk till diariet ska registreras i LEB","LEB"]
[null,null,"Avtal som rör förorenade områden och som tecknats med externa parter\n- Avtal som träffas med andra verksamhetsutövare och tillsynsmyndigheter.\n- Avtal med fastighetsägare som berör förorenade områden.","pdf"," --"]
[null,"Utredningsskede/ planskede/undersökning","Inventering till exempel PM markmiljöinventering","pdf"," --"]
[null,null,"Ansvars och skälighetsbedömning","pdf"," --"]
[null,null,"Undersökning till exempel PM markmiljö","pdf"," --"]
[null,null,"Riskbedömning","pdf"," --"]
[null,"Genomförande/byggskede/efterbehandling","Åtgärdsutredning inklusive riskvärdering","pdf"," --"]
[null,null,"Saneringsrapport / Slutrapport till §28-anmälan","pdf"," --"]
[null,"Kontroll","Kontrollprogram miljö","pdf"," --"]
["Miljöföreteelser","Följande dokument ska registreras tillsammans med data till databas enligt rad 17-28 (i Miljöwebb Landskap):\n\n- Foton\n- Besiktningsprotokoll, Inventeringsprotokoll\n- Karta, ritning \n- Objektspecifik skötselbeskrivning  \n- Dispensansökan, Föreläggande och Myndighetsbeslut\n\nObservera att Miljödomar, tillstånd, anmälningsärenden, dispenser och andra beslut från myndigheter enligt miljölagstiftningen (inkl ev kontrollprogram) även ska redovisas i TMALL 0007"]
["Övrigt om miljö",null,"TMALL 0173 Överlämnanderapport miljö ","pdf","docx",null,null,null,null,null,"Chaos","Chaos"]
[null,null,"TMALL 0091 Miljösäkring plan och bygg"," --","xlsx"]
[null,null,"TMALL 0007 Förteckning Tillstånd, anmälningsärenden, dispenser enligt miljölagstiftning"," --","xlsx"]
[null,null,"TMALL 0558 Miljö - Materialförteckning (OBS! Levereras som fristående fil, inte som en bilaga till Överlämnanderapport miljö)."," --","xlsx"]
[null,null,"Information om inbyggda material (enligt TMALL 0558) inom teknikslag Infra i laddmall till GUS Maximo (TMALL 0742) "," --","xlsx"]
[null,null,"TMALL 0559 Miljö - Kemikalieförteckning (OBS! Levereras som en fristående fil, inte som en bilaga till Överlämnanderapport miljö). "," --","xlsx"]
[null,null,"Övrig teknisk dokumentation (miljörelaterad)","pdf","docx, xlsx, dgn, dwg"]
[null,null,"Övriga Kontrollprogram miljö, t.ex. utifrån myndighetsbeslut enligt miljölagstiftning","pdf","docx"]
[null,null,"Övriga skötselinstruktioner (miljörelaterade)","pdf","docx"]

{"sheet":"11.1 NTS","index":33,"n_rows":12,"n_cols":11,"rows_kept":12,"cut":false,"hidden":false,"merged":[[5,3,5,7],[5,8,5,9],[7,0,7,10],[9,0,9,10],[10,0,10,10],[8,0,8,10]]}
["NTS - Nationellt Trafikledningssystem",null,"Länk till flik Projektuppgifter"]
["Öppnande för trafik (ÖFT) :",{"$f":"IF(Projektuppgifter!B14=\"\",\"Fyll i datum\",Projektuppgifter!B14)","v":"Fyll i datum"}]
[]
["För fullständig beskrivning av kraven för respektive leverans hänvisas till TDOK 2019:0210 Data om anläggningen - Data och dokumentation till förvaltande system - Väg"]
[]
[null,null,"Fylls i av:","Projekt/Leverantör",null,null,null,null,"Mottagande förvaltning",null,"Alla"]
[null,"Filformat\nvisningsfil","Filformat\nunderlagsfil","Aktuellt att upprättas av projektet","Filnamn","Levereras av:\n- E (Entreprenör)\n- K (Konsult)\n- B (Beställare)\n(datum + namn)","Levererat till förvaltande system och aviserat leveransen till mottagande förvaltning \n(datum + namn)","Levereras till","Förvaltande system","Godkänt \n(datum + namn (ej initialer) och org.tillhörighet)","Eventuella kommentarer"]
["4 månader före ÖFT "]
[{"$f":"\" Leverans från leverantör (E/K) till överenskommen leveransyta, för mottagningskontroll senast: \"&IF(Projektuppgifter!C28=\"\",\"Fyll i datum\",TEXT(DATE(YEAR(Projektuppgifter!C28),MONTH(Projektuppgifter!C28),DAY(Projektuppgifter!C28)),\"ÅÅÅÅ-MM-DD\"))","v":" Leverans från leverantör (E/K) till överenskommen leveransyta, för mottagningskontroll senast: Fyll i datum"}]
[{"$f":"\"Leverans till mottagande förvaltning senast: \"&IF(B2=\"Fyll i datum\",\"Fyll i datum\",TEXT(DATE(YEAR(B2),MONTH(B2)-4,DAY(B2)),\"ÅÅÅÅ-MM-DD\"))","v":"Leverans till mottagande förvaltning senast: Fyll i datum"}]
["Data för lagring i databas"]
["TMALL 1566 kartändringar i NTS bakgrundskarta"," --","xlxs",null,null,null,null,"NTS","NTS"]

{"sheet":"Tillkomna dok.","index":34,"n_rows":4,"n_cols":8,"rows_kept":4,"cut":false,"hidden":false,"merged":[[0,0,0,3],[2,5,2,6]]}
["Tillkomna dokument"]
[]
[null,null,null,"Fylls i av:","Projekt","Mottagande förvaltning",null,"Notering"]
["Flik","Dokumentation","Filformat \nvisningsfil","Filformat\nunderlagsfil","Filnamn","Leveranskontrollerat\n(datum + signering)","Inläst och godkänt \n(datum + signering)","Vad ska TRV göra med dokumentet, då det inte anses vara FD?"]

{"sheet":"Levererat till extern part","index":35,"n_rows":20,"n_cols":3,"rows_kept":20,"cut":false,"hidden":false,"merged":[[0,0,0,2],[2,0,2,2]]}
["Dokument som är levererade till extern part"]
[]
["Projekt"]
["Levererat till","Datum","Filnamn"]
[]
[]
[]
[]
[]
[]
[]
[]
[]
[]
[]
[]
[]
[]
[]
["Dokumenten lagras inte av förvaltningen utan lagras i projektets struktur."]

{"sheet":"Versionslogg","index":36,"n_rows":123,"n_cols":6,"rows_kept":123,"cut":false,"hidden":false,"merged":[[84,1,94,1],[38,2,53,2],[70,0,83,0],[70,1,83,1],[38,1,53,1],[38,0,53,0],[26,0,27,0],[19,0,20,0],[19,1,20,1],[19,3,20,3],[28,4,29,4],[19,4,20,4],[26,1,27,1],[26,3,27,3],[26,4,27,4],[28,2,29,2],[28,3,29,3],[28,0,29,0],[28,1,29,1],[31,0,37,0],[31,1,37,1],[31,4,37,4],[110,4,111,4],[110,5,111,5],[95,0,122,0],[95,1,122,1],[91,2,94,2],[38,4,53,4],[54,1,68,1],[54,0,68,0],[117,2,120,2],[118,4,119,4],[97,4,98,4],[84,0,94,0],[54,4,68,4],[106,3,107,3],[106,4,107,4],[106,5,107,5],[96,2,97,2],[117,5,119,5],[110,2,111,2],[97,5,98,5]]}
["Versionslogg"]
[]
["Fastställd version","Dokumentdatum",null,"Ändring","Namn"]
["1.0","2015-02-22",null,"Första version.\nErsätter  TDOK 2014:0368 Leveransplan del 1 - Väg och järnvägsdata, pga renodlig av en leveransplan för väg och en för järnväg.\nTre företeelser har ändrats/tillkommit från TDOK 2014:0368 Leveransplan del 1 - Väg och järnvägsdata:\nÄndrat Brunn -->  Brunn - Slamsugning\nLagt till Viltpassage i plan och Viltuthopp.\nLagt till leveranstid för Maximo\nNya leveranstider till BaTMan\nLagt till leveranstid för IDA/ICT","Maria Davidson, UHjja"]
["2.0","2015-06-01",null,"Flik Planering: \nLagt till Trafiksäkerhetsklass - GC, Trafiksäkerhetsklass - Korsning, Trafiksäkerhetsklass - Sträcka för NVDB\nTagit bort Kulturväg från NVDB\n\nFlik Investeringsprojekt:\nTagit bort C-Belysning, C-Reglering, C-Separation, C-Trafiksäkerhetshöjande åtgärder, C-Cykelvägtyp, Hållplats från NVDB\nLagt till GCM-Belyst, GCM-Separation, GCM-Vägtyp för NVDB\nSkapat länkar till DPS för referenslinjerna för NVDB\n\nFörtydligat vad som ska till IVAR.\n\nFlik Underhållsåtgärd: \nTagit bort C-Belysning, C-Reglering, C-Separation, C-Trafiksäkerhetshöjande åtgärder, Hållplats, Snömarkering från NVDB\nLagt till GCM-Belyst, GCM-Separationför NVDB\n\n","Helena Andersson, UHvädi"]
["3.0","2015-10-01",null,"Lagt till flik Kontakt\n\nFlik Investeringsprojekt:\nLagt till Vägnybyggnad_2009 för NVDB\nLagt till påminnelse att leverera ev förändringar av tidigare levererat data för NVDB (+ 1 vecka efter ÖFT)\n\nFörtydligat kring miljörelaterade leveranser","Helena Andersson, UHvädi"]
["4.0","2016-03-01",null,"Flik Planering: \nLagt till företeelsetyperna FPV dagliga personresor, FPV, godstrafik, FPV kollektivtrafik, FPV långväga personresor, Funktionellt prioriterat vägnät, Lastbilsparkering, Vattenskydd för NVDB.\nÄndrat länkarna så att man kommer till DPS-sidan istället för till resp DPS.\n\nFlik Investeringsprojekt:\nLagt till företeelsetyp Räffla och Vattenskydd för NVDB.\nFöreteelsetyp Vägräckesreflex borttagen från NVDB.\nÄndrat länkarna så att man kommer till DPS-sidan istället för till resp DPS.\n\nFlik Underhållsåtgärd:\nLagt till företeelsetyp Räffla\nFöreteelsetyp Vägräckesreflex borttagen från NVDB.\nÄndrat länkarna så att man kommer till DPS-sidan istället för till resp DPS.\n\nFlik Kontakt\nLagt till NVDB","Helena Andersson, UHvädi"]
["5.0","2016-06-01",null,"Flik Investeringsprojekt:\nFörtydligande kring leveranser till Chaos och Maximo\nTagit bort IDA för leveranser till IVAR\nTagit bort TRV-Ledningspassage och TRV-Ledningssträcka från NVDB\nTagit bort Grundvattenskydd, Ytvattenskydd, Dagvattenanläggning från Arbetsrum/Miljö\nÄndrat benämning från Kulturbro till Bevarandevärd bro för Miljöwebb Landskap\nÄndrat benämning från Utterpassage till Faunapassage för medelstora dägdjur för Miljöwebb Landskap\nLagt till Faunapassage för stora däggdjur för Miljöwebb Landskap\n\nFlik Underhållsåtgärd:\nFörtydligande kring leveranser till Chaos och Maximo\nTagit bort IDA för leveranser till IVAR\nTagit bort TRV-Ledningspassage och TRV-Ledningssträcka från NVDB\nTagit bort Grundvattenskydd, Ytvattenskydd, Dagvattenanläggning från Arbetsrum/Miljö\nÄndrat benämning från Kulturbro till Bevarandevärd bro för Miljöwebb Landskap\nÄndrat benämning från Utterpassage till Faunapassage för medelstora dägdjur för Miljöwebb Landskap\nLagt till Faunapassage för stora däggdjur för Miljöwebb Landskap\n","Helena Andersson, UHvädi"]
["6.0","2016-10-01",null,"Flik Planering:\nLagt till Vägvisning för NVDB\nTagit bort Huvudväg för godstransport för NVDB\nTagit bort Prioriterad väg för kollektivtrafik för NVDB\n\nFlik Investeringsprojekt:\nFörtydligat 12-månaderskravet för leverans till  ”-12 mån före ÖFT eller senast när bygghandling är klar\"\nLagt till Vägtrumma för NVDB\nÄndrad leveranstidpunkt för Miljöwebb Landskap från 3 mån före ÖFT till 30 dagar efter ÖFT\n\nFlik Underhållsåtgärd:\nLagt till Vägtrumma för NVDB\nÄndrad leveranstidpunkt för Miljöwebb Landskap från 3 mån före ÖFT till 30 dagar efter ÖFT\n\nFlik Kontakt\nÄndrat kontaktperson för VUH","Helena Andersson, UHvädi"]
["7.0","2017-01-01",null,"Flik Planering:\nNy kolumn B \"Leverans till förvaltande system\".\n\nFlik Investeringsprojekt:\nNy kolumn B \"Leverans till förvaltande system\".\n\nFörtydliganden av krav avseende miljörelaterad data\n\nFlik Underhållsåtgärd\nNy kolumn B \"Leverans till förvaltande system\".\n\nFörtydliganden av krav avseende miljörelaterad data\n\nFlik Kontakt:\nÄndrat kontakt för Maximo\nLagt till Projektnav, Redbex och TMO","Susanna Ahlstedt via Helena Andersson"]
["8.0","2017-03-01",null,"Flik Planering: \nLagt till Strategiskt vägnät för tyngre transporter\n\nFlik Investeringsprojekt:\nTidskravet för leveranser 3 mån före ÖFT anpassat till korta uppdrag och lyder nu 3 mån före ÖFT eller senast en kalendermånad efter att bygghandlig är klar\n\nFlik Underhållsåtgärd:\nFöreteelsetyp Omledningsväg borttagen för NVDB","Helena Andersson, UHvädi"]
["9.0","2017-04-21",null,"Flik Investeringsprojekt:\nÄndrat från VUH till PMS Beläggning för leverans av beläggningsdata\n\nFlik Underhållsåtgärd:\nÄndrat från VUH till PMS Beläggning för leverans av beläggningsdata\n\nFlik Kontakt:\nÄndrat från VUH till PMS Beläggning samt ändrat kontaktperson för detta","Helena Andersson, UHvädi"]
["10.0","2017-07-01",null,"Flik Investeringsprojekt:\nÄndrat under Chaos, lagt till text om bilagor för TMALL 0558 och TMALL 0559.\nTagit bort rad om Teknisk dokumentation under PPI.","Helena Andersson, UHvädi"]
["11.0","2017-10-19",null,"Flik Planering: \nLagt till företeelsetyper Omledning och TEN-T Vägtyp\nFöreteelsetyp SE-TERN Vägnät borttagen\n\nFlik Investeringsprojekt:\nKolumn \"Leverans från leverantör till projektets system (datum/signatur)\" borttagen\nFörtydliganden kring leverans till Maximo\n\nFlik Underhållsåtgärd:\nFörtydliganden kring leverans till Maximo","Helena Andersson, UHvädi"]
["12.0","2018-02-14",null,"Flik Planering:\nFöreteelsetyper NRL-nät, Regionalt rastplatsvägnät och Vägkategori är borttagna\n\nFlik Investeringsprojekt:\nFöreteelsetyper Vägräcke och Vägräckesavslutning för NVDB flyttade från  \"- 3 månader före ÖFT eller senast en kalendermånad efter att bygghandling är klar\" till  \"+ 1 vecka efter ÖFT\"\nFöreteelsetyp Vägnybyggnad_2009 borttagen för NVDB.\nFöreteelsetyp Provisorisk väg är tillagd för NVDB.\n\nFlik Underhållsåtgärd:\nFöreteelsetyper Vägräcke och Vägräckesavslutning för NVDB flyttade från  \"- 3 månader före ÖFT eller senast en kalendermånad efter att bygghandling är klar\" till  \"+ 1 vecka efter ÖFT\"\n\nFlik Kontakt:\nÄndrad kontaktväg för NBDB","Helena Andersson, UHvädi"]
["13.0","2018-05-14",null,"PPI och PPU ändrade till Projektportalen\n\nFlik Underhållsåtgärder är uppdelad i de nya flikarna \"Beläggning\", \"Byggnadsverk\", \"Infrasystem\", \"BAS-kontrakt\" samt \"Övriga kontrakt\" för att bättre passa Underhålls upphandlingar.\n\nFlik Anvisningar:\nJusterade anvisningar\n\nFlik Investeringsprojekt:\nÄndrad leveranstidpunkt för bländskydd, brunn-slamsugning, bullerskydd-väg, kantstolpe, viltstängsel, viltpassage i plan, viltuthopp, och vägtrumma för NVDB. Dessa är flyttade från \"3 månader före öft\" till \"1 vecka efter öft\".\n\nAlla flikar rörande underhållsåtgärder:\nÄndrade leveranstidpunkter.\n\nFlik Planering borttagen","Helena Andersson, UHvädi"]
["14.0","2018-12-01",null,"Flik Investerings-underhållsprojekt:\nJusterad rörande miljö\nRättat felstavad e-postadress (it.dokumentation@trafikverket.se)\nNya och ändrade krav under tidpunkt  \"- 2 veckor före slutbesiktning eller enligt kontrakt\".\n\nFlik BAS-kontrakt:\nJusterad rörande miljö\n\nFlik Beläggning:\nJusterad rörande miljö\nLagt till \"VV-slitlager\" för NVDB\n\nFlik Byggnadsverk:\nJusterad rörande miljö\nLagt till \"VV-slitlager\" för NVDB\n\nFlik Infrasystem:\nJusterad rörande miljö\nJusterade krav för Chaos resp Maximo\n\nFlik Kontakt:\nÄndrad kontakt för Projektportalen (miljödata)","Helena Andersson, UHvädi"]
["15.0","2019-02-18",null,"Flik Investerings-underhållsprojekt:\nKrav borttagna från -3 månaders och -2 veckorstidpunkten då de ersätts av de krav som tillkom i v14.0\n\nGeoteknik har tillkommit under 3 månader efter ÖFT\n\nAllmänt:\nFörtydliganden kring leveranser till Chaos och Maximo.","Helena Andersson, UHvädi"]
["16.0","2019-04-08",null,"Flik Investerings-underhållsprojekt:\nÅterinfört krav på leverans till BaTMan senast 1 månad före ibruktagande","Helena Andersson, UHvädi"]
["17.0","2019-05-20",null,"Samtliga flikar:\nFörtydligat att leveranstidskravet avser leverans till förvaltande system.\nKrav på leverans av Kulturvägar borttaget\n\nFlik Investerings-underhållsprojekt:\nÄndrad rubrik på kolumn A. Visar var leverans ska ske.\nNy kolumn (B). Visar vilket system som slutlagrar förvaltningsdata.\nNy kolumn (E). Visar vilken TMALL som ska användas.\nFörtydligat för kolumn F vem som ska leverera.\nÄndrad rubrik för kolumn H\nDetaljerat leveranser inom Infrasystem, Vägmarkering och Vägteknik.\n\"Överlämnanderapport miljö\", \"Förteckning Anmälningsärenden, tillstånd och kontrollprogram enligt miljöbalken\" samt  \"Miljösäkring plan och bygg\" ska levereras till Chaos istället för Projektportalen. \nÄndrad leveranstidpunkt för leveranser till Miljöwebb Landskap samt till Chaos rörande miljö från \"1 månad före slutbesiktning\" till \"2 månader efter slutbesiktning\"\nLeverans till PMS beläggning uppdelad på två rader, en för TMALL 0050 och en för registrering i systemet.\nÄndrade krav för leverans till IVAR-IDA/ICT.\nKrav på leverans av \"Underlag till beredskapsplan\", \"Kostnader Till TMALL 0014 Beslut\", \"Bygghandlingar\" och \"Kundärenden\" till Projektportalen borttagna.\nÄndrad TDOK-hänvisning för NVDB.\nLagt till \"Vägområde\" och \"Vägtrumma inventerad sträcka\" för NVDB.\n\nFlik BAS-kontrakt:\nLagt till \"Vägtrumma inventerad sträcka\" för NVDB.\nLeverans av \"Teknisk dokumentation - miljörelaterad\", \"Bygghandlingar\" och \"Kundärenden\" till Projektportalen borttagna\n\"Förteckning Anmälningsärenden, tillstånd och kontrollprogram enligt miljöbalken \" ska levereras till Chaos istället för till Projektportalen\n\nFlik Beläggning:\nLagt till \"Vägtrumma inventerad sträcka\" för NVDB.\nLeverans av \"Teknisk dokumentation - miljörelaterad\", \"Bygghandlingar\" och \"Kundärenden\" till Projektportalen borttagna\n\"Förteckning Anmälningsärenden, tillstånd och kontrollprogram enligt miljöbalken \" ska levereras till Chaos istället för till Projektportalen\n\nFlik Byggnadsverk:\nLeverans av \"Teknisk dokumentation - miljörelaterad\", \"Bygghandlingar\" och \"Kundärenden\" till Projektportalen borttagna\n\"Förteckning Anmälningsärenden, tillstånd och kontrollprogram enligt miljöbalken \" ska levereras till Chaos istället för till Projektportalen\n\nFlik Infrasystem:\nLeverans av \"Teknisk dokumentation - miljörelaterad\", \"Bygghandlingar\" och \"Kundärenden\" till Projektportalen borttagna\n\"Förteckning Anmälningsärenden, tillstånd och kontrollprogram enligt miljöbalken \" ska levereras till Chaos istället för till Projektportalen\n\nNy flik \"Definitioner\"\n\n","Helena Andersson, UHvädi"]
[]
["18.0 ","2019-09-01",null,"Helt omarbetad version utifrån resultatet från projekt Anpassat regelverk. Kraven är dokumenterade i TDOK 2019:0210 \"Data om anläggningen - Data och dokumentation till förvaltande system Väg\".\nTeknikområdesindelningen bygger på strukturen enligt Trafikverkets tillgångsförvaltning.","Helena Andersson, UHvädi"]
["19.0","2019-12-01",null,"Anpassningar efter förändringar av strukturen i Trafikverkets anläggningsansvar vilket innebär att flikarna 8.1-8.4 samt 9.2 försvunnit. Innehållet i dessa flikar är flyttade till flik 10.1.\nLeveranstider för leverans till NVDB, 12 resp 3 månader före öft är ändrade till 4 månader före öft.\nTydligare skillnad mellan förvaltande system och system dit leverans ska ske.\n\nFlik Kontakt-aviseringsuppgifter:\nÄndrad mailadress för LEB\n\nFlik Projektuppgifter:\nBrunmarkerat kolumner som inte ska fyllas i.\nKolumnen \"Påverkas av projektet\" är flyttad till kolumn C.\n\nFlik 7.1 Vägnät:\nInfört krav på leverans av Referenslinjetillkomst\n\nFlik 10.4 Miljö:\nRättat TMALL-nr för Miljöwebb Landskap\nNya kolumner: \"Kvalitetssäkras av miljökompetens (BPU) inom projektet (datum + namn)\" samt \"Kvalitetsgranskat av UHtm (datum + namn)\"\n\nFlik Mallstruktur i Chaos:\nNy flik för förvaltningen\n\n","Helena Andersson, UHvädi"]
["20.0","2020-05-13",null,"Förtydligat att mottagande förvaltning skapar dokumentkoppling mellan Chaos och Maximo.\n\nFörtydligat att hela namnet (inte initialer) ska anges av mottagande förvaltning.\n\nFlik Projektuppgifter\nSamordning brand och säkerhet infört (kopplat till nya fliken 5.12.2.3)\n\nFlik 4.1-10.2:\nKommentarer innehållande kravtexter borttagna. Hänvisning till kravdokument i varje flik istället\n\nFlik 4.1, 4.2 samt 4.3\nTagit bort krav på leverans av \"Övriga konstruktionsritningar\"\n\nFlik 5.1, 5.4, 5.5, 5.6, 5.9, 5.10, 5.11\nInfört krav på leverans av programvaror och licenser\n\nFlik 5.12.2.3 Brand och säkerhet\nNy flik\n\nFlik 7.1 Vägnät:\nTagit bort krav på leverans av referenslinjetillkomst\nLagt till krav på leverans av avslutad anläggning (bil, cykel, gång)\n\nFlik 9.4 Vägmarkering:\nFörtydligat vad som ska levereras","Helena Andersson, UHvädi"]
["21.0","2020-08-17",null,"Flik 5.11 VViS\nNågot ändrade krav för teknisk dokumentation\n\nFlik 10.1 Adm-funkt. Företeelser\nTagit bort Rastficka\nLagt till Parkeringsficka","Helena Andersson, UHvädi"]
["22.0","2020-11-16",null,"Flik Kontakt-aviseringsuppgifter\nÄndrat uppgifter i aviseringsmailet till NVDB\n\nFlik Projektuppgifter\nLänkar till flikar i kolumn I.\n\nFlik 5.11 VViS\nLagt till krav på ytterligare 2 installationsbeskrivningar\n\nFlik 7.1 Vägnät \nObligatoriska företeelser får X automatiskt i kolumn D när man anger levrerans av referenslinje\nTagit bort Antal körfält\nLagt till Antal körfält2\n\nFlik 10.1 Adm-funkt. företeelser\nLagt till Sidoanläggningsväg\nObligatoriska företeelser får X automatiskt i kolumn E när man anger leverans av referenslinje (i flik 7.1 Vägnät)\n\nSamtliga flikar från 4.1 Bro till 10.2 Miljö\nLänk till flik Projektuppgifter","Helena Andersson, UHväda"]
["23.0","2021-02-16",null,"Anpassningar till organisationsförändring där MK tagit över visst indatastöd.\n\nFlik Kontakt-aviseringsuppgifter\nLagt till uppgift om aviseringsmail för LEB\nLagt till kontaktuppgifter för Vägområdesdatabasen\n\nFlik Projektuppgifter\nNy leveranstidpunkt, dag för ÖFT/ibruktagande, införd för Byggnadsverk\nTagit bort \"NVDB\" från benämningen på Vägområdesdatabasen\n\nFlik 4.1 Bro\nLagt till Huvudinspektion\n\nFlik 4.2 Tunnel och bergslänt\nLagt till Huvudinspektion\n\nFlik 4.3 Övriga byggnadsverk\nLagt till Huvudinspektion\n\nFlik 7.1 Vägnät\nÄndrad hänvisning till TDOK 2021:0029\nNytt krav - leverans av planritning \n\nFlik 9.3 Vägkropp\nÄndrad hänvisning till TDOK 2021:0029 för Vägtrumma samt Vägtrumma inventerad sträcka\n\nFlik 10.1 Adm-funkt. företeelser\nÄndrad hänvisning till TDOK 2021:0029\nLagt till Färist","Helena Andersson, UHväda"]
[]
["24.0","2021-09-17",null,"Flik Definitioner\nFörtydligande av ÖFT-definitionen\n\nFlik Kontakt-aviseringsuppgifter\nGUS hör ihop med Maximo\n\nFlikar 4.1 Bro, 4.2 Tunnel samt 4.3 Övriga byggnadsverk\nLeveranstidpunkt \"1 månad efter ibruktagande\" ändrad till \"2 månader efter slutbesiktning\".\nLagt till hänvisning till TDOK 2018:0200\nFormat för visningsfil ska vara PDF/A.\n\nFlik 5.2-5.12\nTagit bort Materialföreteckning och Kemikalieförteckning eftersom krav på leverans av dessa ligger i TMALL 0742 Laddmall för komponenter\n\nFlik 5.6 Styr och regler\nLagt till Kontroll och provning\n\nFlik 5.11 VViS\nTillkomna krav för teknisk dokumentation\n\nFlik 6.1 Siter och kabel\nHänvisningstext till flik 10.2 \"Miljö\" rörande material- och kemikalieförteckningar infört istället för separata rader\nTillkomna och förtydligade krav.\n\nFlik 7.1 Vägnät\nTidskrav \"4 månader före ÖFT eller 1 månad efter färdig bygghandling\" ändrat till \"4 månader före ÖFT\".\nPlanritning får X automatiskt i kolumn D när man anger leverans av referenslinje bilnät.\nTagit bort Antal körfält2 samt Korsning.\n\nFlik 9.3- 9.4\nHänvisningstext till flik 10.2 \"Miljö\" rörande material- och kemikalieförteckningar infört istället för separata rader\n\nFlik 10.1 Adm-funkt. företeelser\nTidskrav \"4 månader före ÖFT eller 1 månad efter färdig bygghandling\" ändrat till \"4 månader före ÖFT\".\nTagit bort C-cykelled, Driftvändplats samt Överledningsplats\n\nFlik 10.2 Miljö\nFörtydligat att TMALL 0006 inte ska levereras.\nKompletterat med rubrik Kontroll och underliggande leveranser, som sedan tidigare funnits i TDOK 2019:0210 men saknats här.\nÄndrat från UHtm till UHtam\nMarkerat att TMALL 0091 inte ska granskas av UHtam","Helena Andersson, UHväda"]
[]
["25.0","2022-03-04",null,"Flik Projektuppgifter\nLagt till två nya kolumner Leverans från leverantör  (E/K) till leveransyta enl kolumn M eller annan överenskommen yta, för granskning senast och Levererat av (namn + datum). Flyttat Påverkas av projektet till kolumn B. Flyttat och ändrat namn på Leveransen ska vara levererad till mottagande förvaltning senast till kolumn E.\n\nFlik 5.11 VViS\nTagit bort Underhållsmanual och Driftsmanual samt Konfigurationsfiler för mätstationer. Justerat text något.\nFlik 7.1 Vägnät\nÄndrat från Mottaget till Kontrollerat. \nÄndrat namn från Planritning till Planritning med vägmarkering\n8.1 Vattenskydd\nLagt till flik 8.1 Gällande vattenskydd och dagvattenhanteringsanläggning.\nFlik 9.1 Beläggning\nTidskrav \"1 vecka efter ÖFT\" för PMS-beläggning ändrat till \"2 månader efter ÖFT\".\nFlik 9.3 Vägkropp\nLagt till krav gällande Avtal och tillstånd, Skötselprogram samt kontrollprogram för vägteknik och Geoteknik.\nÄndrat från Mottaget till Kontrollerat\nTagit bort Vägtrumma inventerad sträcka. Lagt till Vägtrumma, avslutad anläggning\nTidskrav \"1 vecka efter ÖFT\" för PMS-beläggning ändrat till \"2 månader efter ÖFT\".\nFlik 10.1\nÄndrat från Mottaget till Kontrollerat \nTagit bort Vägtyp samt vattenskydd. \nÄndrat namn från Bullerskydd till Bullerskydd - väg\nLagt till Åtgärdskategori buller och vibrationer\nFlik 10.2 Miljö\nLagt till hänvisning till Mallar gällande Material- och kemikalieförteckning.","Emma Klasson, UHväu"]
["26.0","2022-09-16",null,"Kontakt-aviseringsuppgifter\nNVDB - Tagit bort indatastod@trafikverket.se och ersatt med nvdb-leverans@trafikverket.se i kolumn C.\nPMS beläggning - lagt till om TMALL 1384.","Emma Klasson, UHväu"]
[null,null,null,"Flik 4.1 Bro\nÄndrat leveranstidskravet från 2 mån efter slutbesiktning till 3 månader efter slutbesiktning\nUnder stycket 3 månader efter slutbesiktning; Lagt till krav på leverans av Teknisk dokumentation från 1 mån före ÖFT/ibruktagande har status relationshandling.\nTagit  bort krav på leverans av Passage/Sidopassage samt Sammanställningsritning."]
[null,null,null,"Flik 4.2 Tunnel\nÄndrat leveranstidskravet från 2 mån efter slutbesiktning till 3 månader efter slutbesiktning\nBytt namn på flik från Tunnel till Tunnel och bergslänt\nUnder stycket 3 månader efter slutbesiktning; Lagt till krav på leverans av Teknisk dokumentation från 1 mån före ÖFT/ibruktagande har status relationshandling samt Förundersökning.\nTagit bort krav på leverans av Sammanställningsritning, Geotekniskt PM samt Markundersökningsrapport.\nÄndrat namn från Konstruktionsberäkningar till Utredningar och beräkningar. "]
[null,null,null,"Flik 4.3 Övriga byggnadsverk\nÄndrat leveranstidskravet från 2 mån efter slutbesiktning till 3 månader efter slutbesiktning\nUnder stycket 3 månader efter slutbesiktning; Lagt till krav på leverans av Teknisk dokumentation från 1 mån före ÖFT/ibruktagande har status relationshandling samt Förundersökning.\nTagit bort krav på leverans av Sammanställningsritning."]
[null,null,null,"Flik 5.1-5.12.2.3\nLagt till kolumn Kontrollerat"]
[null,null,null,"Flik 9.1 Beläggning och 9.3 Vägkropp\nLagt till text att NVDB flik 7.1 måste vara uppdaterad innan Beläggning och Avvattning registreras i PMS Beläggning."]
[null,null,null,"Flik 9.2 Grusväg\nLagt till ny flik 9.2 gällande Grusväg."]
["27.0","2023-03-03",null,"Flik Definitioner \nFörtydligat definitionen för ÖFT.","Emma Klasson, UHväu"]
[null,null,null,"Flik Leveranstider\nNy flik med bakgrund till tidskraven."]
[null,null,null,"Flik Anvisningar\nLagt till text gällande utcheckning av leveransplanen i PP.  "]
[null,null,null,"Flik Kontakt-aviseringsuppgifter\nKompletterat text om vad aviseringsmail till NVDB ska innehålla.\nKompletterat text om vad aviseringsmail till LEB ska innehålla.\nKompletterat Aviseringsadress från projekt till mottagande förvaltning för GUS/Maximo. "]
[null,null,null,"Flik 4.1-4.3\nReviderat i kolumn J och K. \nÄndrat i leveranstidskraven från ÖFT/Ibruktagande till ÖFT.\nLagt till en rad med slutsignering av NaSa. "]
[null,null,null,"Flik 5.1-5.12.2.3\nÄndrat leverantidskravet från 2 veckor före slutbesiktning eller enligt kontrakt till 2 veckor före slutbesiktning.\nDär filformat visningsfil varit pdf har dessa ändrats till PDF/A.\nFörtydligat gällande godkänt kolumnen. "]
[null,null,null,"Flik 5.2-5.12.2.2\nLagt till rad gällande skrotningsladdmall"]
[null,null,null,"Flik 5.6 Styr och regler\nBrandlarm och miljömätning har flyttats in i denna flik (från 5.8) "]
[null,null,null,"Flik 5.8 Trafiksystem\nStörre anpassningar och justeringar efter TMALL 0742 för komponenter version 4."]
[null,null,null,"Flik 5.10 Ventilation\nTillkommande krav gällande Teknisk dokumentation"]
[null,null,null,"Flik 7.1 Vägnät\nÄndrat hänvisning till TDOK 2019:0210 för Planritning med vägmarkering. "]
[null,null,null,"Flik 8.1 Vattenskydd\nÄndrat leverantidskravet från 2 veckor före slutbesiktning eller enligt kontrakt till 2 veckor före slutbesiktning."]
[null,null,null,"Flik 9.3 Vägkropp\nGråmarkerat kolumn M för teknikområde Geoteknik (som inte kvitteras).\nÄndrat leverantidskravet för vägteknik från 2 veckor före slutbesiktning eller enligt kontrakt till 2 veckor före slutbesiktning.\nÄndrat leveranstidskravet för Geoteknik från 3 månader efter ÖFT till 3 månader efter slutbesiktning.\nÄndrat leveranstidskravet för NVDB från 1 vecka efter ÖFT till 2 månader efter slutbesiktning"]
[null,null,null,"Flik 9.4 Vägmarkering\nÄndrat leverantidskravet från 2 veckor före slutbesiktning eller enligt kontrakt till 2 veckor före slutbesiktning."]
[null,null,null,"Flik 10.1 Adm-funkt. Företeelser\nÄndrat leveranstidskravet 1 vecka efter ÖFT till 2 månader efter slutbesiktning\nLagt till Vägombyggnad samt Bygdeväg.\nTagit bort Åtgärdskategori buller och vibrationer och VV-slitlager.\nFlyttat GCM-belyst och GCM-separation till 4 månader före ÖFT (från 1 vecka efter ÖFT)."]
[null,null,null,"Flik 10.2 Miljö\nÄndrat från UHtam till Miljökompetens på UH.\nÄndrat leveranstidskravet från 2 mån efter slutbesiktning till 3 månader efter slutbesiktning.\nTagit bort Underlag för beredskapsplan för vattenskyddsåtgärder."]
["28.0","2023-11-01",null,"Flik Kontakt-aviseringsuppgifter\nÄndrat text vad ett aviseringsmail till GUSMaximo ska innehålla.","Emma Klasson, UHväu"]
[null,null,null,"Flik 4.1-4.3\nLagt till en text under tabellen gällande dokumentation kopplat till miljö.\n1.Ändrat arbetssätt för att registrera och skicka uppgifter för bärighet i BaTMan. Detta beskrivs nu i TDOK 2023:0079.\n2.Teknikbyggnad ovan jord för tunnel eller bro ska dokumenteras i BaTMan som egen konstruktion.\n3.Information om stomnät för vägtunnel ska dokumenteras i BaTMan. \nPunkt 1-3 föranleder ändringar i flik 4.1-4.3 (se nedan)."]
[null,null,null,"Flik 4.1 Bro \nTagit bort krav på leverans av Bärighet."]
[null,null,null,"Flik 4.2 Tunnel och bergslänt\nTagit bort krav på leverans av Bärighet.\nLagt till krav på leverans av Stomnät."]
[null,null,null,"Flik 4.3 Övriga byggnadsverk\nTagit bort krav på leverans av Bärighet. "]
[null,null,null,"Flik 5.1-5.12.2.3\nLagt till ny kolumn ID, för att tydliggöra kopplingen till TDOK 2019:0210 och mappar i Chaos. \nLagt till ny kolumn Projektet intygar att nedanstående dokument är kvalitetsgranskade samt levererade till Chaos."]
[null,null,null,"Flik 5.12.2.3 Brand och Säkerhet\nLagt till Kvarstående BAS-P risker, Kvarstående BAS-U risker och Säkerhetsgodkännande."]
[null,null,null,"Flik 6.1, 9.3 och 9.4\nJusterat texten under tabellen gällande leverans av miljödokumentation. "]
[null,null,null,"Flik 5.3 Belysning\nLagt till rader under respektive rad gällande den tekniska dokumentationen. För att förtydliga vilken dokumentation som efterfrågas. "]
[null,null,null,"Flik 9.3 Vägkropp \nLagt in kommentar om när TMALL 1018 inte är aktuell att rapportera."]
[null,null,null,"Flik 10.2 Miljö\nJusterat texten i cell I8, från Kvalitetssäkrat av miljökompetens (BPU) inom projektet till Kvalitetssäkrat av miljökompetens inom projektet.\nUtgråat kolumn N cell 16-25 (gällande MWL). \nFörtydligat vad Övrig teknisk dokumentation (miljörelaterad) kan vara, genom att lägga till en kommentar.\nJusterat texten under tabellen gällande miljö kopplat till byggnadsverk."]
[null,null,null,"Flik 10.2 Miljö - Miljöwebb Landskap\nKrav för data till Miljöwebb landskap har tidigare beskrivits i TMALLar, dessa är nu utbytta till nya TDOK. \nLagt till krav på Kulturväg och Stenmur. "]
[null,null,null,"Flik 10.2 Miljö - Förorenade områden\nLagt till Myndighetsbeslut enligt miljölagstiftning.\nTagit bort Databas."]
[null,null,null,"Flik Mallstruktur i Chaos\nUppdaterat mallstrukturen efter ändringar i version 27.0 av leveransplanen."]
[null,null,null,"Lagt till så att det automatkryssas i flik projektuppgifter, kolumn B \"påverkas av projektet\" när ett kryss sätts i \"aktuellt att upprättas av projektet\" i någon av flikarna 4.1-10.2."]
["Version","Datum","Flik","Ändring","Gäller ändringen bara nya projekt, eller även pågående?","Namn:"]
["29.0","2024-05-01","Anvisningar","Bytt plats på punkt 2 och 3 samt kompletterat texten i punkt 1 gällande automatkryss i projektuppgiftsfliken.","Förtydligande kring hur leveransplanen kan fyllas i. ","Emma Klasson, UHväu"]
[null,null,"Kontakt-aviseringsuppgifter","Gällande Geoteknik - förtydligat att man inte erhåller kvittens på genomförd leverans. \nÄndrat mailadress för leveransavisering till miljö.","Förtydligande. ","Emma Klasson, UHväu"]
[null,null,"Flik 4.1 Bro\nFlik 4.2 Tunnel och bergslänt\nFlik 4.3 Övriga byggnadsverk","Reviderat krav: Ny text för ”Övriga dokument från en åtgärd”.","Nya projekt ska leverera enligt de nya kraven, befintliga projekt bör.","Fredrik Olsson, UHvätb"]
[null,null,"Flik 4.1 Bro\nFlik 4.2 Tunnel och bergslänt\nFlik 4.3 Övriga byggnadsverk","Slopat krav: Myndighetsbeslut enligt miljölagstiftning. Dokumenten återfinns under kapitlet Miljö.","Slopat krav","Fredrik Olsson, UHvätb"]
[null,null,"Flik 4.1 Bro\nFlik 4.2 Tunnel och bergslänt\nFlik 4.3 Övriga byggnadsverk","Slopat krav: Materialförteckning (miljö). Materialförteckningen lagras nu bara under kapitlet Miljö","Slopat krav","Fredrik Olsson, UHvätb"]
[null,null,"Flik 4.1 Bro\nFlik 4.2 Tunnel och bergslänt\nFlik 4.3 Övriga byggnadsverk","Slopat krav: Kemikalieförteckning (miljö). Kemikalieförteckningen lagras nu bara under kapitlet Miljö","Slopat krav","Fredrik Olsson, UHvätb"]
[null,null,"Flik 5.2 ATK Mätstation","Bytt namn på fliken från ATK till ATK mätstation. ","Information","Mats Olsson, UHvätb"]
[null,null,"Flik 5.5 Elkraft","Förtydligat i rubriken Elkraft (Kraft i tunnelsystem och öppningsbara broar).","Information","Mats Olsson, UHvätb"]
[null,null,"Flik 5.8 Trafiksystem","Lagt till TMALL 1253 Laddmall för FU, Förbyggande Underhåll, Maximo. \nJusterat tabell efter ändringar I TDOK 2019:0210.","Nya projekt ska leverera enligt de nya kraven, befintliga projekt bör.","Mats Olsson, UHvätb"]
[null,null,"Flik:\n7.1 Vägnät\n10.1 Adm-funkt. Företeelser","Ändrat den rödmarkerade texten ovanför tabellen från Mallar i dwg och ESRI-filgeodatabas finns framtagna som stöd och bör användas till Mallar i dwg och ESRI-filgeodatabas finns framtagna som stöd och ska användas.","Gäller samtliga projekt, både befintliga och nya.","Sofia Randström, Uhväda"]
[null,null,"Flik 8.1 Vatten","Bytt namn på fliken från 8.1 Vattenskydd till 8.1 Vatten. \nÄndrat från Vattenskydd till Vattenskyddsåtgärd och ändrat från Dagvattenhanteringsanläggning till Öppen dagvattenanläggning. Reviderat vad som ska levereras. \nFörvaltande system är ändrat till Chaos. ","Gäller samtliga projekt, både befintliga och nya.","Anna Lonevall, Uhvätv"]
[null,null,"Flik:\n9.1 Beläggning\n9.2 Grusväg\n9.3 Vägkropp","Ändrat leveranstidskrav för leveranser till PMS-beläggning från 2 månader efter ÖFT till 2 månader efter slutbesiktning.","Gäller samtliga projekt, både befintliga och nya.","Johanna Thorsenius, UHvätv"]
[null,null,"Flik 5.1-10.2","Ändrat kolumtext från Levererat och aviserat leveransen till mottagande förvaltning, (datum + namn) till Levererat till förvaltande system och aviserat leveransen till mottagande förvaltning (datum + namn) ","Förtydligande","Emma Klasson, UHväu"]
[null,null,"Flik Mallstruktur i Chaos","Uppdaterat mallstrukturen efter ändringar i version 29.0 av leveransplanen.","Information","Emma Klasson, UHväu"]
["30.0","2024-11-01","Generellt genom dokumentet. ","BaTMan är ändrat till att skrivas BATMAN.\nProjectWise/ICT är ändrat till ProjectWise/IKT","Information då det är en redaktionell ändring. ","Emma Klasson, UHväu"]
[null,null,"Kontakt-aviseringsuppgifter","Förtydligat kring aviseringar till GUS/Maximo.\nLagt till var leveranser gällande Vägteknik och Vägmarkering ska aviseras. \nÄndrat aviseringsadress till ProjectWise/IKT (PW/IKT)","Information","Emma Klasson, UHväu"]
[null,null,"4.1 Bro\n4.2 Tunnel och bergslänt\n4.3 Övriga byggnadsverk","Lagt till rad för konstruktionsnummer. \nLagt till kommentar med information om att vid fler konstruktioner är det ofta lämpligt med att skapa en flik för varje konstruktion. ","Förtydligande","Fredrik Olsson, UHvätb"]
[null,null,"5.9 VA","Förtydligat i rubriken VA (avser elektriskt anslutna Pump- och VA-stationer för drän- och vägdagvatten)","Information","Mats Olsson, UHvätb"]
[null,null,"6.1 Siter och kabel","Ändrat från Koordinatförteckning kabel till Koordinatfil Kabel samt ändrat från Koordinatförteckning dukt och kabel till Koordinatfil dukt och kabel","Information  ","Peter Sjökvist, IKTtvs"]
[null,null,"8.1 Vatten","Ändrat från Underlag för drift och underhåll till Underlag för skötsel och underhåll. ","Information","Caroline Persson, Uhvätv"]
[null,null,"10.1 Adm-funkt. Företeelser","Flyttat Sidoanläggningsväg från leveranstidskravet 2 månader efter slutbesiktning till 4 månader före ÖFT.","Nya projekt ska leverera enligt de nya kraven, befintliga projekt bör.","NVDB-leverans@trafikverket.se "]
[null,null,"10.2 Miljö","Delat upp övrigt om miljö under stycket om data för lagring i databas till flera rubriker Buller och vibrationer, Analysdata/Mätdata och Miljöföreteelser. \nÄndrat från Redbex till Analys och mätdatabas. ","Information och förtydligande.","Emma Henningsson, UHväv"]
[null,null,null,"Ändrat från Skötselinstruktioner för bullerskydd till Övriga skötselinstruktioner (miljörelaterade).","Information och förtydligande.","Emma Henningsson, UHväv"]
[null,null,null,"Lagt till Miljöföreteelser under teknisk dokumentation.\nLagt till rad gällande inbyggda material (enligt TMALL 0558) inom teknikslag Infra i laddmall till GUSMaximo (TMALL 0742).","Information och förtydligande.","Emma Henningsson, UHväv"]
[null,null,null,"Tagit bort J-kolumen Godkänt av miljökompetens på UH. Mottagande förvaltning kvitterar i Godkänt kolumnen. ","Information och förtydligande.","Emma Henningsson, UHväv"]
["31.0","2025-05-01","4.1-11.1","Lagt till en rad Leverans från leverantör (E/K) till överenskommen leveransyta, för mottagningskontroll senast för samtliga leveranstidskrav i alla flikar. Datumen är en rekommendation för att IV/PR ska hinna göra sin granskning. Projekten gör en egen bedömning och dessa datum kan ändras. ","Information och förtydligande.","Emma Klasson, UHväu"]
[null,null,"Leveranstider","Lagt till kolumn med hänvisning till aktuell flik i leveransplanen. ","Information","Emma Klasson, UHväu"]
[null,null,null,"Lagt till gällande NTS","Information och förtydligande.","Ben Rostamian, TRodvf"]
[null,null,"Kontakt-aviseringsuppgifter","Lagt till kontakt- och aviseringsuppgifter till NTS"]
[null,null,"Flik 4.1 Bro ","Tagit bort Passage/Överfart och Passage/Underfart","Slopat krav","Fredrik Olsson, UHvätb"]
[null,null,"Flik 4.2 Tunnel och Bergslänt","Tagit bort Passage/Genomfart/Sidopassage. ","Slopat krav","Fredrik Olsson, UHvätb"]
[null,null,"Flik 4.3 Övriga byggnadsverk","Tagit bort Passage/Överfart, Passage/Underfart och Passage/Sidopassage. ","Slopat krav","Fredrik Olsson, UHvätb"]
[null,null,"5.1 Anl.nära system","Lagt till krav på leverans under Data för lagring i databas samt Teknisk dokumentation. ","Gäller samtliga projekt, både befintliga och nya.","Linn Holm, UHvätb"]
[null,null,"5.6 Styr och regler","Brandlarm är borttaget från denna flik ","Gäller samtliga projekt, både befintliga och nya.","Linn Holm, UHvätb"]
[null,null,"5.7 Telesystem","Incidentdetektering (kamerabaserad) och Inbrottslarm är tillkommande delar i denna flik\nBrandlarm är flyttat hit från flik 5.6","Gäller samtliga projekt, både befintliga och nya.","Linn Holm, UHvätb"]
[null,null,"5.12 Samord. komplex vägtunnel","Ny flik med nytt nummer, ersätter den tidigare fliken 5.12.2.3 Brand och säkerhet. ","Gäller samtliga projekt, både befintliga och nya.","Linn Holm, UHvätb"]
[null,null,"5.13.1 Dörrkomponenter","Ändrade fliknummer, från 5.12.2.1 och 5.12.2.2. ","Information","Linn Holm, Uhvätb"]
[null,null,"5.13.2 Husbyggdelar"]
[null,null,"5.12.2.3 Brand och säkerhet","Flik 5.12.2.3 Brand och säkerhet har tagits bort och ersätts av flik 5.12 Samordning komplex vägtunnel. ","Information","Linn Holm, UHvätb"]
[null,null,"Generellt genom dokumentet. ","Ändrat från Maximo till GusMaximo. ","Information","Linn Holm, UHvätb"]
[null,null,"7.1 Vägnät","Lagt till en kolumn Beskrivning av krav dit hänvisning till TDOK 2021:0029 flyttats från kolumen Filformat Underlagsfil. Samt lagt till dwg/ESRI filgeodatabas under kolumnen Filformat Underlagsfil. ","Information och förtydligande.","NVDB-leverans@trafikverket.se "]
[null,null,null,"Lagt till att Planritning med vägmarkering automatkryssas när Referenslinje cykelväg och Referenslinje gångnät kryssas. Samt lagt till förtydligande om vad Planritning med vägmarkering ska innehålla."]
[null,null,"9.1 Beläggning","Lagt in kommentar om när TMALL 0050 inte är aktuell att rapportera.","Information och förtydligande.","Johanna Thorsenius, UHvätv"]
[null,null,"9.2 Grusväg","Lagt in kommentar om när TMALL 1384 inte är aktuell att rapportera.","Information och förtydligande.","Johanna Thorsenius, UHvätv"]
[null,null,"9.3 Vägkropp","Lagt till en kolumn (gällande Vägtrumma) Beskrivning av krav dit hänvisning till TDOK 2021:0029 flyttats från kolumen Filformat Underlagsfil. Samt lagt till dwg/ESRI filgeodatabas under kolumnen Filformat Underlagsfil. ","Information och förtydligande.","NVDB-leverans@trafikverket.se "]
[null,null,"9.4 Vägmarkering","Lagt till krav på Rapporter.\nÄndrat från pdf till PDF/A-1.","Gäller samtliga projekt, både befintliga och nya.","Johanna Thorsenius, UHvätv"]
[null,null,"10.1 Adm-funkt. Företeelser","Lagt till en kolumn Beskrivning av krav dit hänvisning till TDOK 2021:0029 flyttats från kolumen Filformat Underlagsfil. Samt lagt till dwg/ESRI filgeodatabas under kolumnen Filformat Underlagsfil. ","Information och förtydligande.","NVDB-leverans@trafikverket.se "]
[null,null,"10.2 Miljö","Ändrat från Förorenade områden till Förorenade områden och förorenade massor. ","Information och förtydligande.","Ylva Persson, Uhjbf"]
[null,null,null,"Justerat och ändrat texten gällande förorenade områden och förorenade massor gällande stycket data för lagring i databas. ","Gäller samtliga projekt, både befintliga och nya."]
[null,null,null,"Gjort en större revidering stycket gällande förorende områden och förorenade massor gällande stycket teknisk dokumentation. Bl.a. ändrat rubriker, tagit bort några krav, justerat och kompletterat. "]
[null,null,null,"Lagt till krav på Övriga kontrollprogram miljö","Gäller samtliga projekt, både befintliga och nya.","Emma Henningsson, UHväv"]
[null,null,"11.1 NTS","Ny flik 11.1 NTS, gällande leverans till Nationellt Trafikledningssystem. ","Gäller samtliga projekt, både befintliga och nya.","Ben Rostamian, TRodvf"]
[null,null,"Flik Mallstruktur i Chaos","Uppdaterat mallstrukturen efter ändringar i version 31.0 av leveransplanen.","Information","Emma Klasson, UHväu"]

{"sheet":"Mallstruktur i Chaos","index":37,"n_rows":593,"n_cols":5,"rows_kept":593,"cut":false,"hidden":false,"merged":[]}
[]
["Används enbart av förvaltningen!"]
["Kontaktväg:",null,null,"chaos.forvaltning@trafikverket.se "]
[]
[null,"Förvaltningsdata (enligt TMALL 0343, TDOK 2019:0210)"]
[null,"5 Infrasystem"]
[null,null,"5.1 Anläggningsnära system"]
[null,null,"5.2 ATK Mätstation"]
[null,null,null,"5.2.2 Teknisk dokumentation -  ATK"]
[null,null,null,null,"0 Laddmall"]
[null,null,null,null,"1 Planritning"]
[null,null,"5.3 Belysning"]
[null,null,null,"5.3.2 Teknisk dokumentation - Belysning"]
[null,null,null,null,"0 Laddmall"]
[null,null,null,null,"1 Anläggningsbeskrivning"]
[null,null,null,null,"2 Översiktsritningar"]
[null,null,null,null,"3 Datablad för stolpar, armar, säkringslådor och fundament "]
[null,null,null,null,"4 Datablad för armaturer och ljuskällor"]
[null,null,null,null,"5 Datablad för kablar, fästdon och kopplingsmateriel "]
[null,null,null,null,"6 Centraldokumentation, inkl. gruppförteckning och huvudledningsschema"]
[null,null,null,null,"7 Isolationsmätnings- och skyddsjordningsprotokoll"]
[null,null,null,null,"8 Belysningsberäkningar"]
[null,null,null,null,"9 Ledningslista och beräkningar"]
[null,null,null,null,"10 Servisbeställningar"]
[null,null,null,null,"11 Foton"]
[null,null,null,null,"12 Underlag för relationshandlingar"]
[null,null,"5.4 Brukaravgiftssystem"]
[null,null,null,"5.4.2 Teknisk dokumentation - Brukaravgiftssystem"]
[null,null,null,null,"0 Laddmall"]
[null,null,null,null,"1 Planritning"]
[null,null,null,null,"2 Konstruktionsdokumentation"]
[null,null,null,null,"3 Apparatskåpdokumentation"]
[null,null,null,null,"4 Drift- och underhållsdokumentation"]
[null,null,null,null,"5 Installationsdokumentation"]
[null,null,null,null,"6 Anläggnings-, system-, och funktionsbeskrivande dokumentation"]
[null,null,null,null,"7 Programvarudokumentation"]
[null,null,"5.5 Elkraft"]
[null,null,null,"5.5.2 Teknisk dokumentation - Elkraft"]
[null,null,null,null,"0 Laddmall"]
[null,null,null,null,"1 System / Anläggningsbeskrivning"]
[null,null,null,null,"2 Översiktsritningar"]
[null,null,null,null,"3 Kanalisationsritningar"]
[null,null,null,null,"4 Apparatskåpdokumentation"]
[null,null,null,null,"5 Datablad"]
[null,null,null,null,"6 Garantier"]
[null,null,null,null,"7 Drift- och underhållsdokumentation"]
[null,null,null,null,"8 Reservdelslista"]
[null,null,null,null,"9 Servisbeställningar"]
[null,null,"5.6 Styr- och reglersystem"]
[null,null,null,"5.6.3.1 Teknisk dokumentation - Styr- och reglersystem"]
[null,null,null,null,"0 Laddmall"]
[null,null,null,null,"1 Planritning"]
[null,null,null,null,"2 Apparatskåpdokumentation"]
[null,null,null,null,"3 Drift- och underhållsdokumentation"]
[null,null,null,null,"4 Anläggnings-, system-, och funktionsbeskrivande dokumentation"]
[null,null,null,null,"5 Programvarudokumentation"]
[null,null,null,null,"6 Övrigt"]
[null,null,null,null,"7 Utbildning"]
[null,null,null,null,"8 Kontroll och provning"]
[null,null,null,"5.6.2.3 Teknisk dokumentation - Miljömätning"]
[null,null,null,null,"0 Laddmall"]
[null,null,null,null,"1 Planritning (Apparatskåp)"]
[null,null,null,null,"2 Apparatskåpsdokumentation (Apparatskåp)"]
[null,null,null,null,"3 Drift- och underhållsdokumentation (Apparatskåp)"]
[null,null,null,null,"4 Apparatskåpsdokumentation (Centralapparat)"]
[null,null,null,null,"5 Drift- och underhållsdokumentation (Centralapparat)"]
[null,null,null,null,"6 Anläggnings-, system-, och funktionsbeskrivande dokumentation (Centralapparat)"]
[null,null,null,null,"7 Apparatskåpsdokumentation (Kopplingsplint)"]
[null,null,null,null,"8 Drift- och underhållsdokumentation (Kopplingsplint)"]
[null,null,null,null,"9 Planritning (Samtliga givare)"]
[null,null,null,null,"10 Apparatskåpsdokumentation (Samtliga givare)"]
[null,null,null,null,"11 Drift- och underhållsdokumentation (Samtliga givare)"]
[null,null,null,null,"12 Anläggnings-, system-, och funktionsbeskrivande dokumentation (Samtliga givare)"]
[null,null,null,null,"13 Apparatskåpsdokumentation (Modem)"]
[null,null,null,null,"14 Drift- och underhållsdokumentation (Modem)"]
[null,null,null,null,"15 Apparatskåpsdokumentation (Antenn)"]
[null,null,null,null,"16 Drift- och underhållsdokumentation (Antenn)"]
[null,null,"5.7 Telesystem"]
[null,null,null,"5.7.1.3 Teknisk dokumentation - ITV"]
[null,null,null,null,"0 Laddmall"]
[null,null,null,null,"1 Planritning (Apparatskåp)"]
[null,null,null,null,"2 Apparatskåpsdokumentation (Apparatskåp)"]
[null,null,null,null,"3 Drift- och underhållsdokumentation (Apparatskåp)"]
[null,null,null,null,"4 Apparatskåpsdokumentation (Kamera)"]
[null,null,null,null,"5 Apparatskåpsdokumentation (ITV-server)"]
[null,null,null,null,"6 Drift- och underhållsdokumentation (ITV-server)"]
[null,null,null,null,"7 Apparatskåpsdokumentation (Mottagare)"]
[null,null,null,null,"8 Apparatskåpsdokumentation (Enkoder)"]
[null,null,null,null,"9  Apparatskåpsdokumentation (Nätaggregat)"]
[null,null,null,null,"10 Apparatskåpsdokumentation (Kopplingsbox)"]
[null,null,null,null,"11 Planritning (Fiberbox, plint)"]
[null,null,null,null,"12 Apparatskåpsdokumentation (Fiberbox, plint)"]
[null,null,null,null,"13 Drift- och underhållsdokumentation (Fiberbox, plint)"]
[null,null,null,null,"14 Planritning (Inspelningsutrustning)"]
[null,null,null,null,"15 Apparatskåpsdokumentation (Inspelningsutrustning)"]
[null,null,null,null,"16 Drift- och underhållsdokumentation (Inspelningsutrustning)"]
[null,null,null,null,"17 Apparatskåpsdokumentation (Dörrkontakt)"]
[null,null,null,null,"18 Apparatskåpsdokumentation (Kamerastolpe)"]
[null,null,null,null,"19 Apparatskåpsdokumentation (Glana-modem)"]
[null,null,null,null,"20 Apparatskåpsdokumentation (Antenn)"]
[null,null,null,null,"21 Apparatskåpsdokumentation (Manöverpanel)"]
[null,null,null,"5.7.2.3 Teknisk dokumentation - Incidentdetektering (kamerabaserad)"]
[null,null,null,null,"0 Laddmall"]
[null,null,null,null,"1 Planritning "]
[null,null,null,null,"2 Apparatskåpsdokumentation (Apparatskåp)"]
[null,null,null,null,"3 Drift- och underhållsdokumentation (Apparatskåp)"]
[null,null,null,null,"4 Apparatskåpsdokumentation (server incidentdetektering)"]
[null,null,null,null,"5 Drift- och underhållsdokumentation (server incidentdetektering)"]
[null,null,null,null,"6 Apparatskåpsdokumentation (detektor)"]
[null,null,null,null,"7 Apparatskåpsdokumentation (Nätaggregat)"]
[null,null,null,"5.7.3.1 Teknisk dokumentation -Brandlarm"]
[null,null,null,null,"0 Laddmall"]
[null,null,null,null,"1 Planritning (Brandcentral)"]
[null,null,null,null,"2 Orienteringsritning Brandcentral)"]
[null,null,null,null,"3 Serviceritning (Brandcentral)"]
[null,null,null,null,"4 Sensorkabelkonfiguration (Brandcentral)"]
[null,null,null,null,"5 Apparatskåpsdokumentation (Brandcentral)"]
[null,null,null,null,"6 Drift- och underhållsdokumentation (Brandcentral)"]
[null,null,null,null,"7 Apparatskåpsdokumentation (Kopplingsbox)"]
[null,null,null,null,"8 Apparatskåpsdokumentation (Larmknapp)"]
[null,null,null,null,"9  Apparatskåpsdokumentation (Sirén larmdon)"]
[null,null,null,null,"10 Apparatskåpsdokumentation (Blixtljus larmdon)"]
[null,null,null,null,"11 Apparatskåpsdokumentation (Roterande ljud larmdon"]
[null,null,null,null,"12 Apparatskåpsdokumentation (Ljusindikator larmdon)"]
[null,null,null,null,"13 Apparatskåpsdokumentation (Brytare)"]
[null,null,null,null,"14 Apparatskåpsdokumentation (Handbrandsläckare)"]
[null,null,null,null,"15 Apparatskåpsdokumentation (Brandförsvarstablå)"]
[null,null,null,null,"16 Apparatskåpsdokumentation (Närvarogivare för handbrandsläckare)"]
[null,null,null," 5.7.4.3 Teknisk dokumentation - Passerkontroll"]
[null,null,null,null,"0 Laddmall"]
[null,null,null,null,"1 Planritning (Apparatskåp)"]
[null,null,null,null,"2 Dörrmiljöritning (Apparatskåp)"]
[null,null,null,null,"3 Apparatskåpsdokumentation (Apparatskåp)"]
[null,null,null,null,"4 Drift- och underhållsdokumentation (Apparatskåp)"]
[null,null,null,null,"5 Samtliga dokument kopplade till apparatskåp (Undercentral)"]
[null,null,null,null,"6 Samtliga dokument kopplaade till apparatskåp (I/O box)"]
[null,null,null,null,"7 Samtliga dokument kopplaade till apparatskåp (Kortläsare)"]
[null,null,null,null,"8 Apparatskåpsdokumentation (Styrbox motorlås)"]
[null,null,null,null,"9 Apparatskåpsdokumentation (Öppnarknapp)"]
[null,null,null,null,"10 Apparatskåpsdokumentation (Larmknapp)"]
[null,null,null,null,"11 Apparatskåpsdokumentation (Dörrkontakt/dörr)"]
[null,null,null,null,"12 Planritning (Passagesystem server)"]
[null,null,null,null,"13 Drift- och underhålls dokumentation (Passagesystem server)"]
[null,null,null,null,"14 Systemspecifikation (Passagesystem server)"]
[null,null,null," 5.7.5.3 Teknisk dokumentation - Inbrottslarm"]
[null,null,null,null,"0 Laddmall"]
[null,null,null,null,"1 Planritning (Apparatskåp)"]
[null,null,null,null,"2 Anläggarintyg (Apparatskåp)"]
[null,null,null,null,"3 Sektions och områdesförteckning (Apparatskåp)"]
[null,null,null,null,"4 Apparatskåpsdokumentation (Apparatskåp)"]
[null,null,null,null,"5 Drift- och underhållsdokumentation för platsen (Apparatskåp)"]
[null,null,null,null,"6 Strömförbrukningsprotokoll/beräkning (Apparatskåp)"]
[null,null,null,null,"7 Samtliga dokument kopplaade till apparatskåp (Manöverpanel)"]
[null,null,null,null,"8 Samtliga dokument kopplaade till apparatskåp (Undercentral)"]
[null,null,null,null,"9 Samtliga dokument kopplaade till apparatskåp (I/O box)"]
[null,null,null,null,"10 Samtliga dokument kopplaade till apparatskåp (Givare, inbrottslarm)"]
[null,null,null,null,"11 Samtliga dokument kopplaade till apparatskåp (Sirén)"]
[null,null,null,null,"12 Samtliga dokument kopplaade till apparatskåp (Dörrkontakt/dörr)"]
[null,null,null,"5.7.6.3 Meddelande- och PA-system"]
[null,null,null,null,"0 Laddmall"]
[null,null,null,null,"1 Planritning (Apparatskåp)"]
[null,null,null,null,"2 Apparatskåpsdokumentation (Apparatskåp)"]
[null,null,null,null,"3 Drift- och underhållsdokumentation (Apparatskåp)"]
[null,null,null,null,"4 Apparatskåpsdokumentation (Högtalare)"]
[null,null,null,null,"5 Apparatskåpsdokumentation (Förstärkare)"]
[null,null,null,null,"6 Apparatskåpsdokumentation (Styr/audioenhet)"]
[null,null,null,null,"7 Ljudfiler (Styr/audioenhet)"]
[null,null,null,"5.7.7.2 Teknisk dokumentation - Hjälptelefoner"]
[null,null,null,null,"0 Laddmall"]
[null,null,null,null,"1 Planritning (Telefon)"]
[null,null,null,null,"2 Apparatskåpsdokumentation (Telefon)"]
[null,null,null,null,"3 Telefonlista"]
[null,null,null,null,"4 Drift- och underhållsdokumentation (Telefon)"]
[null,null,null,null,"5 Apparatskåpsdokumentation (Hjälptelefon)"]
[null,null,null,null,"6 Apparatskåpsdokumentation (Sirén)"]
[null,null,null,null,"7 Apparatskåpsdokumentation (Nätaggregat)"]
[null,null,null,null,"8 Apparatskåpsdokumentation (Kopplingsbox)"]
[null,null,null,"5.7.8.3 Teknisk dokumentation - Radio"]
[null,null,null,null,"0 Laddmall"]
[null,null,null,null,"1 Planritning (Apparatskåp)"]
[null,null,null,null,"2 Konstruktionsdokumentation för Radio (Apparatskåp)"]
[null,null,null,null,"3 Apparatskåpsdokumentation (Apparatskåp)"]
[null,null,null,null,"4 Drift- och underhållsdokumentation (Apparatskåp)"]
[null,null,null,null,"5 Apparatskåpsdokumentation (Splitter/combiner)"]
[null,null,null,null,"6 Apparatskåpsdokumentation (Filter)"]
[null,null,null,null,"7 Apparatskåpsdokumentation (Strömförsörjning)"]
[null,null,null,null,"8 Apparatskåpsdokumentation (Centralapparat)"]
[null,null,null,null,"9 Apparatskåpsdokumentation (Repeater)"]
[null,null,"5.8 Trafiksystem"]
[null,null,null,"5.8.1.3 Teknisk dokumentation - Trafiksignal"]
[null,null,null,null,"0 Laddmall"]
[null,null,null,null,"1 Signalplan"]
[null,null,null,null,"2 Kabelplan med kabelförteckning"]
[null,null,null,null,"3 Apparatskåpsdokumentation"]
[null,null,null,null,"4 Signalgruppsfunktioner, alla tidplaner (Funktionshandlingar)"]
[null,null,null,null,"5 Detektorfunktioner (Funktionshandlingar)"]
[null,null,null,null,"6 Samordningsdiagram (Funktionshandlingar)"]
[null,null,null,null,"7 Ritning över konfliktpunkter (Funktionshandlingar)"]
[null,null,null,null,"8 Säkerhetstidsberäkningar (Funktionshandlingar)"]
[null,null,null,null,"9 Spärrmatris (Funktionshandlingar)"]
[null,null,null,null,"10 Inkopplingsritning signalkabel"]
[null,null,null,null,"11 Inkopplingsritning Detektorkabel"]
[null,null,null,null,"12 Inkopplingsritning Förbindelsekabel"]
[null,null,null,null,"13 Gruppförteckning i apparatskåp, teknikhus och eventuell central för inkommande elservis"]
[null,null,null,null,"14 Provningsprotokoll enligt kontrollprogram trafiksignaler"]
[null,null,null,null,"15 Service- och programmeringsmanual"]
[null,null,null,null,"16 Underhållsinstruktioner"]
[null,null,null,null,"17 Inmätningar"]
[null,null,null,null,"18 Certifikat"]
[null,null,null,"5.8.2.3 Teknisk dokumentation - Rampstyrning"]
[null,null,null,null,"0 Laddmall"]
[null,null,null,null,"1 Signalplan"]
[null,null,null,null,"2 Kabelplan med kabelförteckning"]
[null,null,null,null,"3 Apparatskåpsdokumentation"]
[null,null,null,null,"4 Signalgruppsfunktioner, alla tidplaner (Funktionshandlingar)"]
[null,null,null,null,"5 Detektorfunktioner (Funktionshandlingar)"]
[null,null,null,null,"6 Samordningsdiagram (Funktionshandlingar)"]
[null,null,null,null,"7 Ritning över konfliktpunkter (Funktionshandlingar)"]
[null,null,null,null,"8 Säkerhetstidsberäkningar (Funktionshandlingar)"]
[null,null,null,null,"9 Spärrmatris (Funktionshandlingar)"]
[null,null,null,null,"10 Inkopplingsritning signalkabel"]
[null,null,null,null,"11 Inkopplingsritning Detektorkabel"]
[null,null,null,null,"12 Inkopplingsritning Förbindelsekabel"]
[null,null,null,null,"13 Gruppförteckning i apparatskåp, teknikhus och eventuell central för inkommande elservis"]
[null,null,null,null,"14 Provningsprotokoll enligt kontrollprogram trafiksignaler"]
[null,null,null,null,"15 Service- och programmeringsmanual"]
[null,null,null,null,"16 Underhållsinstruktioner"]
[null,null,null,null,"17 Inmätningar"]
[null,null,null,null,"18 Certifikat"]
[null,null,null,"5.8.3.3 Teknisk dokumentation - Trafikrelaterad mätning"]
[null,null,null,null,"0 Laddmall"]
[null,null,null,null,"1 Planritnming"]
[null,null,null,null,"2 Apparatskåpsdokumentation"]
[null,null,null,null,"3 Datablad "]
[null,null,null,null,"4 Reservdelslista"]
[null,null,null,null,"5 Installationsmanual"]
[null,null,null,null,"6 Konfigurationsinstruktioner"]
[null,null,null,null,"7 Felhanteringsmanual"]
[null,null,null,null,"8 Underhållsinstruktioner"]
[null,null,null,null,"9 Systembeskrivning"]
[null,null,null,null,"10 Utbildningsmaterial"]
[null,null,null,"5.8.4.3 Teknisk dokumentation - Motorvägskontrollsystem (MCS)"]
[null,null,null,null,"0 Laddmall"]
[null,null,null,null,"1 Skyltritning"]
[null,null,null,null,"2 Planritning"]
[null,null,null,null,"3 Apparatskåpsdokumentation"]
[null,null,null,null,"4 Datablad "]
[null,null,null,null,"5 Reservdelslista"]
[null,null,null,null,"6 Konfigurationsinstruktioner"]
[null,null,null,null,"7 Felhanteringsmanual"]
[null,null,null,null,"8 Underhållsinstruktioner"]
[null,null,null,null,"9 Elritning"]
[null,null,null,null,"10 Installationsmanual"]
[null,null,null,null,"11 Systembeskrivning"]
[null,null,null,null,"12 Utbildningsmaterial"]
[null,null,null,null,"13 Hållfasthetsberäkningar för portal, skyltbrygga och/eller stolpe"]
[null,null,null,null,"14 Datablad"]
[null,null,null,"5.8.5.3 Teknisk dokumentation - Variabel vägvisning (VDS)"]
[null,null,null,null,"0 Laddmall"]
[null,null,null,null,"1 Skyltritning"]
[null,null,null,null,"2 Planritning"]
[null,null,null,null,"3 Apparatskåpsdokumentation"]
[null,null,null,null,"4 Datablad "]
[null,null,null,null,"5 Bitmap/Skyltkort"]
[null,null,null,null,"6 Reservdelslista"]
[null,null,null,null,"7 Konfigurationsinstruktioner"]
[null,null,null,null,"8 Felhanteringsmanual"]
[null,null,null,null,"9 SUL - Signalutbyteslista"]
[null,null,null,null,"10 Underhållsinstruktioner"]
[null,null,null,null,"11 Elritning"]
[null,null,null,null,"12 Installationsmanual"]
[null,null,null,null,"13 Systembeskrivning"]
[null,null,null,null,"14 Utbildningsmaterial"]
[null,null,null,null,"15 Hållfasthetsberäkningar för portal, skyltbrygga och/eller stolpe"]
[null,null,null,null,"16 Datablad"]
[null,null,null,"5.8.6.3 Teknisk dokumentation - Omställbart vägmärke"]
[null,null,null,null,"0 Laddmall"]
[null,null,null,null,"1 Skyltritning"]
[null,null,null,null,"2 Planritning"]
[null,null,null,null,"3 Apparatskåpsdokumentation"]
[null,null,null,null,"4 Datablad "]
[null,null,null,null,"5 Bitmap/Skyltkort"]
[null,null,null,null,"6 Reservdelslista"]
[null,null,null,null,"7 Konfigurationsinstruktioner"]
[null,null,null,null,"8 Felhanteringsmanual"]
[null,null,null,null,"9 SUL - Signalutbyteslista"]
[null,null,null,null,"10 Underhållsinstruktioner"]
[null,null,null,null,"11 Elritning"]
[null,null,null,null,"12 Installationsmanual"]
[null,null,null,null,"13 Systembeskrivning"]
[null,null,null,null,"14 Utbildningsmaterial"]
[null,null,null,null,"15 Hållfasthetsberäkningar för portal, skyltbrygga och/eller stolpe"]
[null,null,null,null,"16 Datablad"]
[null,null,null,"5.8.7.3 Teknisk dokumentation - Variabel hastighet (VH)"]
[null,null,null,null,"0 Laddmall"]
[null,null,null,null,"1 Planritning"]
[null,null,null,null,"2 Apparatskåpsdokumentation"]
[null,null,null,null,"3 Datablad "]
[null,null,null,null,"4 Reservdelslista"]
[null,null,null,null,"5 Konfigurationsinstruktioner"]
[null,null,null,null,"6 Felhanteringsmanual"]
[null,null,null,null,"7 SUL - Signalutbyteslista"]
[null,null,null,null,"8 Underhållsinstruktioner"]
[null,null,null,null,"9 Elritning"]
[null,null,null,null,"10 Installationsmanual"]
[null,null,null,null,"11 Systembeskrivning"]
[null,null,null,null,"12 Utbildningsmaterial"]
[null,null,null,null,"13 Hållfasthetsberäkningar för portal, skyltbrygga och/eller stolpe"]
[null,null,null,null,"14 Datablad"]
[null,null,null,"5.8.8.3 Teknisk dokumentation - Viltvarningssystem"]
[null,null,null,null,"0 Laddmall"]
[null,null,null,null,"1 Planritning"]
[null,null,null,null,"2 Apparatskåpsdokumentation"]
[null,null,null,null,"3 Datablad "]
[null,null,null,null,"4 Reservdelslista"]
[null,null,null,null,"5 Konfigurationsinstruktioner"]
[null,null,null,null,"6 Felhanteringsmanual"]
[null,null,null,null,"7 SUL - Signalutbyteslista"]
[null,null,null,null,"8 Underhållsinstruktioner"]
[null,null,null,null,"9 Elritning"]
[null,null,null,null,"10 Installationsmanual"]
[null,null,null,null,"11 Systembeskrivning"]
[null,null,null,null,"12 Utbildningsmaterial"]
[null,null,null,null,"13 Hållfasthetsberäkningar för portal, skyltbrygga och/eller stolpe"]
[null,null,null,null,"14 Datablad"]
[null,null,null,"5.8.9.3 Teknisk dokumentation - Trafikinformationstavla"]
[null,null,null,null,"0 Laddmall"]
[null,null,null,null,"1 Skyltritning"]
[null,null,null,null,"2 Planritning"]
[null,null,null,null,"3 Apparatskåpsdokumentation"]
[null,null,null,null,"4 Datablad "]
[null,null,null,null,"5 Reservdelslista"]
[null,null,null,null,"6 Konfigurationsinstruktioner"]
[null,null,null,null,"7 Felhanteringsmanual"]
[null,null,null,null,"8 SUL - Signalutbyteslista"]
[null,null,null,null,"9 Underhållsinstruktioner"]
[null,null,null,null,"10 Elritning"]
[null,null,null,null,"11 Installationsmanual"]
[null,null,null,null,"12 Systembeskrivning"]
[null,null,null,null,"13 Utbildningsmaterial"]
[null,null,null,null,"14 Hållfasthetsberäkningar för portal, skyltbrygga och/eller stolpe"]
[null,null,null,null,"15 Datablad"]
[null,null,null,"5.8.10.3 Teknisk dokumentation - Tunnelinformationsskylt (TIS) och Tunnelentreskylt (TES)"]
[null,null,null,null,"0 Laddmall"]
[null,null,null,null,"1 Skyltritning"]
[null,null,null,null,"2 Planritning"]
[null,null,null,null,"3 Apparatskåpsdokumentation"]
[null,null,null,null,"4 Datablad "]
[null,null,null,null,"5 Bitmap"]
[null,null,null,null,"6 Reservdelslista"]
[null,null,null,null,"7 Konfigurationsinstruktioner"]
[null,null,null,null,"8 Felhanteringsmanual"]
[null,null,null,null,"9 SUL - Signalutbyteslista"]
[null,null,null,null,"10 Underhållsinstruktioner"]
[null,null,null,null,"11 Elritning"]
[null,null,null,null,"12 Hållfasthetsberäkningar för portal, skyltbrygga och/eller stolpe"]
[null,null,null,null,"13 Datablad"]
[null,null,null,"5.8.11.3 Teknisk dokumentation - Incidentindikeringssystem"]
[null,null,null,null,"0 Laddmall"]
[null,null,null,null,"1 Planritning"]
[null,null,null,null,"2 Apparatskåpsdokumentation"]
[null,null,null,null,"3 Datablad "]
[null,null,null,null,"4 Reservdelslista"]
[null,null,null,null,"5 Konfigurationsinstruktioner"]
[null,null,null,null,"6 Felhanteringsmanual"]
[null,null,null,null,"7 Underhållsinstruktioner"]
[null,null,null,null,"8 Installationsmanual"]
[null,null,null,null,"9 Systembeskrivning"]
[null,null,null,null,"10 Utbildningsmaterial"]
[null,null,null,null,"11 Hållfasthetsberäkningar för portal, skyltbrygga och/eller stolpe"]
[null,null,null,null,"12 Datablad"]
[null,null,null,"5.8.12.3 Teknisk dokumentation - Viktkontroll (HWIM)"]
[null,null,null,null,"0 Laddmall"]
[null,null,null,null,"1 Planritning"]
[null,null,null,null,"2 Apparatskåpsdokumentation"]
[null,null,null,null,"3 Datablad "]
[null,null,null,null,"4 Reservdelslista"]
[null,null,null,null,"5 Konfigurationsinstruktioner"]
[null,null,null,null,"6 Felhanteringsmanual"]
[null,null,null,null,"7 Underhållsinstruktioner"]
[null,null,null,null,"8 Installationsmanual"]
[null,null,null,null,"9 Systembeskrivning"]
[null,null,null,null,"10 Utbildningsmaterial"]
[null,null,null,null,"11 Elritning"]
[null,null,null,"5.8.13.3 Teknisk dokumentation - Kontrollplats"]
[null,null,null,null,"0 Laddmall"]
[null,null,null,null,"1 Planritning"]
[null,null,null,null,"2 Apparatskåpsdokumentation"]
[null,null,null,null,"3 Datablad "]
[null,null,null,null,"4 Reservdelslista"]
[null,null,null,null,"5 Konfigurationsinstruktioner"]
[null,null,null,null,"6 Felhanteringsmanual"]
[null,null,null,null,"7 SUL - Signalutbyteslista"]
[null,null,null,null,"8 Underhållsinstruktioner"]
[null,null,null,null,"9 Elritning"]
[null,null,null,null,"10 Installationsmanual"]
[null,null,null,null,"11 Systembeskrivning"]
[null,null,null,null,"12 Utbildningsmaterial"]
[null,null,null,null,"13 Belysningsberäkningar"]
[null,null,null,null,"14 Hållfasthetsberäkningar för stolpe"]
[null,null,null,null,"15 Datablad"]
[null,null,null,"5.8.14.3 Teknisk dokumentation - Avstängningsanordning"]
[null,null,null,null,"0 Laddmall"]
[null,null,null,null,"1 Planritning"]
[null,null,null,null,"2 Apparatskåpsdokumentation"]
[null,null,null,null,"3 Datablad "]
[null,null,null,null,"4 Reservdelslista"]
[null,null,null,null,"5 Konfigurationsinstruktioner"]
[null,null,null,null,"6 Felhanteringsmanual"]
[null,null,null,null,"7 SUL - Signalutbyteslista"]
[null,null,null,null,"8 Underhållsinstruktioner"]
[null,null,null,null,"9 Elritning"]
[null,null,null,null,"10 Installationsmanual"]
[null,null,null,null,"11 Systembeskrivning"]
[null,null,null,null,"12 Utbildningsmaterial"]
[null,null,null,null,"13 Hållfasthetsberäkningar för portal, skyltbrygga och/eller stolpe"]
[null,null,null,null,"14 Datablad"]
[null,null,null,"5.8.15.3 Teknisk dokumentation - Aktivt farthinder"]
[null,null,null,null,"0 Laddmall"]
[null,null,null,null,"1 Planritning"]
[null,null,null,null,"2 Apparatskåpsdokumentation"]
[null,null,null,null,"3 Datablad "]
[null,null,null,null,"4 Reservdelslista"]
[null,null,null,null,"5 Konfigurationsinstruktioner"]
[null,null,null,null,"6 Felhanteringsmanual"]
[null,null,null,null,"7 SUL - Signalutbyteslista"]
[null,null,null,null,"8 Underhållsinstruktioner"]
[null,null,null,null,"9 Elritning"]
[null,null,null,null,"10 Installationsmanual"]
[null,null,null,null,"11 Systembeskrivning"]
[null,null,null,null,"12 Utbildningsmaterial"]
[null,null,null,null,"13 Hållfasthetsberäkningar för portal, skyltbrygga och/eller stolpe"]
[null,null,null,null,"14 Datablad"]
[null,null,null,"5.8.16.3 Teknisk dokumentation - Bussemafor"]
[null,null,null,null,"0 Laddmall"]
[null,null,null,null,"1 Planritning"]
[null,null,null,null,"2 Apparatskåpsdokumentation"]
[null,null,null,null,"3 Datablad "]
[null,null,null,null,"4 Reservdelslista"]
[null,null,null,null,"5 Konfigurationsinstruktioner"]
[null,null,null,null,"6 Felhanteringsmanual"]
[null,null,null,null,"7 SUL - Signalutbyteslista"]
[null,null,null,null,"8 Underhållsinstruktioner"]
[null,null,null,null,"9 Elritning"]
[null,null,null,null,"10 Installationsmanual"]
[null,null,null,null,"11 Systembeskrivning"]
[null,null,null,null,"12 Utbildningsmaterial"]
[null,null,null,"5.8.17.3 Teknisk dokumentation - Öppningsbar bro"]
[null,null,null,null,"0 Laddmall"]
[null,null,null,null,"1 Planritning"]
[null,null,null,null,"2 Apparatskåpsdokumentation"]
[null,null,null,null,"3 Datablad "]
[null,null,null,null,"4 Reservdelslista"]
[null,null,null,null,"5 Konfigurationsinstruktioner"]
[null,null,null,null,"6 Felhanteringsmanual"]
[null,null,null,null,"7 SUL - Signalutbyteslista"]
[null,null,null,null,"8 Underhållsinstruktioner"]
[null,null,null,null,"9 Elritning"]
[null,null,null,null,"10 Installationsmanual"]
[null,null,null,null,"11 Systembeskrivning"]
[null,null,null,null,"12 Utbildningsmaterial"]
[null,null,null,null,"13 Hållfasthetsberäkningar för portal, skyltbrygga och/eller stolpe"]
[null,null,null,null,"14 Datablad"]
[null,null,"5.9 VA"]
[null,null,null,"5.9.2 Teknisk dokumentation - VA, Pumpstation och VA-station"]
[null,null,null,null,"0 Laddmall"]
[null,null,null,null,"1 Ritningar"]
[null,null,null,null,"2 Apparatskåpdokumentation"]
[null,null,null,null,"3 Programvarudokumentation"]
[null,null,null,null,"4 Drift- och underhållsdokumentation"]
[null,null,null,null,"5 Anläggnings-, system-, och funktionsbeskrivande dokumentation"]
[null,null,null,null,"6 Beräkningsunderlag"]
[null,null,null,null,"7 Foton"]
[null,null,null,null,"8 Kontroll- och provningsprotokoll"]
[null,null,null,null,"9 Isolationsmätnings- och skyddsjordningsprotokoll"]
[null,null,null,null,"10 Avtal och tillstånd"]
[null,null,null,null,"11 El-, vatten- och fjärrvärmeservisbeställningar"]
[null,null,null,null,"12 CE-dokumentation"]
[null,null,null,null,"13 Miljödom (vattendom) inklusive beslut"]
[null,null,null,null,"14 Anmälan inklusive beslut om vattenverksamhet"]
[null,null,null,null,"15 Diariefört beslut om eventuellt undantag från utövande av vattenverksamhet enligt 11 kapitlet i miljöbalken"]
[null,null,null,null,"16 Kontrollprogram miljö (för förvaltningsskedet)"]
[null,null,null,null,"17 Övriga myndighetskrav"]
[null,null,null,null,"18 Miljöinformation (allmän)"]
[null,null,null,null,"19 Kulturhistorisk klassning/beslut"]
[null,null,null,null,"20 Underhållsplan miljö"]
[null,null,null,null,"21 Miljöinspektioner"]
[null,null,null,"5.9.3 Teknisk dokumentation - (BBS sprinkler- och släckvatten)"]
[null,null,null,null,"0 Laddmall"]
[null,null,"5.10 Ventilation"]
[null,null,null,"5.10.2 Teknisk dokumentation - Tunnelventilation, Allmänventilation, Kyla och Värme, Avfuktning"]
[null,null,null,null,"0 Laddmall"]
[null,null,null,null,"1 Planritning"]
[null,null,null,null,"2 Datablad"]
[null,null,null,null,"3 Underhållsplan"]
[null,null,null,null,"4 Arbetsinstruktioner"]
[null,null,null,null,"5 Konfigurationsinstruktioner"]
[null,null,null,null,"6 Felhanteringsmanual"]
[null,null,null,null,"7 Underhållsinstruktioner"]
[null,null,null,null,"8 Elritning"]
[null,null,"5.11 VViS"]
[null,null,null,"5.11.2 Teknisk dokumentation - VViS"]
[null,null,null,null,"0 Laddmall"]
[null,null,null,null,"1 Planritning"]
[null,null,null,null,"2 Fotografier"]
[null,null,null,null,"3 Egenkontroll (inkl. el-prov), signerad av E "]
[null,null,null,null,"4 Kontrollplan, signerad av TRVs BL"]
[null,null,null,null,"5 Acceptanstestningsprotokoll (SAT, OAT)"]
[null,null,null,null,"6 Leveransintyg och leveranscertifikat"]
[null,null,null,null,"7 Leverantörsintyg, produktvalsanalyser miljö"]
[null,null,null,null,"8 Överlämnanderapporter miljö"]
[null,null,null,null,"9 Materialförteckning, markarbeten"]
[null,null,null,null,"10 Bedömning - Relativ risk trafiksäkerhet"]
[null,null,"5.12 Samordning komplex vägtunnel"]
[null,null,null,"5.12.1 Teknisk dokumentation"]
[null,null,null,null,"1 Arbetsmiljöplan för hela anläggningen (Arbetsmiljö)"]
[null,null,null,null,"2 Risklista (Arbetsmiljö)"]
[null,null,null,null,"3 Driftavstängningsstrategi (Arbetsmiljö)"]
[null,null,null,null,"4 Utbildningsmaterial arbetsmiljö (Arbetsmiljö)"]
[null,null,null,null,"5 Säkerhetshandbok (Arbetsmiljö)"]
[null,null,null,null,"6 Styrningsprinciper/åtgärdsrutiner driftavstängning (Arbetsmiljö)"]
[null,null,null,null,"7a Säkerhetsdokumentation (Tunnelsäkerhet)"]
[null,null,null,null,"7b Säkerhetsbeskrivning (Tunnelsäkerhet)"]
[null,null,null,null,"8 Insatsplaner (Tunnelsäkerhet)"]
[null,null,null,null,"9 Angreppsvägar och utrymningsvägar för räddningstjänst (Tunnelsäkerhet)"]
[null,null,null,null,"10 Utbildningsmaterial tunnelsäkerhet (Tunnelsäkerhet)"]
[null,null,null,null,"11 Styrningsprinciper/åtgärdsrutiner trafikhändelser (Tunnelsäkerhet)"]
[null,null,null,null,"12 Kartor (Tillgångsförvaltning)"]
[null,null,null,null,"13 Ljudfiler (Tillgångsförvaltning)"]
[null,null,null,null,"14 Vägklassning (Beslut)"]
[null,null,null,null,"15 Godkännande från Transportstyrelsen (Beslut)"]
[null,null,"5.13 Övrigt"]
[null,null,null,"5.13.1 Dörrkomponenter"]
[null,null,null,null,"0 Laddmall"]
[null,null,null,null,"1 Översiktsritningar"]
[null,null,null,null,"2 Dörruppställningslista"]
[null,null,null,null,"3 Datablad för dörr, låsbeslag, låskista, låsbehör, dörrstängare, utrymningsbeslag"]
[null,null,null,"5.13.2 Husbyggdelar"]
[null,null,null,null,"0 Laddmall"]
[null,null,null,null,"1 Situationsplan"]
[null,null,null,null,"2 Markritning miljö"]
[null,null,null,null,"3 Kanalisationsritning, i mark"]
[null,null,null,null,"4 Konstruktionsritning"]
[null,null,null,null,"5 Planritningar"]
[null,null,null,null,"6 Beskrivning av i fastigheten ingående material"]
[null,null,null,null,"7 Slutbesiktning"]
[null,null,null,null,"8 Garantibesiktning"]
[null,null,null,null,"9 Avtal"]
[null,null,null,null,"10 Bygglovsinformation"]
[null,null,null,null,"11 Utrymningsplan"]
[null,null,null,null,"12 Utrymningsdokumentation"]
[null,null,null,null,"13 Skötselanvisningar"]
[null,null,null,null,"14 Reservdelsinformation"]
[null,"6 IT- och telekominfrastruktur"]
[null,null,"6.1 Siter och kabel"]
[null,null,null,"Vid färdig bygghandling"]
[null,null,null,"3 månader efter slutbesiktning"]
[null,"7 Trafiknät"]
[null,null,"7.1 Vägnät"]
[null,"8 Vägutrustning, Sidoanläggning, Sidoområde"]
[null,null,"8.1 Vatten"]
[null,null,null,"8.1.1.1 Teknisk dokumentation - Vattenskyddsåtgärd"]
[null,null,null,null,"1 Fördjupad riskanalys"]
[null,null,null,null,"2 Anläggnings- och funktionsbeskrivande dokument"]
[null,null,null,null,"3 Planritning - vattenskyddsåtgärd"]
[null,null,null,"8.1.2.1 Teknisk dokumentation Öppen dagvattenanläggning"]
[null,null,null,null,"1 Anläggningsbeskrivning"]
[null,null,null,null,"2 Dimensioneringsberäkningar"]
[null,null,null,null,"3 Underlag för skötsel och underhåll"]
[null,null,null,null,"4 Planritning - Öppen dagvattenanläggning"]
[null,"9 Vägyta, vägkropp"]
[null,null,"9.1 Beläggning"]
[null,null,"9.2 Grusväg"]
[null,null,"9.3 Vägkropp"]
[null,null,null,"9.3.1 Vägtrumma/Vägtrumma, avslutad anläggning"]
[null,null,null,"9.3.2 Teknisk dokumentation"]
[null,null,null,null,"9.3.2.1 Geoteknik"]
[null,null,null,null,"9.3.2.2 Vägteknik"]
[null,null,"9.4 Vägmarkering"]
[null,null,null,"9.4.1 Vägmarkering"]
[null,"10 Övrigt"]
[null,null,"10.1 Administrativa och funktionella företelser"]
[null,null,null,"4 månader före öft"]
[null,null,null,"2 månader före öft"]
[null,null,null,"2 månader efter slutbesiktning"]
[null,null,"10.2 Miljö"]
[null,null,null,"Överlämnanderapport miljö"]
[null,null,null,"Miljösäkring plan och bygg"]
[null,null,null,"TMALL 0007 Förteckning Tillstånd, anmälningsärenden, dispenser enligt miljölagstiftning"]
[null,null,null,"TMALL 0558 Miljö - Materialförteckning"]
[null,null,null,"TMALL 0559 Miljö - Kemikalieförteckning"]
[null,null,null,"Övrig teknisk dokumentation (miljörelaterad)"]
[null,null,null,"Övriga skötselinstruktioner (miljörelaterade)"]